Workbook

Sheet SERIES
A2: LSL ACADATA E&W HPI NATIONAL AND REGIONAL FORMATTED DATA FROM 2005 | K2: 18th March 2019
A3: A TRUE MEASURE OF HOUSE PRICE INFLATION | K3: FEBRUARY 2019
A4: For data prior to 2005 please see | D4: APAT LGA
A6: The following table provides national smoothed, seasonally and mix adjusted current and back data for our LSL Acadata E&W HPI. The data are based upon the prices for all residential transactions in England and Wales, including cash purchases, reported by the Land Registry.
A7: At national level, only some 60,000 monthly transactions are occurring. For any given month, only c.35% of the transactions which took place in the month are available from LR. Rather than rely upon a small sample of c.21,000 potentially unrepresentative transactions, we base our initial results for each, most recent, month upon our Academic “index of indices” forecasting model, developed at the University of Cambridge and the Sir John Cass Business School. One month later, however, LR provides c.80% of the transactions, which we use to replace our initial forecast with an updated LSL Acadata E&W HPI result. Two months after any given month, LR provides c.90% of the transactions. We then regard our results as sufficiently updated to describe them as the final LSL Acadata E&W HPI index.
A8: The final LSL Acadata E&W HPI index comprises some 90% of the ultimate LR transactions, smoothed, seasonally and mix adjusted. Every further update from LR is used monthly until the ultimate LSL Acadata E&W HPI result based upon 100% of the LR data is reached.These results are the complete transaction data for England and Wales smoothed, seasonally and mix adjusted. Normally, these show no significant change from the final LSL Acadata E&W HPI result. Our Acadata House Prices series is calibrated to provide portfolio revaluations with standard errors.
A9: In this LSL Acadata Data Series, new weights have been adopted from April 2004 and prices on and after this date have been recalculated based on these new weights. The Index however remains based on the original weights and has not been re-cast. There is therefore discontinuity between the recalculated prices and the original Index.
A10: Please use this link to our “Index Monitor” report.
A11: LSL Acadata E&W HPI is prepared from Land Registry data that we believe to be correct using a methodology designed to provide the best possible guide to house price movements in England and Wales, and applied with care. We do not guarantee the accuracy of the results and Acadata shall not be liable for any loss or damage, whatsoever, consequential upon any error, misdescription or other inadequacy in the data. Persons using the data do so entirely at their own risk. No part of the house price index may be reproduced in any form or for any purpose without the prior permission of Acadata. Please email information@Acadata.co.uk
L13: © Acadata Limited
M14: LSL Acadata E&W HPI clb/cms
M15: www.acadata.co.uk
B17: 2005-01-01 | C17: 2005-02-01 | D17: 2005-03-01 | E17: 2005-04-01 | F17: 2005-05-01 | G17: 2005-06-01 | H17: 2005-07-01 | I17: 2005-08-01 | J17: 2005-09-01 | K17: 2005-10-01 | L17: 2005-11-01 | M17: 2005-12-01
A18: HP | B18: 190271.8492 | C18: 191414.9615 | D18: 191307.3842 | E18: 191385.9312 | F18: 190789.1467 | G18: 191309.8439 | H18: 191319.5554 | I18: 191569.0711 | J18: 192146.5893 | K18: 193274.487 | L18: 194204.6291 | M18: 195787.1787
A19: Index | B19: 194.6273523 | C19: 195.7195186 | D19: 195.6551615 | E19: 195.7536815 | F19: 195.1941451 | G19: 195.7926608 | H19: 195.8667879 | I19: 196.1748084 | J19: 196.7364411 | K19: 197.9376874 | L19: 198.8839387 | M19: 200.6449221
A20: Monthly% | B20: 0.4115428069 | C20: =+C18/B18*100-100 -> 0.6007784313 | D20: =+D18/C18*100-100 -> -0.05620105788 | E20: 0.04105799294 | F20: -0.3118225755 | G20: 0.2729176478 | H20: 0.005076298903 | I20: 0.1304183049 | J20: 0.3014673324 | K20: 0.5869985931 | L20: 0.4812544204 | M20: 0.8148876801
A21: Annual% | B21: 12.42897829 | C21: 11.56690303 | D21: 10.05668617 | E21: 8.82201599 | F21: 7.129963685 | G21: 6.16485479 | H21: 4.98517799 | I21: 3.942171669 | J21: 3.340515889 | K21: 3.02393651 | L21: 3.024629596 | M21: 3.322129622
B23: 2006-01-01 | C23: 2006-02-01 | D23: 2006-03-01 | E23: 2006-04-01 | F23: 2006-05-01 | G23: 2006-06-01 | H23: 2006-07-01 | I23: 2006-08-01 | J23: 2006-09-01 | K23: 2006-10-01 | L23: 2006-11-01 | M23: 2006-12-01
A24: HP | B24: 196789.4469 | C24: 198441.0226 | D24: 199612.6451 | E24: 200830.6494 | F24: 201614.1391 | G24: 202207.3475 | H24: 203075.9693 | I24: 204234.2105 | J24: 205945.7348 | K24: 207990.0112 | L24: 209617.0904 | M24: 211765.8368
A25: Index | B25: 201.6606224 | C25: 203.3743721 | D25: 204.5109404 | E25: 205.8608886 | F25: 206.8261824 | G25: 207.510648 | H25: 208.3876235 | I25: 209.5672334 | J25: 211.3531339 | K25: 213.4431741 | L25: 215.1395739 | M25: 217.4753687
A26: Monthly% | B26: =+B24/M18*100-100 -> 0.5119172083 | C26: =+C24/B24*100-100 -> 0.839260313 | D26: =+D24/C24*100-100 -> 0.5904134536 | E26: =+E24/D24*100-100 -> 0.6101839004 | F26: 0.3901245919 | G26: 0.2942295532 | H26: 0.4295698557 | I26: 0.5703487119 | J26: 0.8380204011 | K26: 0.992628671 | L26: 0.7822871833 | M26: 1.025081664
A27: Annual% | B27: =+B24/B18*100-100 -> 3.425413534 | C27: =+C24/C18*100-100 -> 3.67059143 | D27: =+D24/D18*100-100 -> 4.341317474 | E27: 4.934907228 | F27: 5.673798867 | G27: 5.696258671 | H27: 6.144909704 | I27: 6.611265224 | J27: 7.18157195 | K27: 7.613795498 | L27: 7.93619671 | M27: 8.161238266
B29: 2007-01-01 | C29: 2007-02-01 | D29: 2007-03-01 | E29: 2007-04-01 | F29: 2007-05-01 | G29: 2007-06-01 | H29: 2007-07-01 | I29: 2007-08-01 | J29: 2007-09-01 | K29: 2007-10-01 | L29: 2007-11-01 | M29: 2007-12-01
A30: HP | B30: 213538.0291 | C30: 216107.8405 | D30: 217479.2895 | E30: 219272.0417 | F30: 220315.0785 | G30: 222009.115 | H30: 222687.1228 | I30: 224460.722 | J30: 226227.8076 | K30: 227540.6092 | L30: 227284.8394 | M30: 227433.4126
A31: Index | B31: 219.4963176 | C31: 222.2308868 | D31: 223.6998581 | E31: 225.5798747 | F31: 226.8685956 | G31: 228.8121942 | H31: 229.7011053 | I31: 231.6302491 | J31: 233.3844212 | K31: 234.663941 | L31: 234.3124214 | M31: 234.5554226
A32: Monthly% | B32: =+B30/M24*100-100 -> 0.8368641391 | C32: =+C30/B30*100-100 -> 1.203444358 | D32: =+D30/C30*100-100 -> 0.6346132533 | E32: =+E30/D30*100-100 -> 0.8243323956 | F32: 0.4756815852 | G32: 0.7689153846 | H32: 0.3053963965 | I32: 0.796453422 | J32: 0.7872582635 | K32: 0.5803007295 | L32: -0.1124062294 | M32: 0.06536869079
A33: Annual% | B33: =+B30/B24*100-100 -> 8.510914835 | C33: =+C30/C24*100-100 -> 8.902805294 | D33: =+D30/D24*100-100 -> 8.950657589 | E33: 9.182558759 | F33: 9.275609062 | G33: 9.792803157 | H33: 9.657052778 | I33: 9.903586438 | J33: 9.848260669 | K33: 9.399777371 | L33: 8.428582304 | M33: 7.398537929
B35: 2008-01-01 | C35: 2008-02-01 | D35: 2008-03-01 | E35: 2008-04-01 | F35: 2008-05-01 | G35: 2008-06-01 | H35: 2008-07-01 | I35: 2008-08-01 | J35: 2008-09-01 | K35: 2008-10-01 | L35: 2008-11-01 | M35: 2008-12-01
A36: HP | B36: 227827.1295 | C36: 228741.4316 | D36: 228118.9019 | E36: 227674.4814 | F36: 226200.5064 | G36: 224434.5886 | H36: 221197.9836 | I36: 218181.8847 | J36: 214541.3989 | K36: 210634.5054 | L36: 206130.6519 | M36: 202930.031
A37: Index | B37: 235.0860769 | C37: 236.0262065 | D37: 235.3635725 | E37: 234.9646059 | F37: 233.5998212 | G37: 231.7023164 | H37: 228.2902382 | I37: 225.1524361 | J37: 221.4854194 | K37: 217.4847387 | L37: 212.7583728 | M37: 209.3227504
A38: Monthly% | B38: =+B36/M30*100-100 -> 0.1731130416 | C38: =+C36/B36*100-100 -> 0.4013139785 | D38: =+D36/C36*100-100 -> -0.2721543151 | E38: =+E36/D36*100-100 -> -0.194819688 | F38: -0.6474045501 | G38: -0.7806869421 | H38: -1.442115059 | I38: -1.363529086 | J38: -1.668555513 | K38: -1.821044075 | L38: -2.138231611 | M38: -1.552714678
A39: Annual% | B39: =+B36/B30*100-100 -> 6.691595106 | C39: =+C36/C30*100-100 -> 5.845966083 | D39: =+D36/D30*100-100 -> 4.892241652 | E39: 3.831970346 | F39: 2.671368651 | G39: 1.092510814 | H39: -0.6687136765 | I39: -2.797298897 | J39: -5.165770235 | K39: -7.429928159 | L39: -9.307346505 | M39: -10.7738706
B41: 2009-01-01 | C41: 2009-02-01 | D41: 2009-03-01 | E41: 2009-04-01 | F41: 2009-05-01 | G41: 2009-06-01 | H41: 2009-07-01 | I41: 2009-08-01 | J41: 2009-09-01 | K41: 2009-10-01 | L41: 2009-11-01 | M41: 2009-12-01
A42: HP | B42: 201447.2912 | C42: 200195.6269 | D42: 198543.3072 | E42: 197695.0619 | F42: 198115.1643 | G42: 199629.1597 | H42: 201223.033 | I42: 203501.9412 | J42: 206187.3193 | K42: 208584.3864 | L42: 209002.7127 | M42: 213111.8095
A43: Index | B43: 207.6515445 | C43: 206.212217 | D43: 204.5761324 | E43: 203.859941 | F43: 204.5718708 | G43: 206.246616 | H43: 207.9057217 | I43: 210.2088433 | J43: 213.0717725 | K43: 215.5477441 | L43: 216.1690895 | M43: 220.4351526
A44: Monthly% | B44: =+B42/M36*100-100 -> -0.7306655034 | C44: =+C42/B42*100-100 -> -0.6213359281 | D44: =+D42/C42*100-100 -> -0.825352539 | E44: =+E42/D42*100-100 -> -0.4272343639 | F44: 0.2125002077 | G44: 0.7641996132 | H44: 0.798417108 | I44: 1.132528471 | J44: 1.319583562 | K44: 1.162567627 | L44: 0.2005549746 | M44: 1.966049509
A45: Annual% | B45: =+B42/B36*100-100 -> -11.57888363 | C45: =+C42/C36*100-100 -> -12.47950777 | D45: =+D42/D36*100-100 -> -12.96499084 | E45: -13.16766783 | F45: -12.41612696 | G45: -11.05240911 | H45: -9.0303493 | I45: -6.728305421 | J45: -3.893924246 | K45: -0.9733063862 | L45: 1.393320607 | M45: 5.017383822
B47: 2010-01-01 | C47: 2010-02-01 | D47: 2010-03-01 | E47: 2010-04-01 | F47: 2010-05-01 | G47: 2010-06-01 | H47: 2010-07-01 | I47: 2010-08-01 | J47: 2010-09-01 | K47: 2010-10-01 | L47: 2010-11-01 | M47: 2010-12-01
A48: HP | B48: 216322.8613 | C48: 219924.8725 | D48: 218537.5127 | E48: 217809.9155 | F48: 217968.902 | G48: 218732.6911 | H48: 219353.3237 | I48: 220110.6617 | J48: 220078.8974 | K48: 219216.3106 | L48: 217612.0816 | M48: 217601.6277
A49: Index | B49: 223.8820655 | C49: 227.5437122 | D49: 226.2066132 | E49: 225.3705733 | F49: 225.6158466 | G49: 226.4959378 | H49: 227.2420623 | I49: 228.0314574 | J49: 227.9339884 | K49: 227.0859979 | L49: 225.5648775 | M49: 225.5958923
A50: Monthly% | B50: =+B48/M42*100-100 -> 1.506745103 | C50: =+C48/B48*100-100 -> 1.6651089 | D50: =+D48/C48*100-100 -> -0.6308335088 | E50: =+E48/D48*100-100 -> -0.3329392681 | F50: 0.07299324105 | G50: 0.3504119457 | H50: 0.2837402186 | I50: 0.3452594084 | J50: -0.01443106368 | K50: -0.3919443618 | L50: -0.7318018389 | M50: -0.004803922318
A51: Annual% | B51: =+B48/B42*100-100 -> 7.384348501 | C51: =+C48/C42*100-100 -> 9.854983325 | D51: =+D48/D42*100-100 -> 10.07045054 | E51: 10.17468691 | F51: 10.02131147 | G51: 9.569509517 | H51: 9.010047415 | I51: 8.161455581 | J51: 6.737358101 | K51: 5.097181238 | L51: 4.119261774 | M51: 2.106789924
B53: 2011-01-01 | C53: 2011-02-01 | D53: 2011-03-01 | E53: 2011-04-01 | F53: 2011-05-01 | G53: 2011-06-01 | H53: 2011-07-01 | I53: 2011-08-01 | J53: 2011-09-01 | K53: 2011-10-01 | L53: 2011-11-01 | M53: 2011-12-01
A54: HP | B54: 218123.1469 | C54: 219783.2442 | D54: 219987.9204 | E54: 217896.5603 | F54: 215070.5516 | G54: 213541.4729 | H54: 214581.3429 | I54: 216103.808 | J54: 216078.3875 | K54: 216350.889 | L54: 215125.5152 | M54: 215194.3639
A55: Index | B55: 226.2144869 | C55: 228.0390153 | D55: 228.5029086 | E55: 226.1624434 | F55: 223.1024502 | G55: 221.4193565 | H55: 222.7809651 | I55: 224.5134764 | J55: 224.4719429 | K55: 224.8405596 | L55: 223.5791883 | M55: 223.8222335
A56: Monthly% | B56: =+B54/M48*100-100 -> 0.2396669919 | C56: =+C54/B54*100-100 -> 0.761082558 | D56: =+D54/C54*100-100 -> 0.09312641322 | E56: =+E54/D54*100-100 -> -0.9506704207 | F56: -1.296949676 | G56: -0.7109660746 | H56: 0.486963931 | I56: 0.7095049066 | J56: -0.01176309508 | K56: 0.1261123351 | L56: -0.5663826066 | M56: 0.03200393374
A57: Annual% | B57: =+B54/B48*100-100 -> 0.8322216333 | C57: =+C54/C48*100-100 -> -0.06439850922 | D57: =+D54/D48*100-100 -> 0.6636882084 | E57: 0.03978001155 | F57: -1.329708235 | G57: -2.373316098 | H57: -2.175476876 | I57: -1.820381455 | J57: -1.817761675 | K57: -1.307120586 | L57: -1.142660057 | M57: -1.106271042
B59: 2012-01-01 | C59: 2012-02-01 | D59: 2012-03-01 | E59: 2012-04-01 | F59: 2012-05-01 | G59: 2012-06-01 | H59: 2012-07-01 | I59: 2012-08-01 | J59: 2012-09-01 | K59: 2012-10-01 | L59: 2012-11-01 | M59: 2012-12-01
A60: HP | B60: 215889.2019 | C60: 216649.9492 | D60: 218490.0487 | E60: 219309.1046 | F60: 221366.3378 | G60: 221374.8588 | H60: 221152.4015 | I60: 220672.565 | J60: 220892.3878 | K60: 221300.2796 | L60: 221404.7153 | M60: 222092.4855
A61: Index | B61: 224.583729 | C61: 225.4728947 | D61: 227.4658434 | E61: 228.5751607 | F61: 231.1096648 | G61: 231.2511358 | H61: 231.2817902 | I61: 230.6121911 | J61: 231.1264234 | K61: 231.5027243 | L61: 231.7470449 | M61: 232.3455764
A62: Monthly% | B62: =+B60/M54*100-100 -> 0.3228885871 | C62: =+C60/B60*100-100 -> 0.352378592 | D62: =+D60/C60*100-100 -> 0.8493421937 | E62: =+E60/D60*100-100 -> 0.3748710673 | F62: 0.9380518887 | G62: 0.00384925423 | H62: -0.1004889521 | I62: -0.2169709834 | J62: 0.0996149486 | K62: 0.1846563209 | L62: 0.0471918484 | M62: =+M60/L60*100-100 -> 0.3106393575
A63: Annual% | B63: =+B60/B54*100-100 -> -1.024166879 | C63: =+C60/C54*100-100 -> -1.425629572 | D63: =+D60/D54*100-100 -> -0.6808881785 | E63: 0.6482637081 | F63: 2.927312088 | G63: 3.668320611 | H63: 3.062269324 | I63: 2.114149206 | J63: 2.227895328 | K63: 2.287668231 | L63: 2.918854161 | M63: =+M60/M54*100-100 -> 3.205530799
B65: 2013-01-01 | C65: 2013-02-01 | D65: 2013-03-01 | E65: 2013-04-01 | F65: 2013-05-01 | G65: 2013-06-01 | H65: 2013-07-01 | I65: 2013-08-01 | J65: 2013-09-01 | K65: 2013-10-01 | L65: 2013-11-01 | M65: 2013-12-01
A66: HP | B66: 222828.0624 | C66: 224736.0066 | D66: 225563.6021 | E66: 226164.1029 | F66: 225918.1874 | G66: 226228.0398 | H66: 227080.3239 | I66: 228563.6898 | J66: 230019.5641 | K66: 231440.0157 | L66: 232463.6719 | M66: 234563.6203
A67: Index | B67: 233.2596034 | C67: 235.1989609 | D67: 236.286859 | E67: 236.8967075 | F67: 236.8215354 | G67: 237.0157063 | H67: 237.8880934 | I67: 239.4931005 | J67: 240.7860848 | K67: 242.1151601 | L67: 242.8982552 | M67: 244.0571436
A68: Monthly% | B68: =+B66/M60*100-100 -> 0.3312029828 | C68: =+C66/B66*100-100 -> 0.8562405262 | D68: =+D66/C66*100-100 -> 0.3682523045 | E68: =+E66/D66*100-100 -> 0.2662223958 | F68: -0.1087332459 | G68: 0.1371525081 | H68: 0.3767367124 | I68: 0.6532340215 | J68: 0.6369665493 | K68: 0.6175351424 | L68: 0.4422986929 | M68: 0.903344768
A69: Annual% | B69: =+B66/B60*100-100 -> 3.214084098 | C69: =+C66/C60*100-100 -> 3.732314445 | D69: =+D66/D60*100-100 -> 3.237471677 | E69: 3.125724444 | F69: 2.056251897 | G69: 2.192290966 | H69: 2.680469371 | I69: 3.575942872 | J69: 4.131955987 | K69: 4.581890338 | L69: 4.994905635 | M69: 5.615288967
B71: 2014-01-01 | C71: 2014-02-01 | D71: 2014-03-01 | E71: 2014-04-01 | F71: 2014-05-01 | G71: 2014-06-01 | H71: 2014-07-01 | I71: 2014-08-01 | J71: 2014-09-01 | K71: 2014-10-01 | L71: 2014-11-01 | M71: 2014-12-01
A72: HP | B72: 237782.4177 | C72: 240132.3952 | D72: 242575.4322 | E72: 243916.5801 | F72: 246293.5897 | G72: 248306.8163 | H72: 249917.6415 | I72: 251785.8694 | J72: 253228.4544 | K72: 254149.0336 | L72: 254163.7878 | M72: 254509.4954
A73: Index | B73: 247.8155064 | C73: 250.1686227 | D73: 252.7688035 | E73: 254.3262087 | F73: 257.2464787 | G73: 260.069332 | H73: 261.52957 | I73: 263.4723034 | J73: 264.9046899 | K73: 266.0700496 | L73: 266.3469179 | M73: 265.6588618
A74: Monthly% | B74: =B72/M66*100-100 -> 1.372249185 | C74: =+C72/B72*100-100 -> 0.9882890192 | D74: 1.01737087 | E74: 0.5528786971 | F74: 0.9745174377 | G74: 0.817409253 | H74: 0.6487237 | I74: 0.747537432 | J74: 0.5729412159 | K74: 0.3635369966 | L74: 0.005805339669 | M74: 0.1360176571
A75: Annual% | B75: =B72/B66*100-100 -> 6.711163354 | C75: 6.850877547 | D75: 7.541921644 | E75: 7.84937882 | F75: 9.018929643 | G75: 9.759522524 | H75: =H72/H66*100-100 -> 10.05693369 | I75: 10.16004755 | J75: 10.08996363 | K75: 9.812053353 | L75: 9.33484174 | M75: 8.503396673
B77: 2015-01-01 | C77: 2015-02-01 | D77: 2015-03-01 | E77: 2015-04-01 | F77: 2015-05-01 | G77: 2015-06-01 | H77: 2015-07-01 | I77: 2015-08-01 | J77: 2015-09-01 | K77: 2015-10-01 | L77: 2015-11-01 | M77: 2015-12-01
A78: HP | B78: 255974.3067 | C78: 257239.9039 | D78: 257907.4173 | E78: 258526.3881 | F78: 259614.5994 | G78: 261047.3514 | H78: 262197.1331 | I78: 264709.1419 | J78: 266706.4241 | K78: 269488.9874 | L78: 270061.5229 | M78: 272125.7611
A79: Index | B79: 266.9283519 | C79: 267.8797863 | D79: 268.3067829 | E79: 269.154968 | F79: 270.3396122 | G79: 272.1630768 | H79: 273.2768059 | I79: 276.2881506 | J79: 278.1160951 | K79: 280.4862979 | L79: 280.2939328 | M79: 281.1992468
A80: Monthly% | B80: =B78/M72*100-100 -> 0.5755428877 | C80: =+C78/B78*100-100 -> 0.4944235235 | D80: 0.2594906288 | E80: 0.2399972726 | F80: 0.4209285217 | G80: 0.55187652 | H80: 0.4404494761 | I80: 0.9580611279 | J80: 0.7545195413 | K80: 1.043305695 | L80: 0.2124522656 | M80: 0.764358504
A81: Annual% | B81: =B78/B72*100-100 -> 7.650645155 | C81: 7.124198576 | D81: 6.320502017 | E81: 5.989673993 | F81: 5.408589674 | G81: 5.130964697 | H81: =H78/H72*100-100 -> 4.913415291 | I81: 5.132644073 | J81: 5.322454664 | K81: 6.035810431 | L81: 6.254917454 | M81: 6.921653623
B83: 2016-01-01 | C83: 2016-02-01 | D83: 2016-03-01 | E83: 2016-04-01 | F83: 2016-05-01 | G83: 2016-06-01 | H83: 2016-07-01 | I83: 2016-08-01 | J83: 2016-09-01 | K83: 2016-10-01 | L83: 2016-11-01 | M83: 2016-12-01
A84: HP | B84: 274297.0904 | C84: 279967.2676 | D84: 280440.433 | E84: 280424.7988 | F84: 278466.7371 | G84: 279398.1039 | H84: 279790.6315 | I84: 280598.9952 | J84: 282384.7393 | K84: 285117.6256 | L84: 286918.6226 | M84: 289050.6044
A85: Index | B85: 283.6070224 | C85: 289.6191685 | D85: 290.0568499 | E85: 289.886402 | F85: 287.6805537 | G85: 288.4834382 | H85: 288.660636 | I85: 289.259014 | J85: 289.7113087 | K85: 290.7009058 | L85: 290.463393 | M85: 291.3745783
A86: Monthly% | B86: =B84/M78*100-100 -> 0.7979139046 | C86: =+C84/B84*100-100 -> 2.067166379 | D86: 0.169007405 | E86: -0.005574895757 | F86: -0.6982483889 | G86: 0.3344624992 | H86: 0.140490401 | I86: 0.2889173665 | J86: 0.6364043142 | K86: 0.9677882254 | L86: 0.6316680914 | M86: 0.7430614827
A87: Annual% | B87: =B84/B78*100-100 -> 7.158055796 | C87: 8.835084837 | D87: 8.736862222 | E87: 8.470474076 | F87: 7.261586129 | G87: 7.029664324 | H87: =H84/H78*100-100 -> 6.710026974 | I87: 6.00275954 | J87: 5.878491765 | K87: 5.799360587 | L87: 6.241947963 | M87: 6.219493228
B89: 2017-01-01 | C89: 2017-02-01 | D89: 2017-03-01 | E89: 2017-04-01 | F89: 2017-05-01 | G89: 2017-06-01 | H89: 2017-07-01 | I89: 2017-08-01 | J89: 2017-09-01 | K89: 2017-10-01 | L89: 2017-11-01 | M89: 2017-12-01
A90: HP | B90: 291359.0056 | C90: 293203.0294 | D90: 294763.389 | E90: 294643.9414 | F90: 294453.6917 | G90: 293250.2471 | H90: 293035.5451 | I90: 293434.3246 | J90: 295305.2199 | K90: 296747.0358 | L90: 297984.6939 | M90: 299986.9766
A91: Index | B91: 293.717394 | C91: 295.4561045 | D91: 297.0779214 | E91: 296.9120858 | F91: 296.5527202 | G91: 295.0778387 | H91: 294.6765186 | I91: 294.6694209 | J91: 295.3046342 | K91: 294.3450265 | L91: 293.1622923 | M91: 292.0688766
A92: Monthly% | B92: =B90/M84*100-100 -> 0.7986148934 | C92: =+C90/B90*100-100 -> 0.632904356 | D92: 0.5321771686 | E92: -0.04052321028 | F92: -0.06456934398 | G92: -0.408704197 | H92: -0.07321461454 | I92: 0.1360857129 | J92: 0.6375857082 | K92: 0.4882459821 | L92: 0.4170751261 | M92: 0.6719414544
A93: Annual% | B93: =B90/B84*100-100 -> 6.22023192 | C93: 4.727610442 | D93: =D90/D84*100-100 -> 5.107307741 | E93: 5.07057246 | F93: =F90/F84*100-100 -> 5.741064359 | G93: 4.957851538 | H93: =H90/H84*100-100 -> 4.733866023 | I93: 4.574260651 | J93: =J90/J84*100-100 -> 4.575488273 | K93: 4.078811411 | L93: =L90/L84*100-100 -> 3.856867552 | M93: 3.783549318
B95: 2018-01-01 | C95: 2018-02-01 | D95: 2018-03-01 | E95: 2018-04-01 | F95: 2018-05-01 | G95: 2018-06-01 | H95: 2018-07-01 | I95: 2018-08-01 | J95: 2018-09-01 | K95: 2018-10-01 | L95: 2018-11-01 | M95: 2018-12-01
A96: HP | B96: 302470.1535 | C96: 303997.0611 | D96: 303104.1008 | E96: 301218.2062 | F96: 299764.5767 | G96: 299516.6783 | H96: 298724.9122 | I96: 299427.6038 | J96: 299811.08 | K96: 301514.5331 | L96: 300921.7645 | M96: 300969.4388
A97: Index | B97: 294.4487863 | C97: 295.8459106 | D97: 294.9197765 | E97: 292.9244642 | F97: 291.4716024 | G97: 291.0018409 | H97: 290.2357334 | I97: 290.7584248 | J97: 291.0582891 | K97: 292.8236948 | L97: 292.6495486 | M97: 292.3665621
A98: Monthly% | B98: =B96/M90*100-100 -> 0.8277615663 | C98: =+C96/B96*100-100 -> 0.5048126799 | D98: -0.2937397922 | E98: -0.6221937101 | F98: -0.4825835326 | G98: -0.08269768267 | H98: -0.2643479389 | I98: 0.2352303581 | J98: 0.1280697464 | K98: 0.5681754785 | L98: -0.1965970142 | M98: 0.01584274722
A99: Annual% | B99: =B96/B90*100-100 -> 3.813559107 | C99: 3.6814189 | D99: =D96/D90*100-100 -> 2.829629505 | E99: 2.231257405 | F99: =F96/F90*100-100 -> 1.803640134 | G99: 2.136888634 | H99: =H96/H90*100-100 -> 1.94152797 | I99: 2.042460182 | J99: =J96/J90*100-100 -> 1.52583151 | K99: 1.606586314 | L99: =L96/L90*100-100 -> 0.9856447937 | M99: 0.3275016206
B101: 2019-01-01 | C101: 2019-02-01 | D101: 2019-03-01 | E101: 2019-04-01 | F101: 2019-05-01 | G101: 2019-06-01 | H101: 2019-07-01 | I101: 2019-08-01 | J101: 2019-09-01 | K101: 2019-10-01 | L101: 2019-11-01 | M101: 2019-12-01
A102: HP | B102: 301071.9168 | C102: 302435.1836
A103: Index | B103: =M97*B102/M96 -> 292.4661109 | C103: =+B103/B102*C102 -> 293.7904102
A104: Monthly% | B104: =B102/M96*100-100 -> 0.03404933146 | C104: =+C102/B102*100-100 -> 0.4528043419
A105: Annual% | B105: =B102/B96*100-100 -> -0.4622725873 | C105: -0.5137804867

Sheet SERIES CHARTS
B2: LSL ACADATA E&W HPI NATIONAL AND REGIONAL FORMATTED DATA FROM 2005 | M2: =SERIES!$K$2 -> 18th March 2019
B3: A TRUE MEASURE OF HOUSE PRICE INFLATION | M3: =SERIES!$K$3 -> FEBRUARY 2019
B4: For data prior to 2005 please see | E4: APAT LGA
O5: © Acadata Limited
O6: LSL Acadata E&W HPI clb/cms
O7: www.acadata.co.uk

Sheet DATA
B2: LSL ACADATA E&W HPI NATIONAL AND REGIONAL FORMATTED DATA FROM 2005
B3: A TRUE MEASURE OF HOUSE PRICE INFLATION | J3: =SERIES!$K$2 -> 18th March 2019
B4: For data prior to 2005 please see | E4: APAT LGA | H4: =SERIES!$K$3 -> FEBRUARY 2019
B5: In this LSL Acadata Data Series, new weights have been adopted from April 2004 and prices on and after this date have been recalculated based on these new weights. The Index however remains based on the original weights and has not been re-cast. There is therefore discontinuity between the recalculated prices and the original Index.
H6: LSL Acadata E&W HPI clb/cms
D9: Month | E9: Average House Price | F9: Index | G9: Monthly% | H9: Annual%
D10: 2005-01-01 | E10: 190271.8492 | F10: 194.6273523 | G10: 0.4115428069 | H10: 12.42897829
D11: 2005-02-01 | E11: 191414.9615 | F11: 195.7195186 | G11: 0.6007784313 | H11: 11.56690303
D12: 2005-03-01 | E12: 191307.3842 | F12: 195.6551615 | G12: -0.05620105788 | H12: 10.05668617
D13: 2005-04-01 | E13: 191385.9312 | F13: 195.7536815 | G13: 0.04105799294 | H13: 8.82201599
D14: 2005-05-01 | E14: 190789.1467 | F14: 195.1941451 | G14: -0.3118225755 | H14: 7.129963685
D15: 2005-06-01 | E15: 191309.8439 | F15: 195.7926608 | G15: 0.2729176478 | H15: 6.16485479
D16: 2005-07-01 | E16: 191319.5554 | F16: 195.8667879 | G16: 0.005076298903 | H16: 4.98517799
D17: 2005-08-01 | E17: 191569.0711 | F17: 196.1748084 | G17: 0.1304183049 | H17: 3.942171669
D18: 2005-09-01 | E18: 192146.5893 | F18: 196.7364411 | G18: 0.3014673324 | H18: 3.340515889
D19: 2005-10-01 | E19: 193274.487 | F19: 197.9376874 | G19: 0.5869985931 | H19: 3.02393651
D20: 2005-11-01 | E20: 194204.6291 | F20: 198.8839387 | G20: 0.4812544204 | H20: 3.024629596
D21: 2005-12-01 | E21: 195787.1787 | F21: 200.6449221 | G21: 0.8148876801 | H21: 3.322129622
D22: 2006-01-01 | E22: 196789.4469 | F22: 201.6606224 | G22: =+E22/E21*100-100 -> 0.5119172083 | H22: =+E22/E10*100-100 -> 3.425413534
D23: 2006-02-01 | E23: 198441.0226 | F23: 203.3743721 | G23: =+E23/E22*100-100 -> 0.839260313 | H23: =+E23/E11*100-100 -> 3.67059143
D24: 2006-03-01 | E24: 199612.6451 | F24: 204.5109404 | G24: =+E24/E23*100-100 -> 0.5904134536 | H24: =+E24/E12*100-100 -> 4.341317474
D25: 2006-04-01 | E25: 200830.6494 | F25: 205.8608886 | G25: 0.6101839004 | H25: 4.934907228
D26: 2006-05-01 | E26: 201614.1391 | F26: 206.8261824 | G26: 0.3901245919 | H26: 5.673798867
D27: 2006-06-01 | E27: 202207.3475 | F27: 207.510648 | G27: 0.2942295532 | H27: 5.696258671
D28: 2006-07-01 | E28: 203075.9693 | F28: 208.3876235 | G28: 0.4295698557 | H28: 6.144909704
D29: 2006-08-01 | E29: 204234.2105 | F29: 209.5672334 | G29: 0.5703487119 | H29: 6.611265224
D30: 2006-09-01 | E30: 205945.7348 | F30: 211.3531339 | G30: 0.8380204011 | H30: 7.18157195
D31: 2006-10-01 | E31: 207990.0112 | F31: 213.4431741 | G31: 0.992628671 | H31: 7.613795498
D32: 2006-11-01 | E32: 209617.0904 | F32: 215.1395739 | G32: 0.7822871833 | H32: 7.93619671
D33: 2006-12-01 | E33: 211765.8368 | F33: 217.4753687 | G33: 1.025081664 | H33: 8.161238266
D34: 2007-01-01 | E34: 213538.0291 | F34: 219.4963176 | G34: 0.8368641391 | H34: 8.510914835
D35: 2007-02-01 | E35: 216107.8405 | F35: 222.2308868 | G35: 1.203444358 | H35: 8.902805294
D36: 2007-03-01 | E36: 217479.2895 | F36: 223.6998581 | G36: 0.6346132533 | H36: 8.950657589
D37: 2007-04-01 | E37: 219272.0417 | F37: 225.5798747 | G37: 0.8243323956 | H37: 9.182558759
D38: 2007-05-01 | E38: 220315.0785 | F38: 226.8685956 | G38: 0.4756815852 | H38: 9.275609062
D39: 2007-06-01 | E39: 222009.115 | F39: 228.8121942 | G39: 0.7689153846 | H39: 9.792803157
D40: 2007-07-01 | E40: 222687.1228 | F40: 229.7011053 | G40: 0.3053963965 | H40: 9.657052778
D41: 2007-08-01 | E41: 224460.722 | F41: 231.6302491 | G41: 0.796453422 | H41: 9.903586438
D42: 2007-09-01 | E42: 226227.8076 | F42: 233.3844212 | G42: 0.7872582635 | H42: 9.848260669
D43: 2007-10-01 | E43: 227540.6092 | F43: 234.663941 | G43: 0.5803007295 | H43: 9.399777371
D44: 2007-11-01 | E44: 227284.8394 | F44: 234.3124214 | G44: -0.1124062294 | H44: 8.428582304
D45: 2007-12-01 | E45: 227433.4126 | F45: 234.5554226 | G45: 0.06536869079 | H45: 7.398537929
D46: 2008-01-01 | E46: 227827.1295 | F46: 235.0860769 | G46: 0.1731130416 | H46: 6.691595106
D47: 2008-02-01 | E47: 228741.4316 | F47: 236.0262065 | G47: 0.4013139785 | H47: 5.845966083
D48: 2008-03-01 | E48: 228118.9019 | F48: 235.3635725 | G48: -0.2721543151 | H48: 4.892241652
D49: 2008-04-01 | E49: 227674.4814 | F49: 234.9646059 | G49: -0.194819688 | H49: 3.831970346
D50: 2008-05-01 | E50: 226200.5064 | F50: 233.5998212 | G50: -0.6474045501 | H50: 2.671368651
D51: 2008-06-01 | E51: 224434.5886 | F51: 231.7023164 | G51: -0.7806869421 | H51: 1.092510814
D52: 2008-07-01 | E52: 221197.9836 | F52: 228.2902382 | G52: -1.442115059 | H52: -0.6687136765
D53: 2008-08-01 | E53: 218181.8847 | F53: 225.1524361 | G53: -1.363529086 | H53: -2.797298897
D54: 2008-09-01 | E54: 214541.3989 | F54: 221.4854194 | G54: -1.668555513 | H54: -5.165770235
D55: 2008-10-01 | E55: 210634.5054 | F55: 217.4847387 | G55: -1.821044075 | H55: -7.429928159
D56: 2008-11-01 | E56: 206130.6519 | F56: 212.7583728 | G56: -2.138231611 | H56: -9.307346505
D57: 2008-12-01 | E57: 202930.031 | F57: 209.3227504 | G57: -1.552714678 | H57: -10.7738706
D58: 2009-01-01 | E58: 201447.2912 | F58: 207.6515445 | G58: -0.7306655034 | H58: -11.57888363
D59: 2009-02-01 | E59: 200195.6269 | F59: 206.212217 | G59: -0.6213359281 | H59: -12.47950777
D60: 2009-03-01 | E60: 198543.3072 | F60: 204.5761324 | G60: -0.825352539 | H60: -12.96499084
D61: 2009-04-01 | E61: 197695.0619 | F61: 203.859941 | G61: -0.4272343639 | H61: -13.16766783
D62: 2009-05-01 | E62: 198115.1643 | F62: 204.5718708 | G62: 0.2125002077 | H62: -12.41612696
D63: 2009-06-01 | E63: 199629.1597 | F63: 206.246616 | G63: 0.7641996132 | H63: -11.05240911
D64: 2009-07-01 | E64: 201223.033 | F64: 207.9057217 | G64: 0.798417108 | H64: -9.0303493
D65: 2009-08-01 | E65: 203501.9412 | F65: 210.2088433 | G65: 1.132528471 | H65: -6.728305421
D66: 2009-09-01 | E66: 206187.3193 | F66: 213.0717725 | G66: 1.319583562 | H66: -3.893924246
D67: 2009-10-01 | E67: 208584.3864 | F67: 215.5477441 | G67: 1.162567627 | H67: -0.9733063862
D68: 2009-11-01 | E68: 209002.7127 | F68: 216.1690895 | G68: 0.2005549746 | H68: 1.393320607
D69: 2009-12-01 | E69: 213111.8095 | F69: 220.4351526 | G69: 1.966049509 | H69: 5.017383822
D70: 2010-01-01 | E70: 216322.8613 | F70: 223.8820655 | G70: 1.506745103 | H70: 7.384348501
D71: 2010-02-01 | E71: 219924.8725 | F71: 227.5437122 | G71: 1.6651089 | H71: 9.854983325
D72: 2010-03-01 | E72: 218537.5127 | F72: 226.2066132 | G72: -0.6308335088 | H72: 10.07045054
D73: 2010-04-01 | E73: 217809.9155 | F73: 225.3705733 | G73: -0.3329392681 | H73: 10.17468691
D74: 2010-05-01 | E74: 217968.902 | F74: 225.6158466 | G74: 0.07299324105 | H74: 10.02131147
D75: 2010-06-01 | E75: 218732.6911 | F75: 226.4959378 | G75: 0.3504119457 | H75: 9.569509517
D76: 2010-07-01 | E76: 219353.3237 | F76: 227.2420623 | G76: 0.2837402186 | H76: 9.010047415
D77: 2010-08-01 | E77: 220110.6617 | F77: 228.0314574 | G77: 0.3452594084 | H77: 8.161455581
D78: 2010-09-01 | E78: 220078.8974 | F78: 227.9339884 | G78: -0.01443106368 | H78: 6.737358101
D79: 2010-10-01 | E79: 219216.3106 | F79: 227.0859979 | G79: -0.3919443618 | H79: 5.097181238
D80: 2010-11-01 | E80: 217612.0816 | F80: 225.5648775 | G80: -0.7318018389 | H80: 4.119261774
D81: 2010-12-01 | E81: 217601.6277 | F81: 225.5958923 | G81: -0.004803922318 | H81: 2.106789924
D82: 2011-01-01 | E82: 218123.1469 | F82: 226.2144869 | G82: 0.2396669919 | H82: 0.8322216333
D83: 2011-02-01 | E83: 219783.2442 | F83: 228.0390153 | G83: 0.761082558 | H83: -0.06439850922
D84: 2011-03-01 | E84: 219987.9204 | F84: 228.5029086 | G84: 0.09312641322 | H84: 0.6636882084
D85: 2011-04-01 | E85: 217896.5603 | F85: 226.1624434 | G85: -0.9506704207 | H85: 0.03978001155
D86: 2011-05-01 | E86: 215070.5516 | F86: 223.1024502 | G86: -1.296949676 | H86: -1.329708235
D87: 2011-06-01 | E87: 213541.4729 | F87: 221.4193565 | G87: -0.7109660746 | H87: -2.373316098
D88: 2011-07-01 | E88: 214581.3429 | F88: 222.7809651 | G88: =+E88/E87*100-100 -> 0.486963931 | H88: =+E88/E76*100-100 -> -2.175476876
D89: 2011-08-01 | E89: 216103.808 | F89: 224.5134764 | G89: 0.7095049066 | H89: -1.820381455
D90: 2011-09-01 | E90: 216078.3875 | F90: 224.4719429 | G90: -0.01176309508 | H90: -1.817761675
D91: 2011-10-01 | E91: 216350.889 | F91: 224.8405596 | G91: 0.1261123351 | H91: -1.307120586
D92: 2011-11-01 | E92: 215125.5152 | F92: 223.5791883 | G92: -0.5663826066 | H92: -1.142660057
D93: 2011-12-01 | E93: 215194.3639 | F93: 223.8222335 | G93: 0.03200393374 | H93: -1.106271042
D94: 2012-01-01 | E94: 215889.2019 | F94: 224.583729 | G94: 0.3228885871 | H94: -1.024166879
D95: 2012-02-01 | E95: 216649.9492 | F95: 225.4728947 | G95: 0.352378592 | H95: -1.425629572
D96: 2012-03-01 | E96: 218490.0487 | F96: 227.4658434 | G96: 0.8493421937 | H96: -0.6808881785
D97: 2012-04-01 | E97: 219309.1046 | F97: 228.5751607 | G97: 0.3748710673 | H97: 0.6482637081
D98: 2012-05-01 | E98: 221366.3378 | F98: 231.1096648 | G98: 0.9380518887 | H98: 2.927312088
D99: 2012-06-01 | E99: 221374.8588 | F99: 231.2511358 | G99: 0.00384925423 | H99: 3.668320611
D100: 2012-07-01 | E100: 221152.4015 | F100: 231.2817902 | G100: -0.1004889521 | H100: 3.062269324
D101: 2012-08-01 | E101: 220672.565 | F101: 230.6121911 | G101: -0.2169709834 | H101: 2.114149206
D102: 2012-09-01 | E102: 220892.3878 | F102: 231.1264234 | G102: 0.0996149486 | H102: 2.227895328
D103: 2012-10-01 | E103: 221300.2796 | F103: 231.5027243 | G103: 0.1846563209 | H103: 2.287668231
D104: 2012-11-01 | E104: 221404.7153 | F104: 231.7470449 | G104: 0.0471918484 | H104: 2.918854161
D105: 2012-12-01 | E105: 222092.4855 | F105: 232.3455764 | G105: 0.3106393575 | H105: 3.205530799
D106: 2013-01-01 | E106: 222828.0624 | F106: 233.2596034 | G106: 0.3312029828 | H106: 3.214084098
D107: 2013-02-01 | E107: 224736.0066 | F107: 235.1989609 | G107: 0.8562405262 | H107: 3.732314445
D108: 2013-03-01 | E108: 225563.6021 | F108: 236.286859 | G108: 0.3682523045 | H108: 3.237471677
D109: 2013-04-01 | E109: 226164.1029 | F109: 236.8967075 | G109: 0.2662223958 | H109: 3.125724444
D110: 2013-05-01 | E110: 225918.1874 | F110: 236.8215354 | G110: -0.1087332459 | H110: 2.056251897
D111: 2013-06-01 | E111: 226228.0398 | F111: 237.0157063 | G111: 0.1371525081 | H111: 2.192290966
D112: 2013-07-01 | E112: 227080.3239 | F112: 237.8880934 | G112: 0.3767367124 | H112: 2.680469371
D113: 2013-08-01 | E113: 228563.6898 | F113: 239.4931005 | G113: 0.6532340215 | H113: 3.575942872
D114: 2013-09-01 | E114: 230019.5641 | F114: 240.7860848 | G114: 0.6369665493 | H114: 4.131955987
D115: 2013-10-01 | E115: 231440.0157 | F115: 242.1151601 | G115: 0.6175351424 | H115: 4.581890338
D116: 2013-11-01 | E116: 232463.6719 | F116: 242.8982552 | G116: 0.4422986929 | H116: 4.994905635
D117: 2013-12-01 | E117: 234563.6203 | F117: 244.0571436 | G117: 0.903344768 | H117: 5.615288967
D118: 2014-01-01 | E118: 237782.4177 | F118: 247.8155064 | G118: 1.372249185 | H118: 6.711163354
D119: 2014-02-01 | E119: 240132.3952 | F119: 250.1686227 | G119: 0.9882890192 | H119: 6.850877547
D120: 2014-03-01 | E120: 242575.4322 | F120: 252.7688035 | G120: 1.01737087 | H120: 7.541921644
D121: 2014-04-01 | E121: 243916.5801 | F121: 254.3262087 | G121: 0.5528786971 | H121: 7.84937882
D122: 2014-05-01 | E122: 246293.5897 | F122: 257.2464787 | G122: 0.9745174377 | H122: 9.018929643
D123: 2014-06-01 | E123: 248306.8163 | F123: 260.069332 | G123: 0.817409253 | H123: 9.759522524
D124: 2014-07-01 | E124: 249917.6415 | F124: 261.52957 | G124: 0.6487237 | H124: 10.05693369
D125: 2014-08-01 | E125: 251785.8694 | F125: 263.4723034 | G125: 0.747537432 | H125: 10.16004755
D126: 2014-09-01 | E126: 253228.4544 | F126: 264.9046899 | G126: 0.5729412159 | H126: 10.08996363
D127: 2014-10-01 | E127: 254149.0336 | F127: 266.0700496 | G127: 0.3635369966 | H127: 9.812053353
D128: 2014-11-01 | E128: 254163.7878 | F128: 266.3469179 | G128: 0.005805339669 | H128: 9.33484174
D129: 2014-12-01 | E129: 254509.4954 | F129: 265.6588618 | G129: 0.1360176571 | H129: 8.503396673
D130: 2015-01-01 | E130: 255974.3067 | F130: 266.9283519 | G130: 0.5755428877 | H130: 7.650645155
D131: 2015-02-01 | E131: 257239.9039 | F131: 267.8797863 | G131: 0.4944235235 | H131: 7.124198576
D132: 2015-03-01 | E132: 257907.4173 | F132: 268.3067829 | G132: 0.2594906288 | H132: 6.320502017
D133: 2015-04-01 | E133: 258526.3881 | F133: 269.154968 | G133: 0.2399972726 | H133: 5.989673993
D134: 2015-05-01 | E134: 259614.5994 | F134: 270.3396122 | G134: 0.4209285217 | H134: 5.408589674
D135: 2015-06-01 | E135: 261047.3514 | F135: 272.1630768 | G135: 0.55187652 | H135: 5.130964697
D136: 2015-07-01 | E136: 262197.1331 | F136: 273.2768059 | G136: 0.4404494761 | H136: 4.913415291
D137: 2015-08-01 | E137: 264709.1419 | F137: 276.2881506 | G137: 0.9580611279 | H137: 5.132644073
D138: 2015-09-01 | E138: 266706.4241 | F138: 278.1160951 | G138: 0.7545195413 | H138: 5.322454664
D139: 2015-10-01 | E139: 269488.9874 | F139: 280.4862979 | G139: 1.043305695 | H139: 6.035810431
D140: 2015-11-01 | E140: 270061.5229 | F140: 280.2939328 | G140: 0.2124522656 | H140: 6.254917454
D141: 2015-12-01 | E141: 272125.7611 | F141: 281.1992468 | G141: 0.764358504 | H141: 6.921653623
D142: 2016-01-01 | E142: 274297.0904 | F142: 283.6070224 | G142: 0.7979139046 | H142: 7.158055796
D143: 2016-02-01 | E143: 279967.2676 | F143: 289.6191685 | G143: 2.067166379 | H143: 8.835084837
D144: 2016-03-01 | E144: 280440.433 | F144: 290.0568499 | G144: 0.169007405 | H144: 8.736862222
D145: 2016-04-01 | E145: 280424.7988 | F145: 289.886402 | G145: -0.005574895757 | H145: 8.470474076
D146: 2016-05-01 | E146: 278466.7371 | F146: 287.6805537 | G146: -0.6982483889 | H146: 7.261586129
D147: 2016-06-01 | E147: 279398.1039 | F147: 288.4834382 | G147: 0.3344624992 | H147: 7.029664324
D148: 2016-07-01 | E148: 279790.6315 | F148: 288.660636 | G148: 0.140490401 | H148: 6.710026974
D149: 2016-08-01 | E149: 280598.9952 | F149: 289.259014 | G149: 0.2889173665 | H149: 6.00275954
D150: 2016-09-01 | E150: 282384.7393 | F150: 289.7113087 | G150: 0.6364043142 | H150: 5.878491765
D151: 2016-10-01 | E151: 285117.6256 | F151: 290.7009058 | G151: 0.9677882254 | H151: 5.799360587
D152: 2016-11-01 | E152: 286918.6226 | F152: 290.463393 | G152: =+E152/E151*100-100 -> 0.6316680914 | H152: =+E152/E140*100-100 -> 6.241947963
D153: 2016-12-01 | E153: 289050.6044 | F153: 291.3745783 | G153: 0.7430614827 | H153: 6.219493228
D154: 2017-01-01 | E154: 291359.0056 | F154: 293.717394 | G154: 0.7986148934 | H154: 6.22023192
D155: 2017-02-01 | E155: 293203.0294 | F155: 295.4561045 | G155: 0.632904356 | H155: 4.727610442
D156: 2017-03-01 | E156: 294763.389 | F156: 297.0779214 | G156: 0.5321771686 | H156: 5.107307741
D157: 2017-04-01 | E157: 294643.9414 | F157: 296.9120858 | G157: -0.04052321028 | H157: 5.07057246
D158: 2017-05-01 | E158: 294453.6917 | F158: 296.5527202 | G158: -0.06456934398 | H158: 5.741064359
D159: 2017-06-01 | E159: 293250.2471 | F159: 295.0778387 | G159: -0.408704197 | H159: 4.957851538
D160: 2017-07-01 | E160: 293035.5451 | F160: 294.6765186 | G160: -0.07321461454 | H160: 4.733866023
D161: 2017-08-01 | E161: 293434.3246 | F161: 294.6694209 | G161: 0.1360857129 | H161: 4.574260651
D162: 2017-09-01 | E162: 295305.2199 | F162: 295.3046342 | G162: 0.6375857082 | H162: 4.575488273
D163: 2017-10-01 | E163: 296747.0358 | F163: 294.3450265 | G163: 0.4882459821 | H163: 4.078811411
D164: 2017-11-01 | E164: 297984.6939 | F164: 293.1622923 | G164: 0.4170751261 | H164: 3.856867552
D165: 2017-12-01 | E165: 299986.9766 | F165: 292.0688766 | G165: 0.6719414544 | H165: 3.783549318
D166: 2018-01-01 | E166: 302470.1535 | F166: 294.4487863 | G166: 0.8277615663 | H166: 3.813559107
D167: 2018-02-01 | E167: 303997.0611 | F167: 295.8459106 | G167: 0.5048126799 | H167: 3.6814189
D168: 2018-03-01 | E168: 303104.1008 | F168: 294.9197765 | G168: -0.2937397922 | H168: 2.829629505
D169: 2018-04-01 | E169: 301218.2062 | F169: 292.9244642 | G169: -0.6221937101 | H169: 2.231257405
D170: 2018-05-01 | E170: 299764.5767 | F170: 291.4716024 | G170: -0.4825835326 | H170: 1.803640134
D171: 2018-06-01 | E171: 299516.6783 | F171: 291.0018409 | G171: -0.08269768267 | H171: 2.136888634
D172: 2018-07-01 | E172: 298724.9122 | F172: 290.2357334 | G172: -0.2643479389 | H172: 1.94152797
D173: 2018-08-01 | E173: 299427.6038 | F173: 290.7584248 | G173: 0.2352303581 | H173: 2.042460182
D174: 2018-09-01 | E174: 299811.08 | F174: 291.0582891 | G174: 0.1280697464 | H174: 1.52583151
D175: 2018-10-01 | E175: 301514.5331 | F175: 292.8236948 | G175: 0.5681754785 | H175: 1.606586314
D176: 2018-11-01 | E176: 300921.7645 | F176: 292.6495486 | G176: -0.1965970142 | H176: 0.9856447937
D177: 2018-12-01 | E177: 300969.4388 | F177: 292.3665621 | G177: 0.01584274722 | H177: 0.3275016206
D178: 2019-01-01 | E178: 301071.9168 | F178: =F177*E178/E177 -> 292.4661109 | G178: 0.03404933146 | H178: -0.4622725873
D179: 2019-02-01 | E179: 302435.1836 | F179: 293.7904102 | G179: 0.4528043419 | H179: -0.5137804867

Sheet REGIONS
B2: LSL ACADATA E&W HPI NATIONAL AND REGIONAL FORMATTED DATA FROM 2005
B3: A TRUE MEASURE OF HOUSE PRICE INFLATION | J3: =SERIES!$K$2 -> 18th March 2019
B4: For data prior to 2005 please see | E4: APAT LGA | J4: =SERIES!$K$3 -> FEBRUARY 2019
J5: © Acadata Limited
B6: In these LSL Acadata Data Series, new weights have been adopted from April 2004 and prices on and after this date have been recalculated based on these new weights. | J6: LSL Acadata E&W HPI clb/cms
A10: Region | B10: North East | E10: North West | H10: Yorks & Humber | K10: East Midlands | N10: West Midlands | Q10: East of England | T10: Greater London | W10: South East | Z10: South West | AC10: Wales | AF10: ENGLAND & WALES
A11: Month | B11: Ave HP | C11: monthly % | D11: annual % | E11: Ave HP | F11: monthly % | G11: annual % | H11: Ave HP | I11: monthly % | J11: annual % | K11: Ave HP | L11: monthly % | M11: annual % | N11: Ave HP | O11: monthly % | P11: annual % | Q11: Ave HP | R11: monthly % | S11: annual % | T11: Ave HP | U11: monthly % | V11: annual % | W11: Ave HP | X11: monthly % | Y11: annual % | Z11: Ave HP | AA11: monthly % | AB11: annual % | AC11: Ave HP | AD11: monthly % | AE11: annual % | AF11: Ave HP | AG11: monthly % | AH11: annual %
A12: 2005-01-01 | B12: 134756.7201 | C12: 1.787195459 | D12: 18.41357745 | E12: 147565.1128 | F12: 0.6202324158 | G12: 17.72122221 | H12: 146570.9413 | I12: 1.224523287 | J12: 19.16050612 | K12: 160711.0954 | L12: 0.8558501427 | M12: 14.94844457 | N12: 166193.5832 | O12: -0.03406736774 | P12: 12.65906114 | Q12: 200762.357 | R12: 0.4202068529 | S12: 11.47132059 | T12: 271279.5386 | U12: 0.2331679206 | V12: 7.43113517 | W12: 232324.3428 | X12: 0.3789957423 | Y12: 9.252925948 | Z12: 203708.7319 | AA12: -0.1182368343 | AB12: 12.78372579 | AC12: 144041.1815 | AD12: 0.05234257765 | AE12: 19.84661039 | AF12: 190271.8492 | AG12: 0.4115428069 | AH12: 12.42897829
A13: 2005-02-01 | B13: 136369.4652 | C13: =B13/B12*100-100 -> 1.196782715 | D13: 18.24666448 | E13: 150284.2167 | F13: =E13/E12*100-100 -> 1.842646818 | G13: 17.97209576 | H13: 147649.4286 | I13: =H13/H12*100-100 -> 0.7358124963 | J13: 17.68656358 | K13: 161002.8294 | L13: =K13/K12*100-100 -> 0.1815269812 | M13: 13.3993613 | N13: 167724.0077 | O13: =N13/N12*100-100 -> 0.9208685961 | P13: 12.31091077 | Q13: 202187.3601 | R13: =Q13/Q12*100-100 -> 0.7097959475 | S13: 10.52030493 | T13: 271851.2781 | U13: =T13/T12*100-100 -> 0.2107565817 | V13: 7.075987743 | W13: 232609.8808 | X13: =W13/W12*100-100 -> 0.1229049159 | Y13: 7.815380763 | Z13: 204971.6459 | AA13: 0.591030347 | AB13: 11.77166275 | AC13: 145049.9126 | AD13: =AC13/AC12*100-100 -> 0.7003074231 | AE13: 18.64948655 | AF13: 191414.9615 | AG13: =AF13/AF12*100-100 -> 0.6007784313 | AH13: 11.56690303
A14: 2005-03-01 | B14: 137418.2599 | C14: 0.7690832532 | D14: 16.83165055 | E14: 149960.0229 | F14: -0.215720437 | G14: 16.18234169 | H14: 147812.1173 | I14: 0.1101857819 | J14: 15.0557187 | K14: 159651.8881 | L14: -0.8390792568 | M14: 11.50532094 | N14: 166719.6859 | O14: -0.5987943228 | P14: 10.19038133 | Q14: 201804.8859 | R14: -0.1891682023 | S14: 9.296533057 | T14: 273117.9143 | U14: 0.4659298156 | V14: 5.968935225 | W14: 233167.614 | X14: 0.2397719271 | Y14: 7.057199689 | Z14: 204303.4667 | AA14: -0.3364909269 | AB14: 9.848721283 | AC14: 144564.3788 | AD14: -0.3347356333 | AE14: 15.97348662 | AF14: 191307.3842 | AG14: -0.05620105788 | AH14: 10.05668617
A15: 2005-04-01 | B15: 136755.4199 | C15: -0.4823521965 | D15: 13.40575041 | E15: 150247.0447 | F15: 0.1913988827 | G15: 14.38827488 | H15: 147433.8456 | I15: -0.2559138504 | J15: 12.24617642 | K15: 158613.9968 | L15: -0.6500964638 | M15: 9.655213959 | N15: 168010.1 | O15: 0.7740022248 | P15: 10.03688952 | Q15: 202938.0664 | R15: 0.5615228469 | S15: 8.712671604 | T15: 272685.4489 | U15: -0.1583438497 | V15: 4.735857107 | W15: 232903.8483 | X15: -0.1131227746 | Y15: 6.155496492 | Z15: 204221.0557 | AA15: -0.05655692176 | AB15: 8.490142017 | AC15: 145502.1926 | AD15: 0.6487170412 | AE15: 15.58511553 | AF15: 191385.9312 | AG15: 0.04105799294 | AH15: 8.82201599
A16: 2005-05-01 | B16: 136830.9781 | C16: 0.05525059807 | D16: 10.30568043 | E16: 150079.9527 | F16: -0.1112115339 | G16: 11.92815771 | H16: 147059.2583 | I16: -0.2540714383 | J16: 10.26235581 | K16: 159119.5035 | L16: 0.3187024574 | M16: 8.302856087 | N16: 168082.1956 | O16: 0.04291151182 | P16: 8.648587367 | Q16: 202701.4886 | R16: -0.1165763381 | S16: 7.453208946 | T16: 272466.8494 | U16: -0.08016541851 | V16: 3.968342559 | W16: 231185.5067 | X16: -0.7377901326 | Y16: 4.652096527 | Z16: 202019.9447 | AA16: -1.033944516 | AB16: 5.581022937 | AC16: 145543.4449 | AD16: 0.02835171683 | AE16: 13.24568753 | AF16: 190789.1467 | AG16: -0.3118225755 | AH16: 7.129963685
A17: 2005-06-01 | B17: 137267.2078 | C17: 0.3188091411 | D17: 8.823877427 | E17: 151246.271 | F17: 0.7771313432 | G17: 9.853750842 | H17: 147911.0494 | I17: 0.579216268 | J17: 9.705641834 | K17: 159729.6622 | L17: 0.3834594114 | M17: 6.827296657 | N17: 170435.9761 | O17: 1.400374671 | P17: 8.230426393 | Q17: 202341.4581 | R17: -0.1776161117 | S17: 6.033237118 | T17: 272114.8076 | U17: -0.1292053903 | V17: 3.710913042 | W17: 231915.0026 | X17: 0.3155456714 | Y17: 4.054822644 | Z17: 201199.6244 | AA17: -0.3836203743 | AB17: 4.226790689 | AC17: 146687.1131 | AD17: 0.7857916166 | AE17: 11.7652174 | AF17: 191309.8439 | AG17: 0.2729176478 | AH17: 6.16485479
A18: 2005-07-01 | B18: 137783.3119 | C18: 0.37598501 | D18: 8.507884767 | E18: 152422.3895 | F18: 0.7776181813 | G18: 8.476201778 | H18: 148362.1275 | I18: 0.3049657574 | J18: 8.126861166 | K18: 160546.5663 | L18: 0.5114291742 | M18: 5.762912311 | N18: 169165.413 | O18: -0.7454782517 | P18: 5.369797916 | Q18: 201714.5675 | R18: -0.3098181956 | S18: 4.710491161 | T18: 272470.6472 | U18: 0.1307682049 | V18: 3.388822858 | W18: 231204.3329 | X18: -0.3064353871 | Y18: 3.251044008 | Z18: 200719.3118 | AA18: -0.2113758757 | AB18: 2.855771828 | AC18: 147834.205 | AD18: 0.7819990876 | AE18: 9.595791398 | AF18: 191319.5554 | AG18: 0.005076298903 | AH18: 4.98517799
A19: 2005-08-01 | B19: 138373.0962 | C19: 0.4280520792 | D19: 7.798155125 | E19: 152601.7762 | F19: 0.1176904953 | G19: 6.231226793 | H19: 149248.5921 | I19: 0.5975006317 | J19: 6.628566233 | K19: 160597.3848 | L19: 0.03165338877 | M19: 4.484991258 | N19: 168624.2616 | O19: -0.3198948056 | P19: 3.208393163 | Q19: 201854.4364 | R19: 0.06934003558 | S19: 3.975736904 | T19: 272303.1161 | U19: -0.06148594779 | V19: 2.838833148 | W19: 231947.9494 | X19: 0.3216273706 | Y19: 2.737498646 | Z19: 200403.4238 | AA19: -0.184068822 | AB19: 1.727466646 | AC19: 149406.9149 | AD19: 1.063833545 | AE19: 9.15972177 | AF19: 191569.0711 | AG19: 0.1304183049 | AH19: 3.942171669
A20: 2005-09-01 | B20: 140091.4578 | C20: 1.241832106 | D20: 7.755709402 | E20: 153316.6574 | F20: 0.4684618985 | G20: 5.765045898 | H20: 151066.6283 | I20: 1.21812615 | J20: 6.025177759 | K20: 161756.4117 | L20: 0.7216972714 | M20: 3.849085736 | N20: 167999.3481 | O20: -0.3705952823 | P20: 2.051784181 | Q20: 202349.8623 | R20: 0.2454372087 | S20: 3.304281584 | T20: 273124.8608 | U20: 0.3017757214 | V20: 2.476307471 | W20: 231748.2423 | X20: -0.08609992901 | Y20: 2.340989947 | Z20: 200775.8003 | AA20: 0.1709808307 | AB20: 0.7942042194 | AC20: 150412.0334 | AD20: 0.6727389668 | AE20: 8.126770472 | AF20: 192146.5893 | AG20: 0.3014673324 | AH20: 3.340515889
A21: 2005-10-01 | B21: 142331.074 | C21: 1.598681524 | D21: 8.382161243 | E21: 154102.8241 | F21: 0.5127731793 | G21: 5.612575743 | H21: 152050.8554 | I21: 0.6515185695 | J21: 5.807471291 | K21: 162057.058 | L21: 0.1858636198 | M21: 2.916924074 | N21: 169443.0818 | O21: 0.8593686622 | P21: 2.012019564 | Q21: 203034.9542 | R21: 0.3385679842 | S21: 2.983965851 | T21: 275347.2539 | U21: 0.8136912651 | V21: 2.647194158 | W21: 232702.6849 | X21: 0.4118445926 | Y21: 1.731065963 | Z21: 201807.4069 | AA21: 0.5251594947 | AB21: 0.1786358031 | AC21: 152037.569 | AD21: 1.080721777 | AE21: 7.68163212 | AF21: 193274.487 | AG21: 0.5869985931 | AH21: 3.02393651
A22: 2005-11-01 | B22: 143448.0991 | C22: 0.7848076212 | D22: 8.664535669 | E22: 154640.8796 | F22: 0.3491536175 | G22: 6.409206823 | H22: 152890.7004 | I22: 0.5523448259 | J22: 5.83861088 | K22: 162408.2043 | L22: 0.2166806392 | M22: 2.705013968 | N22: 170593.674 | O22: 0.6790434864 | P22: 3.138188826 | Q22: 202812.2305 | R22: -0.1096972324 | S22: 2.295450423 | T22: 277410.5781 | U22: 0.7493534671 | V22: 2.745116572 | W22: 233899.7532 | X22: 0.5144196075 | Y22: 1.30681912 | Z22: 203437.5009 | AA22: 0.7998031783 | AB22: 0.416977965 | AC22: 152232.1095 | AD22: 0.1279555041 | AE22: 6.835017084 | AF22: 194204.6291 | AG22: 0.4812544204 | AH22: 3.024629596
A23: 2005-12-01 | B23: 144714.2682 | C23: 0.8826670329 | D23: 9.308533908 | E23: 155653.9518 | F23: 0.65511276 | G23: 6.135769532 | H23: 153823.7467 | I23: 0.6102701172 | J23: 6.233440905 | K23: 161668.1958 | L23: -0.4556472195 | M23: 1.45648803 | N23: 171550.1353 | O23: 0.5606663129 | P23: 3.18791458 | Q23: 204679.599 | R23: 0.9207376562 | S23: 2.379589391 | T23: 281287.7725 | U23: 1.397637553 | V23: 3.931039828 | W23: 236091.7499 | X23: 0.9371522265 | Y23: 2.006756924 | Z23: 205363.7195 | AA23: 0.9778553549 | AB23: 0.693230985 | AC23: 153413.6882 | AD23: 0.7761691713 | AE23: 6.562572781 | AF23: 195787.1787 | AG23: 0.8148876801 | AH23: 3.322129622
A24: 2006-01-01 | B24: 145185.3195 | C24: =B24/B23*100-100 -> 0.3255043724 | D24: =B24/B12*100-100 -> 7.738834409 | E24: 156980.9633 | F24: =E24/E23*100-100 -> 0.8525395792 | G24: =E24/E12*100-100 -> 6.380810703 | H24: 155479.1184 | I24: =H24/H23*100-100 -> 1.076148346 | J24: =H24/H12*100-100 -> 6.07772389 | K24: 161815.0214 | L24: =K24/K23*100-100 -> 0.090819089 | M24: =K24/K12*100-100 -> 0.6869009028 | N24: 172980.5632 | O24: =N24/N23*100-100 -> 0.8338249986 | P24: =N24/N12*100-100 -> 4.083779811 | Q24: 204967.8255 | R24: =Q24/Q23*100-100 -> 0.140818365 | S24: =Q24/Q12*100-100 -> 2.094749521 | T24: 282806.8828 | U24: =T24/T23*100-100 -> 0.540055589 | V24: =T24/T12*100-100 -> 4.24924941 | W24: 237798.044 | X24: =W24/W23*100-100 -> 0.7227250102 | Y24: =W24/W12*100-100 -> 2.356060158 | Z24: 205770.5872 | AA24: =Z24/Z23*100-100 -> 0.1981205388 | AB24: =Z24/Z12*100-100 -> 1.012158535 | AC24: 153099.2772 | AD24: =AC24/AC23*100-100 -> -0.204943243 | AE24: =AC24/AC12*100-100 -> 6.288545824 | AF24: 196789.4469 | AG24: =AF24/AF23*100-100 -> 0.5119172083 | AH24: =AF24/AF12*100-100 -> 3.425413534
A25: 2006-02-01 | B25: 147062.731 | C25: 1.29311388 | D25: 7.84139308 | E25: 157887.508 | F25: 0.5774870254 | G25: 5.0592747 | H25: 156901.1041 | I25: 0.9145830563 | J25: 6.26597446 | K25: 162725.5436 | L25: 0.5626932478 | M25: 1.069989994 | N25: 174298.4201 | O25: 0.7618525877 | P25: 3.919780161 | Q25: 207001.8403 | R25: 0.992358072 | S25: 2.381197418 | T25: 285611.8582 | U25: 0.9918341769 | V25: 5.061804427 | W25: 239637.6635 | X25: 0.773605805 | Y25: 3.021274371 | Z25: 207251.6225 | AA25: 0.7197507499 | AB25: 1.112337577 | AC25: 155100.7868 | AD25: 1.307327921 | AE25: 6.92925217 | AF25: 198441.0226 | AG25: 0.839260313 | AH25: 3.67059143
A26: 2006-03-01 | B26: 146707.0472 | C26: -0.2418585482 | D26: 6.759500016 | E26: 159775.3148 | F26: 1.195665708 | G26: 6.545272348 | H26: 157757.1835 | I26: 0.5456172065 | J26: 6.728180621 | K26: 164337.7959 | L26: 0.9907801033 | M26: 2.935078235 | N26: 174982.5191 | O26: 0.3924871822 | P26: 4.956123285 | Q26: 208165.7974 | R26: 0.5622931203 | S26: 3.152010652 | T26: 286051.7421 | U26: 0.1540145919 | V26: 4.735620454 | W26: 241203.9387 | X26: 0.6536014056 | Y26: 3.446586993 | Z26: 208724.8904 | AA26: 0.7108594845 | AB26: 2.164145214 | AC26: 156057.5157 | AD26: 0.6168433631 | AE26: 7.950185904 | AF26: 199612.6451 | AG26: 0.5904134536 | AH26: 4.341317474
A27: 2006-04-01 | B27: 147096.2691 | C27: 0.2653055036 | D27: 7.561564414 | E27: 160009.0037 | F27: 0.1462609613 | G27: 6.497271899 | H27: 157853.9582 | I27: 0.06134410019 | J27: 7.067653017 | K27: 164816.3207 | L27: 0.2911836639 | M27: 3.91032572 | N27: 175694.3859 | O27: 0.4068216865 | P27: 4.573704755 | Q27: 210826.7384 | R27: 1.278279675 | S27: 3.887231299 | T27: 288716.1596 | U27: 0.9314459944 | V27: 5.878828808 | W27: 242949.0287 | X27: 0.7234915348 | Y27: 4.313016071 | Z27: 210338.7428 | AA27: 0.7731959734 | AB27: 2.995620169 | AC27: 155512.585 | AD27: -0.3491857672 | AE27: 6.879891152 | AF27: 200830.6494 | AG27: 0.6101839004 | AH27: 4.934907228
A28: 2006-05-01 | B28: 146662.8742 | C28: -0.2946334962 | D28: 7.185431424 | E28: 160936.1747 | F28: 0.5794492256 | G28: 7.233625676 | H28: 157968.8274 | I28: 0.07276926663 | J28: 7.418485052 | K28: 165340.7665 | L28: 0.3182001589 | M28: 3.909805438 | N28: 176042.0662 | O28: 0.1978892643 | P28: 4.735701217 | Q28: 211477.8905 | R28: 0.3088564936 | S28: 4.329717523 | T28: 290403.4901 | U28: 0.5844253892 | V28: 6.583054317 | W28: 244519.3947 | X28: 0.6463767189 | Y28: 5.767614142 | Z28: 211077.1892 | AA28: 0.3510748216 | AB28: 4.483341714 | AC28: 155217.2147 | AD28: -0.1899334149 | AE28: 6.646654367 | AF28: 201614.1391 | AG28: 0.3901245919 | AH28: 5.673798867
A29: 2006-06-01 | B29: 147363.4772 | C29: 0.4776962232 | D29: 7.35519401 | E29: 160692.1233 | F29: -0.1516448134 | G29: 6.245345563 | H29: 157544.5861 | I29: -0.2685601086 | J29: 6.513060876 | K29: 165910.6493 | L29: 0.3446716675 | M29: 3.869655129 | N29: 177079.723 | O29: 0.5894368079 | P29: 3.898089463 | Q29: 212485.2755 | R29: 0.4763547735 | S29: 5.013217507 | T29: 292294.7845 | U29: 0.6512643327 | V29: 7.41597897 | W29: 245023.1616 | X29: 0.2060232924 | Y29: 5.652139311 | Z29: 211568.7187 | AA29: 0.2328672142 | AB29: 5.153635059 | AC29: 155609.0095 | AD29: 0.2524171221 | AE29: 6.082263252 | AF29: 202207.3475 | AG29: 0.2942295532 | AH29: 5.696258671
A30: 2006-07-01 | B30: 146794.8571 | C30: -0.3858623325 | D30: 6.540374915 | E30: 161553.7065 | F30: 0.536170163 | G30: 5.990797692 | H30: 158060.376 | I30: 0.3273929355 | J30: 6.536876122 | K30: 166800.8591 | L30: 0.5365597458 | M30: 3.895625348 | N30: 177214.3682 | O30: 0.07603653717 | P30: 4.758038365 | Q30: 212969.8036 | R30: 0.2280289895 | S30: 5.579783466 | T30: 294074.2549 | U30: 0.6087930773 | V30: 7.928783481 | W30: 246523.2035 | X30: 0.6122041033 | Y30: 6.625684873 | Z30: 212271.8632 | AA30: 0.3323480353 | AB30: 5.755575454 | AC30: 156791.3268 | AD30: 0.7598000364 | AE30: 6.058896722 | AF30: 203075.9693 | AG30: 0.4295698557 | AH30: 6.144909704
A31: 2006-08-01 | B31: 146244.7751 | C31: -0.3747283849 | D31: 5.688735061 | E31: 163059.2881 | F31: 0.9319387548 | G31: 6.85281141 | H31: 158967.226 | I31: 0.5737364556 | J31: 6.511708885 | K31: 167049.4185 | L31: 0.149015666 | M31: 4.017521035 | N31: 178405.3381 | O31: 0.6720503777 | P31: 5.800515511 | Q31: 215462.7598 | R31: 1.170567918 | S31: 6.741651839 | T31: 295989.9384 | U31: 0.6514284841 | V31: 8.698696743 | W31: 247310.681 | X31: 0.3194334595 | Y31: 6.6233531 | Z31: 213199.2425 | AA31: 0.4368827965 | AB31: 6.38502999 | AC31: 157582.2781 | AD31: 0.5044611139 | AE31: 5.471877401 | AF31: 204234.2105 | AG31: 0.5703487119 | AH31: 6.611265224
A32: 2006-09-01 | B32: 147803.3978 | C32: 1.065763008 | D32: 5.504932379 | E32: 164106.0976 | F32: 0.6419808803 | G32: 7.037356795 | H32: 161003.7178 | I32: 1.281076543 | J32: 6.577951506 | K32: 168811.4513 | L32: 1.054797364 | M32: 4.361520857 | N32: 179455.7839 | O32: 0.5887972993 | P32: 6.8193335 | Q32: 216616.0984 | R32: 0.5352844531 | S32: 7.050282082 | T32: 299179.7671 | U32: 1.077681469 | V32: 9.539558662 | W32: 249460.8899 | X32: 0.8694362982 | Y32: 7.643055829 | Z32: 214773.758 | AA32: 0.7385183522 | AB32: 6.971934714 | AC32: 158504.982 | AD32: 0.5855378597 | AE32: 5.380519357 | AF32: 205945.7348 | AG32: 0.8380204011 | AH32: 7.18157195
A33: 2006-10-01 | B33: 149301.359 | C33: 1.013482276 | D33: =B33/B21*100-100 -> 4.897233478 | E33: 165948.197 | F33: 1.122505146 | G33: =E33/E21*100-100 -> 7.686668281 | H33: 163319.6318 | I33: 1.438422673 | J33: 7.411189082 | K33: 169442.0636 | L33: 0.3735601023 | M33: =K33/K21*100-100 -> 4.557040362 | N33: 180480.2562 | O33: 0.5708772865 | P33: =N33/N21*100-100 -> 6.51379464 | Q33: 218704.9148 | R33: 0.9642941521 | S33: =Q33/Q21*100-100 -> 7.717863493 | T33: 301615.583 | U33: 0.814164675 | V33: =T33/T21*100-100 -> 9.540073047 | W33: 251643.5957 | X33: 0.8749691664 | Y33: =W33/W21*100-100 -> 8.13953256 | Z33: 217855.8411 | AA33: 1.435037094 | AB33: =Z33/Z21*100-100 -> 7.952351412 | AC33: 161565.7722 | AD33: 1.931037238 | AE33: =AC33/AC21*100-100 -> 6.267005754 | AF33: 207990.0112 | AG33: 0.992628671 | AH33: =AF33/AF21*100-100 -> 7.613795498
A34: 2006-11-01 | B34: 151307.6128 | C34: 1.343761242 | D34: 5.478994657 | E34: 166068.9228 | F34: 0.07274909534 | G34: 7.390053103 | H34: 164531.032 | I34: 0.7417357896 | J34: 7.613498722 | K34: 171043.3372 | L34: 0.9450272186 | M34: 5.316931452 | N34: 181016.372 | O34: 0.2970495567 | P34: 6.109662642 | Q34: 218983.5686 | R34: 0.127410869 | S34: 7.973551757 | T34: 306031.3548 | U34: 1.464039644 | V34: 10.31711799 | W34: 253747.5727 | X34: 0.8360939913 | Y34: 8.485609447 | Z34: 220246.575 | AA34: 1.097392596 | AB34: 8.262524861 | AC34: 163071.1817 | AD34: 0.9317626402 | AE34: 7.120095953 | AF34: 209617.0904 | AG34: 0.7822871833 | AH34: 7.93619671
A35: 2006-12-01 | B35: 152127.7564 | C35: 0.5420372235 | D35: 5.122845371 | E35: 167934.4247 | F35: 1.123329929 | G35: 7.889599179 | H35: 165628.0524 | I35: 0.6667559384 | J35: 7.673916379 | K35: 171236.8477 | L35: 0.113135376 | M35: 5.918697759 | N35: 182240.4284 | O35: 0.6762130912 | P35: 6.231585359 | Q35: 221115.7909 | R35: 0.9736905499 | S35: 8.030205247 | T35: 311355.9354 | U35: 1.739880767 | V35: 10.68946676 | W35: 256167.0252 | X35: 0.9534879407 | Y35: 8.503166807 | Z35: 223479.4032 | AA35: 1.467822233 | AB35: 8.821267808 | AC35: 163821.6724 | AD35: 0.4602227682 | AE35: 6.784260514 | AF35: 211765.8368 | AG35: 1.025081664 | AH35: 8.161238266
A36: 2007-01-01 | B36: 154181.9483 | C36: 1.350307077 | D36: 6.196651846 | E36: 168318.0969 | F36: 0.2284654957 | G36: 7.22197987 | H36: 165818.038 | I36: 0.1147061449 | J36: 6.649715825 | K36: 173150.8639 | L36: 1.117759512 | M36: 7.005432719 | N36: 183993.2417 | O36: 0.9618136517 | P36: 6.366425404 | Q36: 222821.4742 | R36: 0.7713982315 | S36: 8.710464042 | T36: 316638.3023 | U36: 1.696568553 | V36: 11.96272847 | W36: 258632.6867 | X36: 0.9625210221 | Y36: 8.761486136 | Z36: 224060.0451 | AA36: 0.2598190091 | AB36: 8.888276109 | AC36: 164360.0025 | AD36: 0.32860738 | AE36: 7.35517866 | AF36: 213538.0291 | AG36: 0.8368641391 | AH36: 8.510914835
A37: 2007-02-01 | B37: 155107.846 | C37: 0.6005228164 | D37: 5.47053287 | E37: 170920.399 | F37: 1.546061991 | G37: 8.254542211 | H37: 166821.7449 | I37: 0.6053062407 | J37: 6.322862327 | K37: 175005.6434 | L37: 1.071192747 | M37: 7.546510202 | N37: 184407.999 | O37: 0.2254198567 | P37: 5.800155228 | Q37: 225828.2229 | R37: 1.34939805 | S37: 9.094789969 | T37: 322206.513 | U37: 1.758539836 | V37: 12.81272252 | W37: 262174.6171 | X37: 1.369482897 | Y37: 9.404595783 | Z37: 226714.9485 | AA37: 1.184907084 | AB37: 9.391157331 | AC37: 165315.5701 | AD37: 0.5813869423 | AE37: 6.585900414 | AF37: 216107.8405 | AG37: 1.203444358 | AH37: 8.902805294
A38: 2007-03-01 | B38: 154763.8204 | C38: -0.221797716 | D38: 5.491742434 | E38: 171597.0249 | F38: 0.3958719504 | G38: 7.398959055 | H38: 166769.3036 | I38: -0.03143551903 | J38: 5.71265276 | K38: 175752.1425 | L38: 0.42655719 | M38: 6.945661241 | N38: 184896.7031 | O38: 0.2650124253 | P38: 5.665814009 | Q38: 227943.2372 | R38: 0.9365588927 | S38: 9.500811397 | T38: 325658.1323 | U38: 1.071244431 | V38: 13.84588325 | W38: 264698.9051 | X38: 0.9628269902 | Y38: 9.740705963 | Z38: 227716.4081 | AA38: 0.4417263349 | AB38: 9.098827518 | AC38: 165859.9537 | AD38: 0.3292996482 | AE38: 6.281298275 | AF38: 217479.2895 | AG38: 0.6346132533 | AH38: 8.950657589
A39: 2007-04-01 | B39: 154269.8414 | C39: -0.3191824649 | D39: 4.876787402 | E39: 172440.6384 | F39: 0.4916247677 | G39: 7.769334473 | H39: 168385.6108 | I39: 0.9691875008 | J39: 6.67176974 | K39: 176186.4844 | L39: 0.2471331923 | M39: 6.898687951 | N39: 185429.5957 | O39: 0.2882109689 | P39: 5.540990837 | Q39: 229374.2857 | R39: 0.6278091755 | S39: 8.797530815 | T39: 329623.3876 | U39: 1.217612846 | V39: 14.16866588 | W39: 267282.7032 | X39: 0.9761272514 | Y39: 10.01595875 | Z39: 231716.3136 | AA39: 1.756529342 | AB39: 10.16340145 | AC39: 165295.6827 | AD39: -0.3402093189 | AE39: 6.290871991 | AF39: 219272.0417 | AG39: 0.8243323956 | AH39: 9.182558759
A40: 2007-05-01 | B40: 154246.6969 | C40: -0.01500257495 | D40: 5.170921947 | E40: 172266.2699 | F40: -0.1011180095 | G40: 7.040117138 | H40: 168905.8782 | I40: 0.308973759 | J40: 6.923550034 | K40: 177179.6219 | L40: 0.5636854112 | M40: 7.160276091 | N40: 186084.7447 | O40: 0.3533141349 | P40: 5.704703815 | Q40: 230562.9897 | R40: 0.5182376818 | S40: 9.024630964 | T40: 333134.2186 | U40: 1.065103723 | V40: 14.71426133 | W40: 268213.0932 | X40: 0.3480920869 | Y40: 9.689905585 | Z40: 233435.7349 | AA40: 0.7420372186 | AB40: 10.59259215 | AC40: 165104.0668 | AD40: -0.1159231334 | AE40: 6.369687862 | AF40: 220315.0785 | AG40: 0.4756815852 | AH40: 9.275609062
A41: 2007-06-01 | B41: 155327.4888 | C41: 0.7006904047 | D41: 5.404331993 | E41: 172401.6791 | F41: 0.07860462975 | G41: 7.286950722 | H41: 169370.494 | I41: 0.2750737761 | J41: 7.506387953 | K41: 177632.7986 | L41: 0.2557724619 | M41: 7.06533868 | N41: 186752.0334 | O41: 0.3585939911 | P41: 5.462121966 | Q41: 231472.1091 | R41: 0.3943041273 | S41: 8.935599655 | T41: 339200.716 | U41: 1.821037018 | V41: 16.04747468 | W41: 271265.3695 | X41: 1.138004215 | Y41: 10.71009276 | Z41: 234724.8684 | AA41: 0.5522434107 | AB41: 10.94497797 | AC41: 166096.5885 | AD41: 0.6011491883 | AE41: 6.7396991 | AF41: 222009.115 | AG41: 0.7689153846 | AH41: 9.792803157
A42: 2007-07-01 | B42: 154888.6718 | C42: -0.282510784 | D42: 5.513690977 | E42: 172964.4695 | F42: 0.3264413587 | G42: 7.063139094 | H42: 168435.8675 | I42: -0.5518236661 | J42: 6.564258408 | K42: 177962.4062 | L42: 0.1855556307 | M42: 6.691540585 | N42: 186111.3491 | O42: -0.3430668606 | P42: 5.020462452 | Q42: 232329.6321 | R42: 0.37046492 | S42: 9.090410077 | T42: 343654.074 | U42: 1.312897576 | V42: 16.85962585 | W42: 271814.2874 | X42: 0.2023545823 | Y42: 10.25910891 | Z42: 234740.2488 | AA42: 0.006552546062 | AB42: 10.58472154 | AC42: 167311.9334 | AD42: 0.7317097092 | AE42: 6.709941667 | AF42: 222687.1228 | AG42: 0.3053963965 | AH42: 9.657052778
A43: 2007-08-01 | B43: 154578.2151 | C43: -0.2004386347 | D43: 5.698282242 | E43: 173684.4215 | F43: 0.4162426786 | G43: 6.516116601 | H43: 169911.4553 | I43: 0.876053187 | J43: 6.884582176 | K43: 177938.8897 | L43: -0.01321432458 | M43: 6.51871245 | N43: 187870.4851 | O43: 0.945206189 | P43: 5.30541691 | Q43: 233929.9595 | R43: 0.688817629 | S43: 8.570947375 | T43: 348402.096 | U43: 1.381628336 | V43: 17.70741194 | W43: 274860.9771 | X43: 1.120871818 | Y43: 11.13995399 | Z43: 235506.8184 | AA43: 0.32656076 | AB43: 10.4632529 | AC43: 169069.7336 | AD43: 1.050612572 | AE43: 7.289814337 | AF43: 224460.722 | AG43: 0.796453422 | AH43: 9.903586438
A44: 2007-09-01 | B44: 154333.9138 | C44: -0.158043825 | D44: 4.418380164 | E44: 175620.4716 | F44: 1.114694163 | G44: 7.016420577 | H44: 172012.7754 | I44: 1.236714791 | J44: 6.837766054 | K44: 179995.3524 | L44: 1.155712879 | M44: 6.625084349 | N44: 189229.2149 | O44: 0.7232268577 | P44: 5.446149886 | Q44: 235305.4544 | R44: 0.5879943223 | S44: 8.62787028 | T44: 351123.101 | U44: 0.7809955757 | V44: 17.36191402 | W44: 276942.5256 | X44: 0.7573095801 | Y44: 11.01641054 | Z44: 236998.7125 | AA44: 0.6334823646 | AB44: 10.34807732 | AC44: 170126.778 | AD44: 0.625212074 | AE44: 7.332132936 | AF44: 226227.8076 | AG44: 0.7872582635 | AH44: 9.848260669
A45: 2007-10-01 | B45: 155321.6464 | C45: 0.6399970967 | D45: 4.032305785 | E45: 175959.6077 | F45: 0.1931073954 | G45: 6.032852968 | H45: 174316.4422 | I45: 1.339241679 | J45: 6.733305874 | K45: 180280.4891 | L45: 0.1584133689 | M45: 6.396537722 | N45: 190059.6507 | O45: 0.4388518014 | P45: 5.307724335 | Q45: 236813.0471 | R45: 0.6406960364 | S45: 8.27970983 | T45: 352516.8345 | U45: 0.3969358609 | V45: 16.87620081 | W45: 278946.4034 | X45: 0.7235717193 | Y45: 10.84979239 | Z45: 238536.9692 | AA45: 0.6490569722 | AB45: 9.493033566 | AC45: 171517.1064 | AD45: 0.8172307833 | AE45: 6.159308391 | AF45: 227540.6092 | AG45: 0.5803007295 | AH45: 9.399777371
A46: 2007-11-01 | B46: 156792.8035 | C46: 0.9471681105 | D46: 3.62519145 | E46: 175797.4718 | F46: -0.09214380664 | G46: 5.858139422 | H46: 174526.1779 | I46: 0.1203189867 | J46: 6.074930582 | K46: 179704.4357 | L46: -0.3195317292 | M46: 5.06368659 | N46: 189528.4636 | O46: -0.2794843864 | P46: 4.702387709 | Q46: 235496.9934 | R46: -0.5557353047 | S46: 7.540942405 | T46: 351552.267 | U46: -0.2736231 | V46: 14.87459097 | W46: 279748.6963 | X46: 0.2876154175 | Y46: 10.24684622 | Z46: 237993.8771 | AA46: -0.2276762829 | AB46: 8.057924237 | AC46: 170891.1927 | AD46: -0.3649278283 | AE46: 4.7954586 | AF46: 227284.8394 | AG46: -0.1124062294 | AH46: 8.428582304
A47: 2007-12-01 | B47: 156782.8911 | C47: -0.006321916423 | D47: 3.060016699 | E47: 175284.6543 | F47: -0.2917092616 | G47: 4.376845086 | H47: 174687.5328 | I47: 0.09245310704 | J47: 5.469774169 | K47: 178527.2918 | L47: -0.6550444245 | M47: 4.257520631 | N47: 188238.8433 | O47: -0.6804362021 | P47: 3.29148422 | Q47: 237184.4558 | R47: 0.7165536697 | S47: 7.267081538 | T47: 352342.4451 | U47: 0.2247683017 | V47: 13.16387612 | W47: 280465.1458 | X47: 0.2561046819 | Y47: 9.485264761 | Z47: 238418.4591 | AA47: 0.1784003725 | AB47: 6.684757388 | AC47: 170285.7436 | AD47: -0.3542892695 | AE47: 3.945797309 | AF47: 227433.4126 | AG47: 0.06536869079 | AH47: 7.398537929
A48: 2008-01-01 | B48: 160331.0653 | C48: 2.26311313 | D48: 3.98822116 | E48: 175498.8306 | F48: 0.1221877275 | G48: 4.266168562 | H48: 174365.1658 | I48: -0.1845392037 | J48: 5.154522389 | K48: 178365.9639 | L48: -0.0903659817 | M48: 3.011882187 | N48: 188335.2855 | O48: 0.05123392125 | P48: 2.359893072 | Q48: 237154.6791 | R48: -0.01255420284 | S48: 6.432595849 | T48: 355034.3265 | U48: 0.7639957756 | V48: 12.12614641 | W48: 282506.6678 | X48: 0.7279057801 | Y48: 9.230844491 | Z48: 235866.55 | AA48: -1.070348802 | AB48: 5.269348587 | AC48: 168535.8442 | AD48: -1.027625291 | AE48: 2.540667805 | AF48: 227827.1295 | AG48: 0.1731130416 | AH48: 6.691595106
A49: 2008-02-01 | B49: 162507.0159 | C49: 1.357160937 | D49: 4.770338887 | E49: 176167.2406 | F49: 0.3808628937 | G49: 3.069757366 | H49: 173898.0921 | I49: -0.2678709881 | J49: 4.241861438 | K49: 179437.3264 | L49: 0.6006541147 | M49: 2.532308643 | N49: 188968.6104 | O49: 0.3362752425 | P49: 2.473109315 | Q49: 240972.4606 | R49: 1.609827614 | S49: 6.706087307 | T49: 357879.9552 | U49: 0.8015080438 | V49: 11.07160802 | W49: 282782.5262 | X49: 0.09764669164 | Y49: 7.860375403 | Z49: 234603.0091 | AA49: -0.5357015878 | AB49: 3.479285629 | AC49: 168074.7865 | AD49: -0.2735665821 | AE49: 1.669060165 | AF49: 228741.4316 | AG49: 0.4013139785 | AH49: 5.845966083
A50: 2008-03-01 | B50: 163712.8406 | C50: 0.7420139299 | D50: 5.782372281 | E50: 174828.1629 | F50: -0.7601173028 | G50: 1.882980166 | H50: 173938.495 | I50: 0.02323364014 | J50: 4.298867507 | K50: 178037.2134 | L50: -0.7802796693 | M50: 1.300166739 | N50: 189795.5355 | O50: 0.4375991974 | P50: 2.649496897 | Q50: 239739.3592 | R50: -0.5117188305 | S50: 5.175026105 | T50: 356568.0524 | U50: -0.3665761931 | V50: 9.491524096 | W50: 282470.6298 | X50: -0.1102955024 | Y50: 6.713939647 | Z50: 233645.6276 | AA50: -0.4080857702 | AB50: 2.603773501 | AC50: 167794.5554 | AD50: -0.1667300029 | AE50: 1.166406717 | AF50: 228118.9019 | AG50: -0.2721543151 | AH50: 4.892241652
A51: 2008-04-01 | B51: 161236.4782 | C51: -1.512625641 | D51: 4.515877348 | E51: 174085.3507 | F51: -0.4248813138 | G51: 0.953784612 | H51: 173514.8086 | I51: -0.2435840255 | J51: 3.046102185 | K51: 177190.4389 | L51: -0.4756166024 | M51: 0.5698249091 | N51: 189692.4773 | O51: -0.05429962768 | P51: 2.298921889 | Q51: 239682.3326 | R51: -0.0237869216 | S51: 4.493985376 | T51: 356106.2769 | U51: -0.1295055729 | V51: 8.034287112 | W51: 281427.303 | X51: -0.3693576249 | Y51: 5.291999672 | Z51: 234889.0734 | AA51: 0.5321930358 | AB51: 1.369243138 | AC51: 167095.1182 | AD51: -0.4168414179 | AE51: 1.088616125 | AF51: 227674.4814 | AG51: -0.194819688 | AH51: 3.831970346
A52: 2008-05-01 | B52: 159888.8208 | C52: -0.8358266498 | D52: 3.657857139 | E52: 172096.598 | F52: -1.142400919 | G52: -0.09849393661 | H52: 171825.1777 | I52: -0.973767538 | J52: 1.728358758 | K52: 174704.8841 | L52: -1.402758947 | M52: -1.396739502 | N52: 187901.9114 | O52: -0.9439308647 | P52: 0.97652645 | Q52: 237575.0732 | R52: -0.8791884445 | S52: 3.041287551 | T52: 354255.4696 | U52: -0.5197345385 | V52: 6.340162579 | W52: 281098.414 | X52: -0.1168646377 | Y52: 4.804135655 | Z52: 234849.295 | AA52: -0.01693493932 | AB52: 0.6055457252 | AC52: 164646.4737 | AD52: -1.465419494 | AE52: -0.2771543144 | AF52: 226200.5064 | AG52: -0.6474045501 | AH52: 2.671368651
A53: 2008-06-01 | B53: 157717.4918 | C53: -1.35802426 | D53: 1.538686459 | E53: 171449.6079 | F53: -0.3759459349 | G53: -0.552240131 | H53: 169149.0959 | I53: -1.557444531 | J53: -0.1307182064 | K53: 175083.6751 | L53: 0.2168176307 | M53: -1.435052242 | N53: 185821.9726 | O53: -1.106928002 | P53: -0.4980191217 | Q53: 236177.2758 | R53: -0.5883603097 | S53: 2.032714309 | T53: 351923.6596 | U53: -0.6582283882 | V53: 3.750859876 | W53: 278554.6154 | X53: -0.9049494885 | Y53: 2.687127328 | Z53: 232548.6687 | AA53: -0.9796181658 | AB53: -0.9271278846 | AC53: 163173.8768 | AD53: -0.8943993322 | AE53: -1.759645872 | AF53: 224434.5886 | AG53: -0.7806869421 | AH53: 1.092510814
A54: 2008-07-01 | B54: 154033.5936 | C54: -2.33575752 | D54: -0.5520598907 | E54: 169604.746 | F54: -1.076037373 | G54: -1.942435639 | H54: 166060.5606 | I54: -1.825924795 | J54: -1.410214416 | K54: 173011.5037 | L54: -1.183532031 | M54: -2.781993455 | N54: 183266.308 | O54: -1.375329586 | P54: -1.528676826 | Q54: 232422.7073 | R54: -1.589724688 | S54: 0.04006172458 | T54: 346946.7217 | U54: -1.414209508 | V54: 0.9581285293 | W54: 274649.6133 | X54: -1.401880206 | Y54: 1.04311145 | Z54: 228900.7126 | AA54: -1.568684993 | AB54: -2.487658703 | AC54: 161479.31 | AD54: -1.038503686 | AE54: -3.486077314 | AF54: 221197.9836 | AG54: -1.442115059 | AH54: -0.6687136765
A55: 2008-08-01 | B55: 150913.3409 | C55: -2.025696214 | D55: -2.370886587 | E55: 167752.9058 | F55: -1.091856367 | G55: -3.415110928 | H55: 164428.5395 | I55: -0.982786689 | J55: -3.22692531 | K55: 170393.0474 | L55: -1.513457938 | M55: -4.240693147 | N55: 181242.7422 | O55: -1.104166848 | P55: -3.527825496 | Q55: 227914.7025 | R55: -1.939571579 | S55: -2.571392306 | T55: 342498.7066 | U55: -1.282045585 | V55: -1.694418471 | W55: 270603.5705 | X55: -1.473165308 | Y55: -1.548930903 | Z55: 225517.5237 | AA55: -1.478015911 | AB55: -4.241615929 | AC55: 161486.4748 | AD55: 0.00443698634 | AE55: -4.485284612 | AF55: 218181.8847 | AG55: -1.363529086 | AH55: -2.797298897
A56: 2008-09-01 | B56: 149499.508 | C56: -0.9368508582 | D56: -3.132432565 | E56: 165128.353 | F56: -1.564534945 | G56: -5.974314102 | H56: 162614.184 | I56: -1.103431032 | J56: -5.463891484 | K56: 166909.1209 | L56: -2.044641216 | M56: -7.2703163 | N56: 178515.9546 | O56: -1.504494751 | P56: -5.661525482 | Q56: 223081.3457 | R56: -2.12068674 | S56: -5.194995911 | T56: 335729.6326 | U56: -1.976379416 | V56: -4.384065963 | W56: 266628.0251 | X56: -1.469140029 | Y56: -3.724419165 | Z56: 221680.0212 | AA56: -1.701642704 | AB56: -6.463617969 | AC56: 159339.3502 | AD56: -1.329600307 | AE56: -6.340817081 | AF56: 214541.3989 | AG56: -1.668555513 | AH56: -5.165770235
A57: 2008-10-01 | B57: 147890.0952 | C57: -1.076533843 | D57: -4.784620376 | E57: 161818.3019 | F57: -2.004532257 | G57: -8.036677283 | H57: 161043.1169 | I57: -0.9661316602 | J57: -7.614499882 | K57: 164804.0637 | L57: -1.261199638 | M57: -8.584636892 | N57: 175915.9055 | O57: -1.456479981 | P57: -7.441740069 | Q57: 218040.5655 | R57: -2.259615273 | S57: -7.927131483 | T57: 329437.4162 | U57: -1.874191547 | V57: -6.547040028 | W57: 260250.5457 | X57: -2.391901394 | Y57: -6.702311812 | Z57: 218254.5417 | AA57: -1.545235981 | AB57: -8.502844467 | AC57: 157261.1828 | AD57: -1.304239879 | AE57: -8.311662811 | AF57: 210634.5054 | AG57: -1.821044075 | AH57: -7.429928159
A58: 2008-11-01 | B58: 145565.5634 | C58: -1.571796798 | D58: -7.16055825 | E58: 160114.4113 | F58: -1.052965318 | G58: -8.921095607 | H58: 158511.7649 | I58: -1.571847368 | J58: -9.175937526 | K58: 162762.7877 | L58: -1.238607824 | M58: -9.427506878 | N58: 172695.9244 | O58: -1.830409309 | P58: -8.881272458 | Q58: 212802.9285 | R58: -2.402138795 | S58: -9.636668642 | T58: 320862.2332 | U58: -2.60297787 | V58: -8.729863719 | W58: 252447.3188 | X58: -2.998351787 | Y58: -9.759251019 | Z58: 214113.5321 | AA58: -1.897330316 | AB58: -10.03401653 | AC58: 154638.06 | AD58: -1.668004016 | AE58: -9.510807713 | AF58: 206130.6519 | AG58: -2.138231611 | AH58: -9.307346505
A59: 2008-12-01 | B59: 143647.9771 | C59: -1.317335124 | D59: -8.377772545 | E59: 158560.7934 | F59: -0.9703173122 | G59: -9.540972623 | H59: 157037.683 | I59: -0.929951122 | J59: -10.10366886 | K59: 160266.1835 | L59: -1.533891232 | M59: -10.22874883 | N59: 170667.8585 | O59: -1.174356539 | P59: -9.334409694 | Q59: 210145.8582 | R59: -1.248606067 | S59: -11.39981853 | T59: 318057.6153 | U59: -0.8740878957 | V59: -9.73054206 | W59: 245039.3267 | X59: -2.934470496 | Y59: -12.63109503 | Z59: 210323.7105 | AA59: -1.770005651 | AB59: -11.78379756 | AC59: 153261.2785 | AD59: -0.8903250919 | AE59: -9.997586805 | AF59: 202930.031 | AG59: -1.552714678 | AH59: -10.7738706
A60: 2009-01-01 | B60: 143124.9469 | C60: -0.3641055085 | D60: -10.73161858 | E60: 159214.1085 | F60: 0.4120281506 | G60: -9.279105765 | H60: 155713.7158 | I60: -0.8430888236 | J60: -10.69677533 | K60: 158475.2323 | L60: -1.117485448 | M60: -11.15164081 | N60: 169439.9797 | O60: -0.7194552274 | P60: -10.03280175 | Q60: 210760.3027 | R60: 0.2923895246 | S60: -11.12960391 | T60: 315140.8521 | U60: -0.9170549791 | V60: -11.23651192 | W60: 241777.0196 | X60: -1.331340203 | Y60: -14.41723428 | Z60: 206964.0136 | AA60: -1.597393317 | AB60: -12.25376652 | AC60: 154141.8771 | AD60: 0.5745733959 | AE60: -8.540596926 | AF60: 201447.2912 | AG60: -0.7306655034 | AH60: -11.57888363
A61: 2009-02-01 | B61: 143499.4071 | C61: 0.2616316398 | D61: -11.69648506 | E61: 157299.4051 | F61: -1.202596577 | G61: -10.71018391 | H61: 154564.6724 | I61: -0.7379204794 | J61: -11.11767214 | K61: 157733.5991 | L61: -0.4679804611 | M61: -12.09543615 | N61: 168488.8915 | O61: -0.5613127313 | P61: -10.83763006 | Q61: 209848.5247 | R61: -0.4326137178 | S61: -12.91597216 | T61: 313387.302 | U61: -0.5564337493 | V61: -12.43228421 | W61: 240501.8488 | X61: -0.527416061 | Y61: -14.95165843 | Z61: 205227.2697 | AA61: -0.8391526327 | AB61: -12.52146746 | AC61: 153033.9963 | AD61: -0.7187409435 | AE61: -8.948867632 | AF61: 200195.6269 | AG61: -0.6213359281 | AH61: -12.47950777
A62: 2009-03-01 | B62: 142956.4176 | C62: -0.3783914584 | D62: -12.6785553 | E62: 156848.7034 | F62: -0.2865247147 | G62: -10.28407503 | H62: 152858.3505 | I62: -1.10395336 | J62: -12.11930947 | K62: 157310.3506 | L62: -0.2683312387 | M62: -11.64187104 | N62: 166069.966 | O62: -1.43565872 | P62: -12.5005941 | Q62: 207324.8627 | R62: -1.202611275 | S62: -13.52072376 | T62: 310044.623 | U62: -1.066628723 | V62: -13.04755967 | W62: 238914.6724 | X62: -0.6599435218 | Y62: -15.41964112 | Z62: 203682.1059 | AA62: -0.7529037448 | AB62: -12.82434516 | AC62: 152073.6724 | AD62: -0.627523241 | AE62: -9.36912579 | AF62: 198543.3072 | AG62: -0.825352539 | AH62: -12.96499084
A63: 2009-04-01 | B63: 143400.449 | C63: 0.3106061331 | D63: -11.06203102 | E63: 155314.1618 | F63: -0.9783578495 | G63: -10.7827504 | H63: 151381.5413 | I63: -0.9661292636 | J63: -12.75583769 | K63: 156222.9523 | L63: -0.6912439961 | M63: -11.83330587 | N63: 165283.3264 | O63: -0.4736796491 | P63: -12.86774849 | Q63: 205276.6176 | R63: -0.9879399264 | S63: -14.35471468 | T63: 308774.6254 | U63: -0.4096176842 | V63: -13.29143983 | W63: 239959.879 | X63: 0.4374811067 | Y63: -14.73468408 | Z63: 203312.7893 | AA63: -0.181320071 | AB63: -13.44306212 | AC63: 149467.3233 | AD63: -1.713872658 | AE63: -10.54955707 | AF63: 197695.0619 | AG63: -0.4272343639 | AH63: -13.16766783
A64: 2009-05-01 | B64: 142624.3226 | C64: -0.5412300826 | D64: -10.79781442 | E64: 155216.546 | F64: -0.06285059194 | G64: -9.808475165 | H64: 151050.3118 | I64: -0.2188043792 | J64: -12.09069951 | K64: 155766.3657 | L64: -0.2922660091 | M64: -10.84029135 | N64: 165282.6195 | O64: -0.0004277090279 | P64: -12.03781898 | Q64: 205394.7002 | R64: 0.05752363183 | S64: -13.5453491 | T64: 312262.2042 | U64: 1.129490098 | V64: -11.85394976 | W64: 239880.4873 | X64: -0.03308539504 | Y64: -14.66316587 | Z64: 205087.4459 | AA64: 0.8728701296 | AB64: -12.67274365 | AC64: 148454.1559 | AD64: -0.6778521321 | AE64: -9.834597417 | AF64: 198115.1643 | AG64: 0.2125002077 | AH64: -12.41612696
A65: 2009-06-01 | B65: 142942.1107 | C65: 0.2228148027 | D65: -9.368257701 | E65: 155097.9142 | F65: -0.07642980903 | G65: -9.537317598 | H65: 151681.7006 | I65: 0.417998975 | J65: -10.32662648 | K65: 156517.9393 | L65: 0.482500562 | M65: -10.60392172 | N65: 168843.8158 | O65: 2.154610301 | P65: -9.136786415 | Q65: 207213.9845 | R65: 0.8857504047 | S65: -12.26336917 | T65: 314681.1466 | U65: 0.7746510377 | V65: -10.58255445 | W65: 242461.5296 | X65: 1.075970094 | Y65: -12.95727435 | Z65: 206354.8314 | AA65: 0.6179732261 | AB65: -11.26380873 | AC65: 148414.9895 | AD65: -0.02638283533 | AE65: -9.044883654 | AF65: 199629.1597 | AG65: 0.7641996132 | AH65: -11.05240911
A66: 2009-07-01 | B66: 141961.8152 | C66: -0.6857989333 | D66: -7.837107531 | E66: 157055.4961 | F66: 1.262158729 | G66: -7.399114824 | H66: 153596.3198 | I66: 1.262261162 | J66: -7.505840525 | K66: 158538.3652 | L66: 1.290859044 | M66: -8.365419747 | N66: 169571.9458 | O66: 0.4312446634 | P66: -7.472383977 | Q66: 209089.9313 | R66: 0.9053186212 | S66: -10.03893993 | T66: 318635.448 | U66: 1.256605727 | V66: -8.160121417 | W66: 243455.1683 | X66: 0.40981293 | Y66: -11.35790604 | Z66: 207540.7349 | AA66: 0.5746913826 | AB66: -9.331547074 | AC66: 148719.3746 | AD66: 0.2050905474 | AE66: -7.901901156 | AF66: 201223.033 | AG66: 0.798417108 | AH66: -9.0303493
A67: 2009-08-01 | B67: 143267.0652 | C67: 0.9194373333 | D67: -5.066666549 | E67: 158774.7752 | F67: 1.094695271 | G67: -5.351997067 | H67: 156032.3551 | I67: 1.585998528 | J67: -5.106281685 | K67: 159671.7079 | L67: 0.7148696312 | M67: -6.292122653 | N67: 171816.0837 | O67: 1.323413438 | P67: -5.201123304 | Q67: 211947.2864 | R67: 1.366567486 | S67: -7.005873691 | T67: 321692.8244 | U67: 0.9595217562 | V67: -6.074733064 | W67: 247101.0401 | X67: 1.497553665 | Y67: -8.685225532 | Z67: 208179.2847 | AA67: 0.3076744679 | AB67: -7.688200307 | AC67: 151094.7832 | AD67: 1.597242204 | AE67: -6.435022917 | AF67: 203501.9412 | AG67: 1.132528471 | AH67: -6.728305421
A68: 2009-09-01 | B68: 146699.1652 | C68: 2.395595956 | D68: -1.87314517 | E68: 160683.2645 | F68: 1.202010377 | G68: -2.691899005 | H68: 158616.3056 | I68: 1.656035039 | J68: -2.458505338 | K68: 161191.0047 | L68: 0.9515128496 | M68: -3.42588602 | N68: 171621.4802 | O68: -0.113262646 | P68: -3.862105443 | Q68: 213460.7086 | R68: 0.7140559797 | S68: -4.312613862 | T68: 329167.2275 | U68: 2.323459702 | V68: -1.954669608 | W68: 250850.5873 | X68: 1.517414553 | Y68: -5.917396669 | Z68: 210275.9092 | AA68: 1.007124437 | AB68: -5.144402256 | AC68: 152695.0354 | AD68: 1.059104849 | AE68: -4.169914599 | AF68: 206187.3193 | AG68: 1.319583562 | AH68: -3.893924246
A69: 2009-10-01 | B69: 149627.5266 | C69: 1.996167703 | D69: 1.174812511 | E69: 162017.7814 | F69: 0.8305264014 | G69: 0.1232737843 | H69: 160615.955 | I69: 1.260683394 | J69: -0.2652468865 | K69: 161898.3178 | L69: 0.4388043295 | M69: -1.763151854 | N69: 171970.4146 | O69: 0.2033162665 | P69: -2.242827823 | Q69: 216146.797 | R69: 1.258352584 | S69: -0.8685395443 | T69: 332340.0389 | U69: 0.9638904129 | V69: 0.8810846938 | W69: 254757.0268 | X69: 1.5572774 | Y69: -2.110857793 | Z69: 213427.0383 | AA69: 1.498568768 | AB69: -2.2118685 | AC69: 155554.9294 | AD69: 1.872944995 | AE69: -1.084980683 | AF69: 208584.3864 | AG69: 1.162567627 | AH69: -0.9733063862
A70: 2009-11-01 | B70: 150684.5781 | C70: 0.7064552396 | D70: 3.516638484 | E70: 163287.084 | F70: 0.7834341538 | G70: 1.98150357 | H70: 161568.1968 | I70: 0.5928687032 | J70: 1.92820506 | K70: 162600.4998 | L70: 0.4337179313 | M70: -0.09970819756 | N70: 171218.4471 | O70: -0.4372656591 | P70: -0.8555368837 | Q70: 214963.6985 | R70: -0.5473587842 | S70: 1.015385462 | T70: 334239.4414 | U70: 0.57152382 | V70: 4.169143886 | W70: 254764.4132 | X70: 0.00289940033 | Y70: 0.9178526428 | Z70: 213838.6781 | AA70: 0.1928714683 | AB70: -0.1283683503 | AC70: 155927.8918 | AD70: 0.2397625423 | AE70: 0.8340972741 | AF70: 209002.7127 | AG70: 0.2005549746 | AH70: 1.393320607
A71: 2009-12-01 | B71: 148114.0747 | C71: -1.705883498 | D71: 3.109057056 | E71: 164163.602 | F71: 0.5367956267 | G71: 3.533539681 | H71: 164103.051 | I71: 1.568906653 | J71: 4.49915451 | K71: 164676.4144 | L71: 1.27669632 | M71: 2.751816253 | N71: 175531.2598 | O71: 2.51889488 | P71: 2.849629268 | Q71: 221230.3785 | R71: 2.91522713 | S71: 5.274679419 | T71: 340010.1111 | U71: 1.726507715 | V71: 6.902050072 | W71: 260940.7231 | X71: 2.424322072 | Y71: 6.48932422 | Z71: 220728.5037 | AA71: 3.221973533 | AB71: 4.947037686 | AC71: 157608.4141 | AD71: 1.077756031 | AE71: 2.836421301 | AF71: 213111.8095 | AG71: 1.966049509 | AH71: 5.017383822
A72: 2010-01-01 | B72: 150796.0508 | C72: 1.810750333 | D72: 5.359725213 | E72: 164553.1783 | F72: 0.2373098356 | G72: 3.353389893 | H72: 165298.4935 | I72: 0.7284706396 | J72: 6.15538435 | K72: 167812.4373 | L72: 1.904354597 | M72: 5.891901782 | N72: 179902.432 | O72: 2.490252866 | P72: 6.174724716 | Q72: 224080.0695 | R72: 1.288110126 | S72: 6.319865077 | T72: 347414.7602 | U72: 2.177773203 | V72: 10.24110582 | W72: 265363.2082 | X72: 1.694823641 | Y72: 9.755347529 | Z72: 223968.1119 | AA72: 1.467689066 | AB72: 8.215968533 | AC72: 157406.8026 | AD72: -0.127919239 | AE72: 2.118130125 | AF72: 216322.8613 | AG72: 1.506745103 | AH72: 7.384348501
A73: 2010-02-01 | B73: 152781.8709 | C73: 1.316891342 | D73: 6.468642656 | E73: 165304.835 | F73: 0.4567864702 | G73: 5.089294452 | H73: 166464.7517 | I73: 0.7055467932 | J73: 7.69909393 | K73: 169013.8309 | L73: 0.7159145265 | M73: 7.151445116 | N73: 182712.773 | O73: 1.562147307 | P73: 8.442029235 | Q73: 229729.137 | R73: 2.521004012 | S73: 9.473791782 | T73: 355709.5947 | U73: 2.3875884 | V73: 13.50478863 | W73: 270532.1426 | X73: 1.947871566 | Y73: 12.48651267 | Z73: 227899.5194 | AA73: 1.755342522 | AB73: 11.04738651 | AC73: 158515.678 | AD73: 0.7044646908 | AE73: 3.582002557 | AF73: 219924.8725 | AG73: 1.6651089 | AH73: 9.854983325
A74: 2010-03-01 | B74: 154776.3959 | C74: 1.30547224 | D74: 8.268238998 | E74: 165912.4799 | F74: 0.3675904923 | G74: 5.778674753 | H74: 164487.7995 | I74: -1.187610091 | J74: 7.607990651 | K74: 167165.0324 | L74: -1.093874086 | M74: 6.264484031 | N74: 179827.6719 | O74: -1.579036337 | P74: 8.284282939 | Q74: 227704.516 | R74: -0.8813078781 | S74: 9.829816386 | T74: 354524.993 | U74: -0.3330249593 | V74: 14.34644134 | W74: 269449.8871 | X74: -0.4000469248 | Y74: 12.78080344 | Z74: 225185.4984 | AA74: -1.190884899 | AB74: 10.55733023 | AC74: 157139.7581 | AD74: -0.868002351 | AE74: 3.331336492 | AF74: 218537.5127 | AG74: -0.6308335088 | AH74: 10.07045054
A75: 2010-04-01 | B75: 152758.0059 | C75: -1.304068312 | D75: 6.52547255 | E75: 166454.219 | F75: 0.3265210637 | G75: 7.172595911 | H75: 163650.5207 | I75: -0.5090218157 | J75: 8.104673388 | K75: 166106.6382 | L75: -0.6331433214 | M75: 6.326654161 | N75: 177936.8303 | O75: -1.051474198 | P75: 7.655644523 | Q75: 227621.9195 | R75: -0.03627356171 | S75: 10.88545892 | T75: 351857.3925 | U75: -0.7524435681 | V75: 13.9528198 | W75: 269070.7114 | X75: -0.1407221837 | Y75: 12.13154152 | Z75: 225529.217 | AA75: 0.1526379696 | AB75: 10.927216 | AC75: 156389.3856 | AD75: -0.477519211 | AE75: 4.631154254 | AF75: 217809.9155 | AG75: -0.3329392681 | AH75: 10.17468691
A76: 2010-05-01 | B76: 150612.2824 | C76: -1.404655342 | D76: 5.600699563 | E76: 166035.4515 | F76: -0.2515812259 | G76: 6.970201185 | H76: 162731.4268 | I76: -0.5616199598 | J76: 7.733261058 | K76: 166595.0706 | L76: 0.2940475309 | M76: 6.95188908 | N76: 177077.4874 | O76: -0.4829482928 | P76: 7.136181657 | Q76: 228579.3236 | R76: 0.4206115543 | S76: 11.28783917 | T76: 350538.4502 | U76: -0.3748513672 | V76: 12.25772619 | W76: 271203.2051 | X76: 0.7925402597 | Y76: 13.0576347 | Z76: 226422.6813 | AA76: 0.3961634519 | AB76: 10.40299433 | AC76: 156143.9813 | AD76: -0.156918802 | AE76: 5.179932717 | AF76: 217968.902 | AG76: 0.07299324105 | AH76: 10.02131147
A77: 2010-06-01 | B77: 150516.9905 | C77: -0.06326971492 | D77: 5.299263954 | E77: 164048.712 | F77: -1.196575459 | G77: 5.771062631 | H77: 162214.6631 | I77: -0.3175561442 | J77: 6.944122134 | K77: 167578.0716 | L77: 0.5900540397 | M77: 7.066367198 | N77: 178713.2627 | O77: 0.9237623852 | P77: 5.845311421 | Q77: 230279.9242 | R77: 0.7439870973 | S77: 11.13145898 | T77: 354981.5876 | U77: 1.267517829 | V77: 12.80675419 | W77: 272229.4361 | X77: 0.3783992902 | Y77: 12.27737303 | Z77: 225882.1534 | AA77: -0.2387251503 | AB77: 9.462982693 | AC77: 156659.444 | AD77: 0.3301201175 | AE77: 5.555001236 | AF77: 218732.6911 | AG77: 0.3504119457 | AH77: 9.569509517
A78: 2010-07-01 | B78: 149805.139 | C78: -0.4729376367 | D78: 5.524953106 | E78: 163183.8519 | F78: -0.5271971457 | G78: 3.902032041 | H78: 162357.4537 | I78: 0.08802568825 | J78: 5.703999895 | K78: 166748.5022 | L78: -0.4950345441 | M78: 5.178643661 | N78: 178388.2064 | O78: -0.1818870158 | P78: 5.199126921 | Q78: 231762.1786 | R78: 0.6436750427 | S78: 10.84329942 | T78: 358751.8443 | U78: 1.062099228 | V78: 12.59006071 | W78: 273749.8231 | X78: 0.5584947358 | Y78: 12.44362772 | Z78: 226037.1633 | AA78: 0.06862422433 | AB78: 8.912191835 | AC78: 156409.4186 | AD78: -0.1595980214 | AE78: 5.170842087 | AF78: 219353.3237 | AG78: 0.2837402186 | AH78: 9.010047415
A79: 2010-08-01 | B79: 149100.4142 | C79: -0.4704276189 | D79: 4.071660879 | E79: 163980.3925 | F79: 0.4881246616 | G79: 3.278617343 | H79: 163540.6424 | I79: 0.7287553985 | J79: 4.812006619 | K79: 166620.9407 | L79: -0.07649935095 | M79: 4.352200491 | N79: 180295.2477 | O79: 1.069039974 | P79: 4.935023439 | Q79: 232630.975 | R79: 0.3748654649 | S79: 9.758883454 | T79: 361221.2895 | U79: 0.6883435455 | V79: 12.28764276 | W79: 274098.2872 | X79: 0.1272929067 | Y79: 10.92559024 | Z79: 225733.6192 | AA79: -0.1342894677 | AB79: 8.432315682 | AC79: 156784.9242 | AD79: 0.2400786342 | AE79: 3.765941399 | AF79: 220110.6617 | AG79: 0.3452594084 | AH79: 8.161455581
A80: 2010-09-01 | B80: 150144.3692 | C80: 0.7001690581 | D80: 2.348482342 | E80: 165916.0313 | F80: 1.18040869 | G80: 3.256572402 | H80: 163722.6006 | I80: 0.1112617419 | J80: 3.219274923 | K80: 166516.9423 | L80: -0.06241619818 | M80: 3.304115878 | N80: 180235.5568 | O80: -0.03310731879 | P80: 5.019229825 | Q80: 232453.7572 | R80: -0.07617980714 | S80: 8.89767896 | T80: 359282.7365 | U80: -0.5366663158 | V80: 9.148999781 | W80: 273237.261 | X80: -0.3141304921 | Y80: 8.924305871 | Z80: 226312.1772 | AA80: 0.2563012023 | AB80: 7.626298261 | AC80: 156707.6683 | AD80: -0.04927505511 | AE80: 2.627873886 | AF80: 220078.8974 | AG80: -0.01443106368 | AH80: 6.737358101
A81: 2010-10-01 | B81: 150662.0396 | C81: 0.3447817373 | D81: 0.6913921674 | E81: 165277.2075 | F81: -0.3850283867 | G81: 2.0117706 | H81: 162348.9016 | I81: -0.8390405402 | J81: 1.078937975 | K81: 166220.8744 | L81: -0.1778004304 | M81: 2.669920658 | N81: 180098.1834 | O81: -0.07621876936 | P81: 4.726259938 | Q81: 230633.5691 | R81: -0.7830323207 | S81: 6.702283989 | T81: 358626.9593 | U81: -0.1825239947 | V81: 7.909645935 | W81: 271811.8217 | X81: -0.5216855352 | Y81: 6.694533663 | Z81: 225678.1815 | AA81: -0.2801420903 | AB81: 5.740202055 | AC81: 155875.1337 | AD81: -0.5312660642 | AE81: 0.2058464342 | AF81: 219216.3106 | AG81: -0.3919443618 | AH81: 5.097181238
A82: 2010-11-01 | B82: 148798.8063 | C82: -1.236697246 | D82: -1.251469673 | E82: 163658.5702 | F82: -0.9793469735 | G82: 0.2275049067 | H82: 161397.3565 | I82: -0.5861112126 | J82: -0.1057388245 | K82: 165104.2286 | L82: -0.6717843544 | M82: 1.539803858 | N82: 178126.0861 | O82: -1.095012342 | P82: 4.034401177 | Q82: 227777.7957 | R82: -1.238229746 | S82: 5.961051693 | T82: 358728.8132 | U82: 0.02840108658 | V82: 7.326894678 | W82: 269345.5718 | X82: -0.9073372418 | Y82: 5.72338908 | Z82: 224577.2778 | AA82: -0.4878201902 | AB82: 5.021822869 | AC82: 154091.6854 | AD82: -1.144151861 | AE82: -1.177599722 | AF82: 217612.0816 | AG82: -0.7318018389 | AH82: 4.119261774
A83: 2010-12-01 | B83: 147029.3025 | C83: -1.189192192 | D83: -0.732389703 | E83: 162705.5901 | F83: -0.5822977056 | G83: -0.8881456544 | H83: 160103.7239 | I83: -0.8015202599 | J83: -2.437082667 | K83: 164153.716 | L83: -0.5757046018 | M83: -0.3174094317 | N83: 177170.5361 | O83: -0.5364458257 | P83: 0.9338942792 | Q83: 227932.7834 | R83: 0.06804339619 | S83: 3.029604217 | T83: 361693.5378 | U83: 0.826452861 | V83: 6.377288772 | W83: 269144.6059 | X83: -0.07461267165 | Y83: 3.143964146 | Z83: 226545.5216 | AA83: 0.876421631 | AB83: 2.63537231 | AC83: 152847.7334 | AD83: -0.8072804423 | AE83: -3.020575231 | AF83: 217601.6277 | AG83: -0.004803922318 | AH83: 2.106789924
A84: 2011-01-01 | B84: 146746.2012 | C84: -0.1925475392 | D84: -2.685647015 | E84: 162195.9611 | F84: -0.3132215783 | G84: -1.432495751 | H84: 160594.5674 | I84: 0.3065783836 | J84: -2.845716284 | K84: 164163.7572 | L84: 0.006116946575 | M84: -2.174260861 | N84: 176950.3177 | O84: -0.1242974445 | P84: -1.64095296 | Q84: 228130.1763 | R84: 0.08660134641 | S84: 1.807437332 | T84: 364007.8797 | U84: 0.6398626662 | V84: 4.776169975 | W84: 271670.5744 | X84: 0.9385172307 | Y84: 2.376880449 | Z84: 225252.8176 | AA84: -0.570615567 | AB84: 0.5736110065 | AC84: 153133.977 | AD84: 0.1872737255 | AE84: -2.714511392 | AF84: 218123.1469 | AG84: 0.2396669919 | AH84: 0.8322216333
A85: 2011-02-01 | B85: 150279.7585 | C85: 2.407937865 | D85: -1.637702441 | E85: 162096.086 | F85: -0.06157677552 | G85: -1.941110183 | H85: 159504.8273 | I85: -0.6785659516 | J85: -4.181019915 | K85: 164168.8485 | L85: 0.003101378787 | M85: -2.8666189 | N85: 175856.5638 | O85: -0.6181135552 | P85: -3.752452041 | Q85: 230159.0016 | R85: 0.8893279056 | S85: 0.1871180176 | T85: 369585.2432 | U85: 1.53220957 | V85: 3.900836168 | W85: 275532.457 | X85: 1.421531452 | Y85: 1.848325432 | Z85: 226868.0741 | AA85: 0.7170860324 | AB85: -0.4525877333 | AC85: 153877.2938 | AD85: 0.4854029323 | AE85: -2.926135875 | AF85: 219783.2442 | AG85: 0.761082558 | AH85: -0.06439850922
A86: 2011-03-01 | B86: 149317.6431 | C86: =B86/B85*100-100 -> -0.6402162023 | D86: -3.526863818 | E86: 160744.1123 | F86: =E86/E85*100-100 -> -0.8340569659 | G86: -3.115116804 | H86: 160151.7373 | I86: 0.4055739121 | J86: -2.636099623 | K86: 163246.0336 | L86: =K86/K85*100-100 -> -0.5621132915 | M86: -2.344389124 | N86: 175276.1987 | O86: =N86/N85*100-100 -> -0.3300218763 | P86: -2.531019384 | Q86: 230329.9354 | R86: =Q86/Q85*100-100 -> 0.07426769918 | S86: 1.15299399 | T86: 372409.6354 | U86: =T86/T85*100-100 -> 0.7642058706 | V86: 5.044677452 | W86: 278199.5028 | X86: =W86/W85*100-100 -> 0.9679606641 | Y86: 3.247214466 | Z86: 224453.8955 | AA86: =Z86/Z85*100-100 -> -1.064133247 | AB86: -0.3248889985 | AC86: 153579.2251 | AD86: =AC86/AC85*100-100 -> -0.1937054422 | AE86: -2.265838412 | AF86: 219987.9204 | AG86: =AF86/AF85*100-100 -> 0.09312641322 | AH86: 0.6636882084
A87: 2011-04-01 | B87: 148240.0202 | C87: -0.72169834 | D87: -2.95760978 | E87: 159202.5817 | F87: -0.9589966423 | G87: -4.356535638 | H87: 159405.8619 | I87: -0.4657304268 | J87: -2.593733787 | K87: 162188.9893 | L87: -0.6475160429 | M87: -2.358514326 | N87: 174557.1025 | O87: -0.4102645661 | P87: -1.899397552 | Q87: 229067.523 | R87: -0.5480887357 | S87: 0.6350897556 | T87: 367987.2452 | U87: -1.187506923 | V87: 4.584201734 | W87: 273137.0137 | X87: -1.819733356 | Y87: 1.511239298 | Z87: 224190.2406 | AA87: -0.1174650656 | AB87: -0.5937041846 | AC87: 151504.5605 | AD87: -1.35087585 | AE87: -3.123501708 | AF87: 217896.5603 | AG87: -0.9506704207 | AH87: 0.03978001155
A88: 2011-05-01 | B88: 146601.7245 | C88: -1.105164253 | D88: -2.662835912 | E88: 157306.0039 | F88: -1.19129838 | G88: -5.257580539 | H88: 157579.2738 | I88: =H88/H87*100-100 -> -1.145872574 | J88: =H88/H76*100-100 -> -3.166046667 | K88: 161104.2783 | L88: -0.6687945102 | M88: -3.295891266 | N88: 174304.0374 | O88: -0.1449755413 | P88: -1.566235245 | Q88: 226829.7358 | R88: -0.9769115873 | S88: -0.765418214 | T88: 358984.0475 | U88: -2.446605919 | V88: 2.409321205 | W88: 269354.4173 | X88: -1.384871412 | Y88: -0.6816983601 | Z88: 221920.9973 | AA88: -1.012195394 | AB88: -1.988177152 | AC88: 149780.9732 | AD88: -1.137647128 | AE88: -4.075090189 | AF88: 215070.5516 | AG88: -1.296949676 | AH88: -1.329708235
A89: 2011-06-01 | B89: 145113.2356 | C89: -1.015328334 | D89: -3.590129469 | E89: 157495.491 | F89: 0.1204576167 | G89: -3.994679979 | H89: 156065.8865 | I89: -0.9603974764 | J89: -3.790518391 | K89: 162006.4693 | L89: 0.5600044111 | M89: -3.324780032 | N89: 172575.3388 | O89: -0.9917719918 | P89: -3.434509433 | Q89: 225319.9989 | R89: -0.6655815736 | S89: -2.153867903 | T89: 354090.5398 | U89: -1.363154613 | V89: -0.2510123834 | W89: 266979.5047 | X89: -0.8817054383 | Y89: -1.928495105 | Z89: 220487.0521 | AA89: -0.6461512072 | AB89: -2.38845843 | AC89: 149957.2479 | AD89: 0.117688285 | AE89: -4.278194743 | AF89: 213541.4729 | AG89: -0.7109660746 | AH89: -2.373316098
A90: 2011-07-01 | B90: 141382.9725 | C90: -2.570587789 | D90: -5.622081129 | E90: 159073.3724 | F90: 1.001858184 | G90: -2.51892538 | H90: 156017.4579 | I90: -0.03103084897 | J90: -3.904961329 | K90: 162494.4916 | L90: 0.3012362647 | M90: -2.551153759 | N90: 171702.0028 | O90: -0.5060607156 | P90: -3.748119773 | Q90: 226273.7672 | R90: 0.4232949999 | S90: -2.36812215 | T90: 359756.8617 | U90: 1.600246613 | V90: 0.2801427893 | W90: 268686.778 | X90: 0.6394772793 | Y90: -1.849515404 | Z90: 220274.9059 | AA90: -0.09621709121 | AB90: -2.549252235 | AC90: 150884.4482 | AD90: 0.6183097994 | AE90: -3.532377024 | AF90: 214581.3429 | AG90: 0.486963931 | AH90: -2.175476876
A91: 2011-08-01 | B91: 139442.2071 | C91: -1.372700932 | D91: -6.477652749 | E91: 159744.0825 | F91: 0.4216356654 | G91: -2.583424731 | H91: 157591.1457 | I91: 1.008661365 | J91: -3.637931575 | K91: 162972.2148 | L91: 0.2939934831 | M91: -2.189836361 | N91: 172914.4306 | O91: 0.7061232741 | P91: -4.093739111 | Q91: 227161.5173 | R91: 0.3923345377 | S91: -2.351130462 | T91: 366146.3014 | U91: 1.776043855 | V91: 1.363433451 | W91: 270517.508 | X91: 0.681362165 | Y91: -1.306385108 | Z91: 220405.4295 | AA91: 0.05925487972 | AB91: -2.360388197 | AC91: 152723.5648 | AD91: 1.218890735 | AE91: -2.590401738 | AF91: 216103.808 | AG91: 0.7095049066 | AH91: -1.820381455
A92: 2011-09-01 | B92: 139179.6783 | C92: -0.1882707473 | D92: -7.302765326 | E92: 159310.4364 | F92: -0.2714630216 | G92: -3.981287931 | H92: 157323.781 | I92: -0.1696571975 | J92: -3.908330026 | K92: 162812.5772 | L92: -0.09795384423 | M92: -2.2246175 | N92: 172812.3818 | O92: -0.05901692158 | P92: -4.118596272 | Q92: 226510.1289 | R92: -0.2867512012 | S92: -2.556907809 | T92: 368079.0947 | U92: 0.5278746115 | V92: 2.448310858 | W92: 269178.4604 | X92: -0.4949948253 | Y92: -1.485449151 | Z92: 221835.5009 | AA92: 0.6488367237 | AB92: -1.978097853 | AC92: 152997.6562 | AD92: 0.1794690125 | AE92: -2.367473212 | AF92: 216078.3875 | AG92: -0.01176309508 | AH92: -1.817761675
A93: 2011-10-01 | B93: 141086.8944 | C93: 1.370326568 | D93: -6.355380039 | E93: 158517.303 | F93: -0.4978540012 | G93: -4.090040361 | H93: 156744.188 | I93: -0.3684077525 | J93: -3.452264546 | K93: 162531.0851 | L93: -0.1728933577 | M93: -2.219811045 | N93: 173949.5068 | O93: 0.6580113042 | P93: -3.414069189 | Q93: 226763.2129 | R93: 0.1117318468 | S93: -1.678140907 | T93: 370122.4755 | U93: 0.5551472093 | V93: 3.20542446 | W93: 268295.427 | X93: -0.3280475762 | Y93: -1.293687191 | Z93: 221952.8701 | AA93: 0.05290822209 | AB93: -1.650718474 | AC93: 155902.278 | AD93: 1.898474654 | AE93: 0.01741414224 | AF93: 216350.889 | AG93: 0.1261123351 | AH93: -1.307120586
A94: 2011-11-01 | B94: 140139.955 | C94: -0.6711745906 | D94: -5.819167168 | E94: 157682.791 | F94: -0.5264485343 | G94: -3.651369541 | H94: 156171.8538 | I94: -0.365139043 | J94: -3.237663118 | K94: 162960.4136 | L94: 0.2641515932 | M94: -1.298461626 | N94: 172323.1987 | O94: -0.9349311475 | P94: -3.257741469 | Q94: 224823.7469 | R94: -0.855282431 | S94: -1.296899341 | T94: 369058.3899 | U94: -0.2874955453 | V94: 2.879494568 | W94: 265965.0695 | X94: -0.8685789102 | Y94: -1.255079974 | Z94: 220631.4554 | AA94: -0.5953582191 | AB94: -1.756999814 | AC94: 155378.4583 | AD94: -0.3359923058 | AE94: 0.8350696521 | AF94: 215125.5152 | AG94: -0.5663826066 | AH94: -1.142660057
A95: 2011-12-01 | B95: 139962.4544 | C95: -0.126659508 | D95: -4.806421545 | E95: 156258.3 | F95: -0.9033902361 | G95: -3.962549793 | H95: 157522.9643 | I95: 0.8651434341 | J95: -1.611929797 | K95: 162421.5525 | L95: -0.3306698836 | M95: -1.055208168 | N95: 173694.9024 | O95: 0.7960064203 | P95: -1.961744752 | Q95: 224929.6973 | R95: 0.04712594336 | S95: -1.317531477 | T95: 370838.2596 | U95: 0.4822732035 | V95: 2.528306678 | W95: 264712.4156 | X95: -0.4709843418 | Y95: -1.646769112 | Z95: 221454.1576 | AA95: 0.3728852627 | AB95: -2.247391154 | AC95: 154585.8976 | AD95: -0.5100840511 | AE95: 1.137186773 | AF95: 215194.3639 | AG95: 0.03200393374 | AH95: -1.106271042
A96: 2012-01-01 | B96: 141314.522 | C96: 0.9660216242 | D96: -3.701410428 | E96: 156595.8089 | F96: 0.2159941955 | G96: -3.452707521 | H96: 157738.1371 | I96: 0.1365977314 | J96: -1.778659324 | K96: 163024.0554 | L96: 0.3709500815 | M96: -0.6942468622 | N96: 174076.6787 | O96: 0.2197970473 | P96: -1.623980684 | Q96: 226092.8454 | R96: 0.5171162985 | S96: -0.8930562958 | T96: 372065.2685 | U96: 0.3308744012 | V96: 2.213520442 | W96: 266338.4435 | X96: 0.6142620494 | Y96: -1.962719312 | Z96: 221665.1076 | AA96: 0.09525672156 | AB96: -1.592748125 | AC96: 152973.8826 | AD96: -1.042795602 | AE96: -0.1045453028 | AF96: 215889.2019 | AG96: 0.3228885871 | AH96: -1.024166879
A97: 2012-02-01 | B97: 144018.2234 | C97: 1.913250918 | D97: =B97/B85*100-100 -> -4.166585846 | E97: 158387.6945 | F97: 1.144274323 | G97: =E97/E85*100-100 -> -2.287773606 | H97: 158296.6267 | I97: 0.3540612348 | J97: -0.7574696117 | K97: 163907.7647 | L97: 0.5420729608 | M97: =K97/K85*100-100 -> -0.1590336725 | N97: 174336.4165 | O97: 0.1492088486 | P97: =N97/N85*100-100 -> -0.8644245285 | Q97: 227128.0886 | R97: 0.457884128 | S97: =Q97/Q85*100-100 -> -1.316877874 | T97: 371846.1433 | U97: -0.05889429647 | V97: =T97/T85*100-100 -> 0.6117398016 | W97: 267525.4004 | X97: 0.4456573623 | Y97: =W97/W85*100-100 -> -2.90603027 | Z97: 221388.1491 | AA97: -0.1249445305 | AB97: =Z97/Z85*100-100 -> -2.415467655 | AC97: 153123.2935 | AD97: 0.0976708194 | AE97: =AC97/AC85*100-100 -> -0.4900010465 | AF97: 216649.9492 | AG97: 0.352378592 | AH97: =AF97/AF85*100-100 -> -1.425629572
A98: 2012-03-01 | B98: 145946.5893 | C98: 1.338973536 | D98: -2.257639362 | E98: 158929.0414 | F98: 0.3417859203 | G98: -1.129167911 | H98: 156887.88 | I98: -0.8899410992 | J98: -2.037978082 | K98: 164238.1977 | L98: 0.2015968661 | M98: 0.6077722468 | N98: 173542.3023 | O98: -0.4555067996 | P98: -0.9892366365 | Q98: 229759.8156 | R98: 1.158697282 | S98: -0.2475230897 | T98: 376854.5952 | U98: 1.346915113 | V98: 1.193567348 | W98: 272886.5465 | X98: 2.003976475 | Y98: -1.90976485 | Z98: 221807.8525 | AA98: 0.1895780476 | AB98: -1.178880416 | AC98: 154170.2343 | AD98: 0.6837240648 | AE98: 0.3848236297 | AF98: 218490.0487 | AG98: 0.8493421937 | AH98: -0.6808881785
A99: 2012-04-01 | B99: 144899.9063 | C99: -0.7171684819 | D99: -2.253179585 | E99: 157760.6706 | F99: -0.7351524717 | G99: -0.9057083476 | H99: 157904.948 | I99: 0.6482769949 | J99: -0.9415675702 | K99: 164093.1567 | L99: -0.08831136569 | M99: 1.174042304 | N99: 172177.021 | O99: -0.7867138561 | P99: -1.363497412 | Q99: 229174.9819 | R99: -0.2545413615 | S99: 0.04691144949 | T99: 383406.8461 | U99: 1.73866817 | V99: 4.190254175 | W99: 274614.8988 | X99: 0.6333592948 | Y99: 0.5410783099 | Z99: 222627.4456 | AA99: 0.3695058998 | AB99: -0.6970843137 | AC99: 154492.1762 | AD99: 0.2088223687 | AE99: 1.971964234 | AF99: 219309.1046 | AG99: 0.3748710673 | AH99: 0.6482637081
A100: 2012-05-01 | B100: 143754.03 | C100: -0.7908054092 | D100: -1.942469959 | E100: 156723.7915 | F100: -0.6572481718 | G100: -0.3701145569 | H100: 158056.5184 | I100: 0.09598837233 | J100: 0.3028599699 | K100: 163524.9396 | L100: -0.3462771436 | M100: 1.502543157 | N100: 172759.8072 | O100: 0.3384808468 | P100: -0.8859405983 | Q100: 231875.7411 | R100: 1.178470352 | S100: 2.22457839 | T100: 393599.1622 | U100: 2.658355285 | V100: 9.64252173 | W100: 277630.472 | X100: 1.098109837 | Y100: 3.072552088 | Z100: 225135.5306 | AA100: 1.126583908 | AB100: 1.448503433 | AC100: 154194.2413 | AD100: -0.1928478783 | AE100: 2.946481151 | AF100: 221366.3378 | AG100: 0.9380518887 | AH100: 2.927312088
A101: 2012-06-01 | B101: 143197.9132 | C101: -0.386853067 | D101: -1.319881316 | E101: 157343.7647 | F101: 0.395583363 | G101: -0.09633687714 | H101: 158956.6672 | I101: 0.5695107161 | J101: 1.852282254 | K101: 163801.6853 | L101: 0.1692376 | M101: 1.108113728 | N101: 173063.2355 | O101: 0.1756359539 | P101: 0.2827152075 | Q101: 231365.5589 | R101: -0.2200239703 | S101: 2.683099604 | T101: 394893.581 | U101: 0.3288672654 | V101: 11.52333559 | W101: 276786.5003 | X101: -0.3039910204 | Y101: 3.673314033 | Z101: 224364.9535 | AA101: -0.3422725119 | AB101: 1.758788734 | AC101: 153612.2649 | AD101: -0.3774307218 | AE101: 2.437372717 | AF101: 221374.8588 | AG101: 0.00384925423 | AH101: 3.668320611
A102: 2012-07-01 | B102: 142539.1345 | C102: -0.4600476602 | D102: 0.8177519271 | E102: 156731.7512 | F102: -0.3889658344 | G102: -1.472038441 | H102: 157317.7564 | I102: -1.031042511 | J102: 0.8334313954 | K102: 163125.0381 | L102: -0.4130892296 | M102: 0.3880418127 | N102: 173005.5684 | O102: -0.03332139988 | P102: 0.7592023433 | Q102: 232024.336 | R102: 0.2847343019 | S102: 2.541420903 | T102: 395532.051 | U102: 0.1616815307 | V102: 9.944268785 | W102: 277499.4214 | X102: 0.2575707433 | Y102: 3.279894698 | Z102: 223149.7662 | AA102: -0.5416119286 | AB102: 1.305123839 | AC102: 152997.9285 | AD102: -0.3999266364 | AE102: 1.400727742 | AF102: 221152.4015 | AG102: -0.1004889521 | AH102: 3.062269324
A103: 2012-08-01 | B103: 142247.9654 | C103: -0.2042730914 | D103: 2.012129846 | E103: 158190.8539 | F103: 0.9309553587 | G103: -0.9723231073 | H103: 157361.9029 | I103: 0.02806202054 | J103: -0.1454668044 | K103: 162236.1396 | L103: -0.5449185334 | M103: -0.4516568739 | N103: 172706.7434 | O103: -0.1727256994 | P103: -0.1201098442 | Q103: 231545.6541 | R103: -0.2063067364 | S103: 1.929964589 | T103: 393491.1249 | U103: -0.5159951251 | V103: 7.468277971 | W103: 276354.3075 | X103: -0.4126545118 | Y103: 2.157642031 | Z103: 222860.9981 | AA103: -0.1294054978 | AB103: 1.114114392 | AC103: 152240.5446 | AD103: -0.4950288642 | AE103: -0.3162708683 | AF103: 220672.565 | AG103: -0.2169709834 | AH103: 2.114149206
A104: 2012-09-01 | B104: 141747.594 | C104: -0.3517599612 | D104: 1.845036428 | E104: 157474.5443 | F104: -0.4528135221 | G104: -1.152399135 | H104: 157533.1582 | I104: 0.1088289269 | J104: 0.1330868014 | K104: 162726.2145 | L104: 0.3020750647 | M104: -0.05304426662 | N104: 172556.0929 | O104: -0.08722905748 | P104: -0.1483047343 | Q104: 232245.8828 | R104: 0.3024149632 | S104: 2.532228451 | T104: 398553.5898 | U104: 1.286551228 | V104: 8.279333311 | W104: 275472.0373 | X104: -0.3192532744 | Y104: 2.338068557 | Z104: 220824.4294 | AA104: -0.9138290993 | AB104: -0.4557752948 | AC104: 152945.0461 | AD104: 0.4627554782 | AE104: -0.03438625072 | AF104: 220892.3878 | AG104: 0.0996149486 | AH104: 2.227895328
A105: 2012-10-01 | B105: 143281.0993 | C105: 1.081856277 | D105: 1.555215252 | E105: 158440.183 | F105: 0.6132030172 | G105: -0.04865087299 | H105: 157403.1289 | I105: -0.0825409107 | J105: 0.420392551 | K105: 163476.2332 | L105: 0.4609083443 | M105: 0.5815183565 | N105: 173095.2967 | O105: 0.3124802927 | P105: -0.4910678866 | Q105: 232736.1981 | R105: 0.2111190494 | S105: 2.634018632 | T105: 399389.906 | U105: 0.209837836 | V105: 7.907498852 | W105: 274661.1979 | X105: -0.294345458 | Y105: 2.372672171 | Z105: 221491.5438 | AA105: 0.3021017006 | AB105: -0.2078487522 | AC105: 153594.0194 | AD105: 0.4243179602 | AE105: -1.480580408 | AF105: 221300.2796 | AG105: 0.1846563209 | AH105: 2.287668231
A106: 2012-11-01 | B106: 142868.6721 | C106: -0.2878447634 | D106: 1.947137164 | E106: 156505.2507 | F106: -1.221238367 | G106: -0.7467779645 | H106: 157373.8992 | I106: -0.01856995129 | J106: 0.7696940294 | K106: 163997.5476 | L106: 0.3188930651 | M106: 0.6364331019 | N106: 172919.9837 | O106: -0.1012812046 | P106: 0.3463172435 | Q106: 231174.4647 | R106: -0.6710316016 | S106: 2.824753989 | T106: 404527.8964 | U106: 1.286459752 | V106: 9.610811595 | W106: 275219.2289 | X106: 0.2031706899 | Y106: 3.479464238 | Z106: 220266.1567 | AA106: -0.5532432668 | AB106: -0.165569623 | AC106: 153578.2109 | AD106: -0.01029236354 | AE106: -1.158620956 | AF106: 221404.7153 | AG106: 0.0471918484 | AH106: 2.918854161
A107: 2012-12-01 | B107: 142181.9994 | C107: =B107/B106*100-100 -> -0.4806321066 | D107: =B107/B95*100-100 -> 1.585814584 | E107: 156515.7567 | F107: =E107/E106*100-100 -> 0.006712900561 | G107: =E107/E95*100-100 -> 0.1647634991 | H107: 156614.9899 | I107: -0.4822332607 | J107: -0.5764076333 | K107: 163524.7396 | L107: =K107/K106*100-100 -> -0.2883018704 | M107: =K107/K95*100-100 -> 0.6792122168 | N107: 173778.8584 | O107: =N107/N106*100-100 -> 0.4966891062 | P107: =N107/N95*100-100 -> 0.04833529733 | Q107: 231963.9402 | R107: =Q107/Q106*100-100 -> 0.3415063471 | S107: =Q107/Q95*100-100 -> 3.127307334 | T107: 404481.4793 | U107: =T107/T106*100-100 -> -0.01147440744 | V107: =T107/T95*100-100 -> 9.072208371 | W107: 277546.9418 | X107: =W107/W106*100-100 -> 0.8457668088 | Y107: =W107/W95*100-100 -> 4.84847912 | Z107: 222701.8598 | AA107: =Z107/Z106*100-100 -> 1.105799942 | AB107: =Z107/Z95*100-100 -> 0.5634133026 | AC107: 153216.4324 | AD107: =AC107/AC106*100-100 -> -0.2355663371 | AE107: =AC107/AC95*100-100 -> -0.8858927185 | AF107: 222092.4855 | AG107: =AF107/AF106*100-100 -> 0.3106393575 | AH107: =AF107/AF95*100-100 -> 3.205530799
A108: 2013-01-01 | B108: 141736.8326 | C108: -0.3130964345 | D108: 0.2988444936 | E108: 157013.5248 | F108: 0.3180306809 | G108: 0.2667478232 | H108: 156965.3362 | I108: 0.2236991001 | J108: -0.4899264548 | K108: 163767.1203 | L108: 0.1482226764 | M108: 0.455800765 | N108: 174814.295 | O108: 0.5958357665 | P108: 0.4237306681 | Q108: 231579.4857 | R108: -0.1657388816 | S108: 2.426720025 | T108: 409433.7339 | U108: 1.224346448 | V108: 10.04352423 | W108: 277973.2792 | X108: 0.1536091194 | Y108: 4.368440225 | Z108: 222841.7573 | AA108: 0.06281831937 | AB108: 0.5308231824 | AC108: 152370.0834 | AD108: -0.5523878473 | AE108: -0.3947073913 | AF108: 222828.0624 | AG108: 0.3312029828 | AH108: 3.214084098
A109: 2013-02-01 | B109: 144053.0617 | C109: 1.634175861 | D109: 0.02419026106 | E109: 159269.7408 | F109: 1.436956456 | G109: 0.5568906494 | H109: 156787.6865 | I109: -0.1131776894 | J109: -0.953235853 | K109: 165750.8136 | L109: 1.211289104 | M109: 1.124442674 | N109: 176551.1255 | O109: 0.9935288658 | P109: 1.270365075 | Q109: 235630.9752 | R109: 1.749502752 | S109: 3.743652591 | T109: 411497.5559 | U109: 0.5040674186 | V109: 10.66339221 | W109: 279473.0274 | X109: 0.539529602 | Y109: 4.465978531 | Z109: 224241.3178 | AA109: 0.6280512761 | AB109: 1.28876307 | AC109: 154343.4351 | AD109: 1.29510439 | AE109: 0.7968360299 | AF109: 224736.0066 | AG109: 0.8562405262 | AH109: 3.732314445
A110: 2013-03-01 | B110: 144400.6016 | C110: 0.241258195 | D110: -1.059283198 | E110: 159191.8756 | F110: -0.04888890419 | G110: 0.1653783273 | H110: 157322.7632 | I110: 0.341274673 | J110: 0.2771936266 | K110: 164881.539 | L110: -0.524446656 | M110: 0.3917123696 | N110: 175771.0996 | O110: -0.4418130308 | P110: 1.284296262 | Q110: 235696.4049 | R110: 0.02776784824 | S110: 2.583823991 | T110: 417805.9627 | U110: 1.533036261 | V110: 10.86662284 | W110: 281425.9237 | X110: 0.6987781139 | Y110: 3.129277466 | Z110: 223533.8315 | AA110: -0.3155022294 | AB110: 0.7781415311 | AC110: 153865.9788 | AD110: -0.3093466623 | AE110: -0.197350351 | AF110: 225563.6021 | AG110: 0.3682523045 | AH110: 3.237471677
A111: 2013-04-01 | B111: 144253.147 | C111: -0.1021149186 | D111: -0.4463490227 | E111: 159035.1088 | F111: -0.09847659366 | G111: 0.8078301296 | H111: 158108.6056 | I111: 0.4995096697 | J111: 0.1289747965 | K111: 164776.8294 | L111: -0.06350595539 | M111: 0.416636957 | N111: 175198.3962 | O111: -0.3258233982 | P111: 1.754807496 | Q111: 237532.1163 | R111: 0.7788457443 | S111: 3.646617249 | T111: 420149.8072 | U111: 0.5609887623 | V111: 9.583282481 | W111: 282104.8057 | X111: 0.2412293785 | Y111: 2.727421906 | Z111: 223922.0815 | AA111: 0.1736873459 | AB111: 0.5815257387 | AC111: 153623.8852 | AD111: -0.1573405507 | AE111: -0.5620291158 | AF111: 226164.1029 | AG111: 0.2662223958 | AH111: 3.125724444
A112: 2013-05-01 | B112: 142421.357 | C112: -1.269844045 | D112: -0.9270508909 | E112: 157890.7089 | F112: -0.719589514 | G112: 0.7445693952 | H112: 158327.3871 | I112: 0.1383742056 | J112: 0.1713745979 | K112: 163728.4938 | L112: -0.636215406 | M112: 0.1244790285 | N112: 173931.5619 | O112: -0.7230855949 | P112: 0.6782565254 | Q112: 236405.0037 | R112: -0.4745095414 | S112: 1.953314576 | T112: 421774.7101 | U112: 0.386743699 | V112: 7.158436949 | W112: 283296.4469 | X112: 0.4224108111 | Y112: 2.040833215 | Z112: 223652.1663 | AA112: -0.1205397842 | AB112: -0.6588761305 | AC112: 152510.871 | AD112: -0.724505952 | AE112: -1.091720615 | AF112: 225918.1874 | AG112: -0.1087332459 | AH112: 2.056251897
A113: 2013-06-01 | B113: 143632.8142 | C113: 0.8506148101 | D113: 0.3037062508 | E113: 159402.1963 | F113: 0.9572997741 | G113: 1.308238394 | H113: 158662.877 | I113: 0.211896287 | J113: -0.1848241017 | K113: 165177.49 | L113: 0.8849993933 | M113: 0.8399209984 | N113: 175621.4338 | O113: 0.971572933 | P113: 1.478187033 | Q113: 237475.4596 | R113: 0.4528059264 | S113: 2.640799589 | T113: 421649.8953 | U113: -0.02959275281 | V113: 6.775575901 | W113: 281673.4856 | X113: -0.5728844549 | Y113: 1.765615477 | Z113: 223359.6233 | AA113: -0.1308026536 | AB113: -0.4480780928 | AC113: 151651.2348 | AD113: -0.5636557292 | AE113: -1.276610397 | AF113: 226228.0398 | AG113: 0.1371525081 | AH113: 2.192290966
A114: 2013-07-01 | B114: 143670.9561 | C114: 0.02655518042 | D114: 0.7940427161 | E114: 160187.0946 | F114: 0.4924011829 | G114: 2.204622421 | H114: 158223.4266 | I114: -0.2769711463 | J114: 0.5756948311 | K114: 165405.2465 | L114: 0.1378859357 | M114: 1.397828576 | N114: 176300.9887 | O114: 0.3869429881 | P114: 1.90480587 | Q114: 238161.5832 | R114: 0.2889240122 | S114: 2.645087731 | T114: 423758.0778 | U114: 0.4999840949 | V114: 7.136217322 | W114: 282944.8505 | X114: 0.4513612333 | Y114: 1.962320906 | Z114: 224696.0753 | AA114: 0.5983409184 | AB114: 0.6929468021 | AC114: 152233.1228 | AD114: 0.3837015146 | AE114: -0.4998797713 | AF114: 227080.3239 | AG114: 0.3767367124 | AH114: 2.680469371
A115: 2013-08-01 | B115: 143887.3026 | C115: 0.1505846824 | D115: 1.152450343 | E115: 161151.443 | F115: 0.6020138209 | G115: 1.871529907 | H115: 159961.0299 | I115: 1.098195976 | J115: 1.651687547 | K115: 165748.2269 | L115: 0.2073576365 | M115: 2.164799645 | N115: 177732.3401 | O115: 0.8118794147 | P115: 2.90990186 | Q115: 239258.2595 | R115: 0.4604757447 | S115: 3.330922117 | T115: 429316.7244 | U115: 1.311750006 | V115: 9.104550823 | W115: 282756.7545 | X115: -0.06647797048 | Y115: 2.316753123 | Z115: 227086.4818 | AA115: 1.063839869 | AB115: 1.896017564 | AC115: 153293.2076 | AD115: 0.6963561646 | AE115: 0.6914471769 | AF115: 228563.6898 | AG115: 0.6532340215 | AH115: 3.575942872
A116: 2013-09-01 | B116: 143872.6241 | C116: -0.01020136858 | D116: 1.499164831 | E116: 161777.3295 | F116: 0.3883840157 | G116: 2.732368702 | H116: 160301.6497 | I116: 0.2129392318 | J116: 1.757402381 | K116: 167727.0394 | L116: 1.193866416 | M116: 3.073152584 | N116: 178363.7989 | O116: 0.3552863946 | P116: 3.365691658 | Q116: 240226.7088 | R116: 0.4047715027 | S116: 3.436369185 | T116: 435730.5564 | U116: 1.493962779 | V116: 9.327971838 | W116: 283030.8634 | X116: 0.09694158586 | Y116: 2.743954043 | Z116: 228350.4927 | AA116: 0.5566209479 | AB116: 3.408166055 | AC116: 155423.7412 | AD116: 1.389842165 | AE116: 1.620644268 | AF116: 230019.5641 | AG116: 0.6369665493 | AH116: 4.131955987
A117: 2013-10-01 | B117: 144801.546 | C117: 0.6456557397 | D117: 1.061163474 | E117: 161704.5577 | F117: -0.04498264851 | G117: 2.06032 | H117: 161745.8185 | I117: 0.9009070059 | J117: 2.75896013 | K117: 168068.931 | L117: 0.2038381169 | M117: 2.809397864 | N117: 179395.549 | O117: 0.5784526514 | P117: 3.639759419 | Q117: 240344.344 | R117: 0.04896842668 | S117: 3.268999817 | T117: 441613.5393 | U117: 1.350142363 | V117: 10.57203314 | W117: 285134.8895 | X117: 0.7433910226 | Y117: 3.813313146 | Z117: 228669.1475 | AA117: 0.1395463456 | AB117: 3.240576834 | AC117: 157011.4169 | AD117: 1.021514281 | AE117: 2.224954819 | AF117: 231440.0157 | AG117: 0.6175351424 | AH117: 4.581890338
A118: 2013-11-01 | B118: 144841.3401 | C118: 0.02748188476 | D118: 1.380756184 | E118: 161266.8184 | F118: -0.2707031591 | G118: 3.042433219 | H118: 161037.1616 | I118: -0.4381299464 | J118: 2.327744565 | K118: 169178.5177 | L118: 0.660197389 | M118: 3.159175368 | N118: 179985.8673 | O118: 0.329059601 | P118: 4.086215771 | Q118: 241496.6072 | R118: 0.4794218029 | S118: 4.465087669 | T118: 447966.6305 | U118: 1.438608799 | V118: 10.73813066 | W118: 286578.2678 | X118: 0.5062089634 | Y118: 4.127269351 | Z118: 228076.08 | AA118: -0.2593561451 | AB118: 3.545675532 | AC118: 156670.1147 | AD118: -0.217374176 | AE118: 2.01324374 | AF118: 232463.6719 | AG118: 0.4422986929 | AH118: 4.994905635
A119: 2013-12-01 | B119: 145165.0337 | C119: =B119/B118*100-100 -> 0.2234814646 | D119: =B119/B107*100-100 -> 2.09803934 | E119: 161433.7745 | F119: =E119/E118*100-100 -> 0.1035278524 | G119: =E119/E107*100-100 -> 3.142187005 | H119: 162178.7058 | I119: 0.7088700256 | J119: 3.552479774 | K119: 168869.7943 | L119: =K119/K118*100-100 -> -0.1824837826 | M119: =K119/K107*100-100 -> 3.268652058 | N119: 181323.7088 | O119: =N119/N118*100-100 -> 0.7433036472 | P119: =N119/N107*100-100 -> 4.341638855 | Q119: 242474.7619 | R119: =Q119/Q118*100-100 -> 0.4050386931 | S119: =Q119/Q107*100-100 -> 4.531230906 | T119: 454542.3934 | U119: =T119/T118*100-100 -> 1.467913556 | V119: =T119/T107*100-100 -> 12.37656523 | W119: 291062.5393 | X119: =W119/W118*100-100 -> 1.564763271 | Y119: =W119/W107*100-100 -> 4.869661825 | Z119: 230024.2273 | AA119: =Z119/Z118*100-100 -> 0.854165547 | AB119: =Z119/Z107*100-100 -> 3.287968719 | AC119: 157520.0746 | AD119: =AC119/AC118*100-100 -> 0.5425156682 | AE119: =AC119/AC107*100-100 -> 2.808864647 | AF119: 234563.6203 | AG119: 0.903344768 | AH119: 5.615288967
A120: 2014-01-01 | B120: 147502.8849 | C120: 1.610478172 | D120: 4.068139613 | E120: 163124.1707 | F120: 1.047114355 | G120: 3.891795865 | H120: 163092.1831 | I120: 0.5632535787 | J120: 3.903312048 | K120: 172465.8172 | L120: 2.129464832 | M120: 5.311625976 | N120: 182442.9289 | O120: 0.6172497277 | P120: 4.36385019 | Q120: 245485.4945 | R120: 1.241668419 | S120: 6.004853447 | T120: 466595.3518 | U120: 2.651668702 | V120: 13.96114027 | W120: 294326.5703 | X120: 1.121419114 | Y120: 5.883044245 | Z120: 231263.8454 | AA120: 0.5389076377 | AB120: 3.779402994 | AC120: 158340.2524 | AD120: 0.5206814507 | AE120: 3.918202859 | AF120: 237782.4177 | AG120: =AF120/AF119*100-100 -> 1.372249185 | AH120: =AF120/AF108*100-100 -> 6.711163354
A121: 2014-02-01 | B121: 149099.2765 | C121: 1.08227823 | D121: 3.503024982 | E121: 164108.4287 | F121: 0.6033795976 | G121: 3.038045913 | H121: 163411.932 | I121: 0.1960540503 | J121: 4.224978122 | K121: 173851.1675 | L121: 0.8032607674 | M121: 4.887067332 | N121: 184016.3691 | O121: 0.8624286978 | P121: 4.228374992 | Q121: 248488.5826 | R121: 1.223326099 | S121: 5.456671122 | T121: 471112.2099 | U121: 0.968046105 | V121: 14.48724375 | W121: 298259.2624 | X121: 1.336166212 | Y121: 6.722020812 | Z121: 233598.5587 | AA121: 1.009545318 | AB121: 4.172844221 | AC121: 159965.0741 | AD121: 1.02615834 | AE121: 3.642292287 | AF121: 240132.3952 | AG121: 0.9882890192 | AH121: 6.850877547
A122: 2014-03-01 | B122: 151910.8253 | C122: 1.88568913 | D122: 5.200964325 | E122: 165164.9592 | F122: 0.6438002827 | G122: 3.752128422 | H122: 164430.927 | I122: 0.6235744413 | J122: 4.518204287 | K122: 175256.7073 | L122: 0.8084730439 | M122: 6.292498452 | N122: 184634.5671 | O122: 0.3359472592 | P122: 5.042619342 | Q122: 251374.0071 | R122: 1.161189966 | S122: 6.651608549 | T122: 477795.7496 | U122: 1.41867257 | V122: 14.35828884 | W122: 301634.2598 | X122: 1.131564991 | Y122: 7.180694601 | Z122: 236099.0399 | AA122: 1.070418064 | AB122: 5.621166298 | AC122: 159806.4227 | AD122: -0.09917879639 | AE122: 3.860790999 | AF122: 242575.4322 | AG122: 1.01737087 | AH122: 7.541921644
A123: 2014-04-01 | B123: 151003.3923 | C123: -0.5973458747 | D123: 4.679444034 | E123: 164603.8692 | F123: -0.3397149144 | G123: 3.50159181 | H123: 164602.8352 | I123: 0.1045473643 | J123: 4.107448542 | K123: 174649.8218 | L123: -0.3462837507 | M123: 5.991735866 | N123: 184812.0984 | O123: 0.09615281049 | P123: 5.487323153 | Q123: 253608.0497 | R123: 0.8887325512 | S123: 6.767898874 | T123: 483675.1825 | U123: 1.230532691 | V123: 15.11969641 | W123: 303585.6756 | X123: 0.6469476537 | Y123: 7.614499801 | Z123: 238293.851 | AA123: 0.9296145766 | AB123: 6.418201107 | AC123: 159457.886 | AD123: -0.2180992554 | AE123: 3.797587083 | AF123: 243916.5801 | AG123: 0.5528786971 | AH123: 7.84937882
A124: 2014-05-01 | B124: 152189.3465 | C124: 0.7853824841 | D124: 6.858514535 | E124: 165813.347 | F124: 0.7347809131 | G124: 5.01779882 | H124: 165038.5746 | I124: 0.2647216823 | J124: 4.238803914 | K124: 174963.8647 | L124: 0.1798128788 | M124: 6.862196414 | N124: 185083.8844 | O124: 0.1470607065 | P124: 6.411902696 | Q124: 255493.348 | R124: 0.7433905595 | S124: 8.074424812 | T124: 496407.8375 | U124: 2.63248053 | V124: 17.69502192 | W124: 306470.2019 | X124: 0.9501523221 | Y124: 8.180037297 | Z124: 238607.7548 | AA124: 0.1317297208 | AB124: 6.686985768 | AC124: 158435.5634 | AD124: -0.6411239041 | AE124: 3.884767262 | AF124: 246293.5897 | AG124: 0.9745174377 | AH124: 9.018929643
A125: 2014-06-01 | B125: 150656.216 | C125: -1.007383568 | D125: 4.889830982 | E125: 165661.0425 | F125: -0.09185299808 | G125: 3.92644916 | H125: 164939.9325 | I125: -0.05976909812 | J125: 3.956221947 | K125: 175466.8821 | L125: 0.2874979046 | M125: 6.229294379 | N125: 185715.3809 | O125: 0.3411947773 | P125: 5.747559881 | Q125: 258212.0055 | R125: 1.064081533 | S125: 8.732079508 | T125: 507483.0586 | U125: 2.231072974 | V125: 20.35650055 | W125: 309236.8449 | X125: 0.9027445176 | Y125: 9.785571124 | Z125: 238050.3192 | AA125: -0.2336200825 | AB125: 6.577149284 | AC125: 159811.9365 | AD125: 0.8687273708 | AE125: 5.38123001 | AF125: 248306.8163 | AG125: 0.817409253 | AH125: 9.759522524
A126: 2014-07-01 | B126: 149849.4714 | C126: =B126/B125*100-100 -> -0.5354871087 | D126: =B126/B114*100-100 -> 4.300462283 | E126: 166513.1245 | F126: =E126/E125*100-100 -> 0.514352696 | G126: =E126/E114*100-100 -> 3.949150805 | H126: 165222.8055 | I126: 0.1715006066 | J126: 4.423731103 | K126: 177094.9023 | L126: =K126/K125*100-100 -> 0.9278219072 | M126: =K126/K114*100-100 -> 7.06728232 | N126: 187756.1399 | O126: =N126/N125*100-100 -> 1.09886372 | P126: =N126/N114*100-100 -> 6.497496854 | Q126: 259562.0141 | R126: =Q126/Q125*100-100 -> 0.5228295037 | S126: =Q126/Q114*100-100 -> 8.985677109 | T126: 510111.2678 | U126: =T126/T125*100-100 -> 0.5178910133 | V126: =T126/T114*100-100 -> 20.37794547 | W126: 312755.6276 | X126: =W126/W125*100-100 -> 1.137892459 | Y126: =W126/W114*100-100 -> 10.53589667 | Z126: 239215.0463 | AA126: =Z126/Z125*100-100 -> 0.4892776851 | AB126: =Z126/Z114*100-100 -> 6.461604152 | AC126: 159837.8701 | AD126: =AC126/AC125*100-100 -> 0.01622757306 | AE126: =AC126/AC114*100-100 -> 4.995461649 | AF126: 249917.6415 | AG126: =AF126/AF125*100-100 -> 0.6487237 | AH126: =AF126/AF114*100-100 -> 10.05693369
A127: 2014-08-01 | B127: 149522.78 | C127: -0.2180130291 | D127: 3.916591217 | E127: 167726.9383 | F127: 0.728959818 | G127: 4.080320432 | H127: 166289.3149 | I127: 0.6454976673 | J127: 3.956141687 | K127: 178179.4386 | L127: 0.6124040505 | M127: 7.500057116 | N127: 189274.5252 | O127: 0.8087007519 | P127: 6.49413892 | Q127: 262398.5866 | R127: 1.092830367 | S127: 9.671694133 | T127: 512673.923 | U127: 0.5023718148 | V127: 19.4162477 | W127: 314700.659 | X127: 0.621901309 | Y127: 11.29730905 | Z127: 242233.5677 | AA127: 1.261844315 | AB127: 6.670183908 | AC127: 161968.9654 | AD127: 1.333285586 | AE127: 5.659583979 | AF127: 251785.8694 | AG127: 0.747537432 | AH127: 10.16004755
A128: 2014-09-01 | B128: 148897.5196 | C128: -0.418170679 | D128: 3.492600163 | E128: 168822.4195 | F128: 0.653133762 | G128: 4.354806755 | H128: 167433.9815 | I128: 0.6883585146 | J128: 4.449319062 | K128: 179699.6146 | L128: 0.8531713735 | M128: 7.13813067 | N128: 189573.9143 | O128: 0.1581771844 | P128: 6.284972305 | Q128: 264048.5857 | R128: 0.6288140156 | S128: 9.916414793 | T128: 517357.5757 | U128: 0.9135734209 | V128: 18.73337044 | W128: 315676.1109 | X128: 0.3099618298 | Y128: 11.53416524 | Z128: 243711.1136 | AA128: 0.6099674465 | AB128: 6.726773725 | AC128: 162487.2324 | AD128: 0.3199791734 | AE128: 4.544666782 | AF128: 253228.4544 | AG128: 0.5729412159 | AH128: 10.08996363
A129: 2014-10-01 | B129: 150422.1066 | C129: 1.023916965 | D129: 3.881561192 | E129: 169590.5378 | F129: 0.4549859546 | G129: 4.876782823 | H129: 169022.3314 | I129: 0.9486424934 | J129: 4.498733277 | K129: 179274.8362 | L129: -0.2363824831 | M129: 6.667445983 | N129: 190957.3569 | O129: 0.7297642105 | P129: 6.444868828 | Q129: 265746.7808 | R129: 0.6431373562 | S129: 10.56918433 | T129: 518586.207 | U129: 0.2374820305 | V129: 17.42987043 | W129: 315743.1256 | X129: 0.02122894255 | Y129: 10.73465131 | Z129: 244528.2639 | AA129: 0.3352946445 | AB129: 6.935398441 | AC129: 164244.2161 | AD129: 1.081305739 | AE129: 4.606543484 | AF129: 254149.0336 | AG129: 0.3635369966 | AH129: 9.812053353
A130: 2014-11-01 | B130: 149480.0706 | C130: -0.6262616783 | D130: 3.202628756 | E130: 168754.8543 | F130: -0.4927654174 | G130: 4.643258914 | H130: 169801.7621 | I130: 0.4611406549 | J130: 5.442595005 | K130: 179499.1235 | L130: 0.125108095 | M130: 6.100423368 | N130: 191226.9533 | O130: 0.1411815024 | P130: 6.245538149 | Q130: 265235.1287 | R130: -0.192533706 | S130: 9.829753594 | T130: 518895.2388 | U130: 0.05959121132 | V130: 15.833458 | W130: 316941.0684 | X130: 0.3794042433 | Y130: 10.59494176 | Z130: 243571.9122 | AA130: -0.3911007079 | AB130: 6.794150533 | AC130: 163708.5599 | AD130: -0.3261339993 | AE130: 4.492525747 | AF130: 254163.7878 | AG130: 0.005805339669 | AH130: 9.33484174
A131: 2014-12-01 | B131: 151133.7563 | C131: 1.106291794 | D131: 4.11168066 | E131: 169276.6684 | F131: 0.3092142641 | G131: 4.858273279 | H131: 169825.7615 | I131: 0.01413379529 | J131: 4.715203357 | K131: 179446.0557 | L131: -0.029564387 | M131: 6.262968112 | N131: 191720.7997 | O131: 0.2582514393 | P131: 5.733994146 | Q131: 267352.1373 | R131: 0.7981629926 | S131: 10.25977927 | T131: 515113.9582 | U131: -0.7287175268 | V131: 13.32583401 | W131: 317740.2957 | X131: 0.2521690442 | Y131: 9.165644069 | Z131: 245143.5338 | AA131: 0.6452392872 | AB131: 6.57291919 | AC131: 164089.4356 | AD131: 0.2326547225 | AE131: 4.170491305 | AF131: 254509.4954 | AG131: 0.1360176571 | AH131: 8.503396673
A132: 2015-01-01 | B132: 152163.7315 | C132: =B132/B131*100-100 -> 0.6814991011 | D132: =B132/B120*100-100 -> 3.159834215 | E132: 170716.8919 | F132: =E132/E131*100-100 -> 0.850810401 | G132: =E132/E120*100-100 -> 4.654565397 | H132: 170047.5506 | I132: 0.1305979953 | J132: 4.264684745 | K132: 181093.5313 | L132: =K132/K131*100-100 -> 0.9180895981 | M132: =K132/K120*100-100 -> 5.00256468 | N132: 192874.6599 | O132: =N132/N131*100-100 -> 0.6018440207 | P132: =N132/N120*100-100 -> 5.717805004 | Q132: 270638.5815 | R132: =Q132/Q131*100-100 -> 1.229256739 | S132: =Q132/Q120*100-100 -> 10.24626202 | T132: 517683.6156 | U132: =T132/T131*100-100 -> 0.4988522206 | V132: =T132/T120*100-100 -> 10.94915834 | W132: 320213.1394 | X132: =W132/W131*100-100 -> 0.7782594124 | Y132: =W132/W120*100-100 -> 8.795185959 | Z132: 244023.03 | AA132: =Z132/Z131*100-100 -> -0.4570807146 | AB132: =Z132/Z120*100-100 -> 5.517154923 | AC132: 164440.6753 | AD132: =AC132/AC131*100-100 -> 0.2140537979 | AE132: =AC132/AC120*100-100 -> 3.852730296 | AF132: 255974.3067 | AG132: =AF132/AF131*100-100 -> 0.5755428877 | AH132: =AF132/AF120*100-100 -> 7.650645155
A133: 2015-02-01 | B133: 155412.9229 | C133: 2.135325813 | D133: 4.23452521 | E133: 171558.596 | F133: 0.4930409021 | G133: 4.539783485 | H133: 169735.1663 | I133: -0.1837040967 | J133: 3.869505874 | K133: 183135.9457 | L133: 1.127822985 | M133: 5.340647645 | N133: 193251.3487 | O133: 0.195302403 | P133: 5.018564182 | Q133: 274340.5968 | R133: 1.367881581 | S133: 10.40370302 | T133: 516348.018 | U133: -0.2579949651 | V133: 9.601917998 | W133: 321375.7294 | X133: 0.3630675492 | Y133: 7.750460725 | Z133: 246543.3718 | AA133: 1.03282949 | AB133: 5.541478164 | AC133: 165764.2507 | AD133: 0.8048953892 | AE133: 3.625276714 | AF133: 257239.9039 | AG133: 0.4944235235 | AH133: 7.124198576
A134: 2015-03-01 | B134: 156112.5194 | C134: 0.450153337 | D134: 2.765895091 | E134: 172040.4975 | F134: 0.2808961525 | G134: 4.162831113 | H134: 169831.7015 | I134: 0.05687401546 | J134: 3.284524735 | K134: 184087.3979 | L134: 0.5195332755 | M134: 5.038717644 | N134: 193498.5313 | O134: 0.1279073288 | P134: 4.800815156 | Q134: 275225.0092 | R134: 0.3223775225 | S134: 9.488253133 | T134: 514823.0567 | U134: -0.2953359335 | V134: 7.749609988 | W134: 323541.3201 | X134: 0.6738501012 | Y134: 7.262789143 | Z134: 247914.0741 | AA134: 0.5559680163 | AB134: 5.004270349 | AC134: 165756.8353 | AD134: -0.004473424482 | AE134: 3.723512847 | AF134: 257907.4173 | AG134: 0.2594906288 | AH134: 6.320502017
A135: 2015-04-01 | B135: 155496.133 | C135: -0.3948346796 | D135: 2.975258155 | E135: 171758.5643 | F135: -0.1638760446 | G135: 4.346614197 | H135: 169485.5099 | I135: -0.2038438845 | J135: 2.966336957 | K135: 184397.5856 | L135: 0.1685002261 | M135: 5.581319073 | N135: 192890.7085 | O135: -0.3141227001 | P135: 4.371256109 | Q135: 276323.8717 | R135: 0.3992596799 | S135: 8.957058734 | T135: 517937.9512 | U135: 0.6050417591 | V135: 7.083838484 | W135: 324333.5267 | X135: 0.2448548451 | Y135: 6.834265505 | Z135: 249783.3866 | AA135: 0.7540162592 | AB135: 4.821582906 | AC135: 164208.4492 | AD135: -0.934131077 | AE135: 2.97919614 | AF135: 258526.3881 | AG135: 0.2399972726 | AH135: 5.989673993
A136: 2015-05-01 | B136: 152895.1845 | C136: -1.672677279 | D136: 0.4637894043 | E136: 171317.9002 | F136: -0.2565601825 | G136: 3.319728687 | H136: 170886.8033 | I136: 0.826792413 | J136: 3.543552584 | K136: 185350.4298 | L136: 0.5167335349 | M136: 5.936405854 | N136: 194181.8535 | O136: 0.6693660571 | P136: 4.91559226 | Q136: 276544.666 | R136: 0.0799041652 | S136: 8.239477902 | T136: 522029.7942 | U136: 0.7900257157 | V136: 5.161473043 | W136: 326671.0092 | X136: 0.7207033221 | Y136: 6.591442539 | Z136: 250434.5128 | AA136: 0.2606763693 | AB136: 4.956569007 | AC136: 163649.6323 | AD136: -0.3403094687 | AE136: 3.290971292 | AF136: 259614.5994 | AG136: 0.4209285217 | AH136: 5.408589674
A137: 2015-06-01 | B137: 152219.4496 | C137: -0.4419596259 | D137: 1.037616361 | E137: 171778.1722 | F137: 0.2686654519 | G137: 3.692557826 | H137: 172074.3502 | I137: 0.6949318894 | J137: 4.325464139 | K137: 186814.0837 | L137: 0.7896685014 | M137: 6.466862284 | N137: 195691.7752 | O137: 0.7775812648 | P137: 5.371872922 | Q137: 278133.7467 | R137: 0.5746199297 | S137: 7.715265268 | T137: 528543.757 | U137: 1.24781437 | V137: 4.150029847 | W137: 327774.387 | X137: 0.3377642292 | Y137: 5.994609775 | Z137: 250105.504 | AA137: -0.1313752064 | AB137: 5.064133012 | AC137: 163244.5265 | AD137: -0.2475445687 | AE137: 2.147893394 | AF137: 261047.3514 | AG137: 0.55187652 | AH137: 5.130964697
A138: 2015-07-01 | B138: 151597.2518 | C138: =B138/B137*100-100 -> -0.408750532 | D138: =B138/B126*100-100 -> 1.166357369 | E138: 172385.8369 | F138: =E138/E137*100-100 -> 0.3537496362 | G138: =E138/E126*100-100 -> 3.526876591 | H138: 173023.373 | I138: 0.5515190856 | J138: 4.721241421 | K138: 186751.0981 | L138: =K138/K137*100-100 -> -0.0337156987 | M138: =K138/K126*100-100 -> 5.452554337 | N138: 196179.604 | O138: =N138/N137*100-100 -> 0.2492842993 | P138: =N138/N126*100-100 -> 4.486385475 | Q138: 279521.274 | R138: =Q138/Q137*100-100 -> 0.4988705237 | S138: =Q138/Q126*100-100 -> 7.689592017 | T138: 530586.4307 | U138: =T138/T137*100-100 -> 0.3864720183 | V138: =T138/T126*100-100 -> 4.013862125 | W138: 329601.5808 | X138: =W138/W137*100-100 -> 0.5574547195 | Y138: =W138/W126*100-100 -> 5.38629898 | Z138: 252037.9902 | AA138: =Z138/Z137*100-100 -> 0.7726684247 | AB138: =Z138/Z126*100-100 -> 5.360425344 | AC138: 164336.825 | AD138: =AC138/AC137*100-100 -> 0.6691179871 | AE138: =AC138/AC126*100-100 -> 2.814698992 | AF138: 262197.1331 | AG138: =AF138/AF137*100-100 -> 0.4404494761 | AH138: =AF138/AF126*100-100 -> 4.913415291
A139: 2015-08-01 | B139: 152917.8119 | C139: 0.8710976708 | D139: 2.270578337 | E139: 174670.2885 | F139: 1.325196789 | G139: 4.13967505 | H139: 174518.0982 | I139: 0.8638862671 | J139: 4.948473893 | K139: 187275.7919 | L139: 0.2809589104 | M139: 5.105164401 | N139: 197100.3002 | O139: 0.4693128962 | P139: 4.134616133 | Q139: 284053.1172 | R139: 1.621287406 | S139: 8.252533254 | T139: 539676.2209 | U139: 1.713159186 | V139: 5.266953654 | W139: 331415.8708 | X139: 0.5504494153 | Y139: 5.311463874 | Z139: 252524.1745 | AA139: 0.1929011886 | AB139: 4.248216661 | AC139: 164793.9273 | AD139: 0.2781496343 | AE139: 1.744137778 | AF139: 264709.1419 | AG139: 0.9580611279 | AH139: 5.132644073
A140: 2015-09-01 | B140: 152746.6576 | C140: -0.1119256885 | D140: 2.585092064 | E140: 174990.9856 | F140: 0.1836014125 | G140: 3.653878488 | H140: 175411.1734 | I140: 0.5117378786 | J140: 4.764380454 | K140: 189086.2199 | L140: 0.9667175884 | M140: 5.22349775 | N140: 197196.7632 | O140: 0.04894106295 | P140: 4.021043164 | Q140: 286260.2686 | R140: 0.7770206474 | S140: 8.411968138 | T140: 545785.1395 | U140: 1.131959925 | V140: 5.494761284 | W140: 335042.8108 | X140: 1.094377274 | Y140: 6.134990643 | Z140: 253396.08 | AA140: 0.3452760619 | AB140: 3.973953528 | AC140: 166217.0544 | AD140: 0.8635798212 | AE140: 2.295455468 | AF140: 266706.4241 | AG140: 0.7545195413 | AH140: 5.322454664
A141: 2015-10-01 | B141: 153551.521 | C141: 0.5269270378 | D141: 2.080421894 | E141: 175842.6857 | F141: 0.486710817 | G141: 3.686613598 | H141: 176870.7934 | I141: 0.8321134837 | J141: 4.643446787 | K141: 191421.9305 | L141: 1.235262166 | M141: 6.775682818 | N141: 198863.6089 | O141: 0.8452703139 | P141: 4.140323354 | Q141: 288856.0286 | R141: 0.9067832062 | S141: 8.695965301 | T141: 553844.5118 | U141: 1.476656604 | V141: 6.79892838 | W141: 339111.4797 | X141: 1.214372852 | Y141: 7.401065045 | Z141: 255290.7136 | AA141: 0.7476964862 | AB141: 4.401311121 | AC141: 167299.3698 | AD141: 0.6511458048 | AE141: 1.860128618 | AF141: 269488.9874 | AG141: 1.043305695 | AH141: 6.035810431
A142: 2015-11-01 | B142: 153952.4595 | C142: 0.2611100489 | D142: 2.991963331 | E142: 174382.166 | F142: -0.8305831411 | G142: 3.334607275 | H142: 176766.1074 | I142: -0.05918783583 | J142: 4.101456458 | K142: 191560.1067 | L142: 0.07218413427 | M142: 6.719243507 | N142: 198696.1645 | O142: -0.08420061149 | P142: 3.905940597 | Q142: 287819.9108 | R142: -0.3586969636 | S142: 8.515004133 | T142: 557166.5483 | U142: 0.5998139281 | V142: 7.375536844 | W142: 340692.3493 | X142: 0.4661799157 | Y142: 7.493910781 | Z142: 257102.615 | AA142: 0.7097404252 | AB142: 5.555116237 | AC142: 167831.7637 | AD142: 0.3182282857 | AE142: 2.518624449 | AF142: 270061.5229 | AG142: 0.2124522656 | AH142: 6.254917454
A143: 2015-12-01 | B143: 155498.1328 | C143: 1.00399392 | D143: 2.887757562 | E143: 174939.8365 | F143: 0.3197979196 | G143: 3.345510141 | H143: 177180.2074 | I143: 0.2342643492 | J143: 4.330583186 | K143: 190678.4456 | L143: -0.4602529874 | M143: 6.259479965 | N143: 200883.0741 | O143: 1.100629989 | P143: 4.778967348 | Q143: 290841.3515 | R143: 1.049767772 | S143: 8.78587111 | T143: 562627.8704 | U143: 0.9801956216 | V143: 9.223961305 | W143: 343559.4446 | X143: 0.8415496638 | Y143: 8.125865464 | Z143: 259668.2283 | AA143: 0.9978946739 | AB143: 5.924975563 | AC143: 168539.4359 | AD143: 0.4216556901 | AE143: 2.711935893 | AF143: 272125.7611 | AG143: 0.764358504 | AH143: 6.921653623
A144: 2016-01-01 | B144: 157305.4476 | C144: =B144/B143*100-100 -> 1.162274314 | D144: =B144/B132*100-100 -> 3.37906812 | E144: 175285.2533 | F144: =E144/E143*100-100 -> 0.1974489407 | G144: =E144/E132*100-100 -> 2.675986781 | H144: 178390.5275 | I144: =H144/H143*100-100 -> 0.6831011863 | J144: =H144/H132*100-100 -> 4.906261164 | K144: 191491.5696 | L144: =K144/K143*100-100 -> 0.4264372732 | M144: =K144/K132*100-100 -> 5.741805477 | N144: 200776.3359 | O144: =N144/N143*100-100 -> -0.05313447099 | P144: =N144/N132*100-100 -> 4.096793272 | Q144: 294891.292 | R144: =Q144/Q143*100-100 -> 1.392491314 | S144: =Q144/Q132*100-100 -> 8.961290905 | T144: 569554.2208 | U144: =T144/T143*100-100 -> 1.231071326 | V144: =T144/T132*100-100 -> 10.01975021 | W144: 346487.8791 | X144: =W144/W143*100-100 -> 0.8523807339 | Y144: =W144/W132*100-100 -> 8.205390871 | Z144: 260422.6697 | AA144: =Z144/Z143*100-100 -> 0.2905405057 | AB144: =Z144/Z132*100-100 -> 6.720529481 | AC144: 169904.3856 | AD144: =AC144/AC143*100-100 -> 0.8098696112 | AE144: =AC144/AC132*100-100 -> 3.322602693 | AF144: 274297.0904 | AG144: =AF144/AF143*100-100 -> 0.7979139046 | AH144: =AF144/AF132*100-100 -> 7.158055796
A145: 2016-02-01 | B145: 159509.1938 | C145: 1.400934433 | D145: 2.635733765 | E145: 178469.3484 | F145: 1.816521939 | G145: 4.028216948 | H145: 179238.8946 | I145: 0.4755673648 | J145: 5.599151072 | K145: 194154.7079 | L145: 1.390733976 | M145: 6.016711848 | N145: 203178.7798 | O145: 1.196577189 | P145: 5.137056557 | Q145: 302662.2672 | R145: 2.635199947 | S145: 10.32354336 | T145: 582038.5547 | U145: 2.19194827 | V145: 12.72214367 | W145: 355845.3441 | X145: 2.700661568 | Y145: 10.7256434 | Z145: 266074.3577 | AA145: 2.170198175 | AB145: 7.921926977 | AC145: 172602.9972 | AD145: 1.588311949 | AE145: 4.125585898 | AF145: 279967.2676 | AG145: 2.067166379 | AH145: 8.835084837
A146: 2016-03-01 | B146: 159011.3801 | C146: -0.3120909037 | D146: 1.85690472 | E146: 179823.5511 | F146: 0.7587872421 | G146: 4.523965987 | H146: 179426.939 | I146: 0.1049126875 | J146: 5.649850667 | K146: 194560.4808 | L146: 0.2089946346 | M146: 5.689190574 | N146: 202120.9906 | O146: -0.5206199211 | P146: 4.456085108 | Q146: 304082.1571 | R146: 0.4691334455 | S146: 10.48492942 | T146: 585175.4056 | U146: 0.5389421223 | V146: 13.6653454 | W146: 356025.2276 | X146: 0.05055103184 | Y146: 10.04011095 | Z146: 265115.8996 | AA146: -0.3602219016 | AB146: 6.938624012 | AC146: 171525.4531 | AD146: -0.6242905145 | AE146: 3.480168849 | AF146: 280440.433 | AG146: 0.169007405 | AH146: 8.736862222
A147: 2016-04-01 | B147: 157932.5807 | C147: -0.6784416863 | D147: 1.566886308 | E147: 180419.8909 | F147: 0.3316250071 | G147: 5.042733474 | H147: 178035.6198 | I147: -0.7754237818 | J147: 5.044743886 | K147: 194102.3205 | L147: -0.2354847787 | M147: 5.262940325 | N147: 202637.03 | O147: 0.2553121456 | P147: 5.052768774 | Q147: 305634.7821 | R147: 0.5105938977 | S147: 10.60744778 | T147: 583885.0877 | U147: -0.2205010473 | V147: 12.73263262 | W147: 355878.6782 | X147: -0.04116265085 | Y147: 9.726145743 | Z147: 266079.0147 | AA147: 0.3632807759 | AB147: 6.52390392 | AC147: 170543.9165 | AD147: -0.5722395926 | AE147: 3.858185944 | AF147: 280424.7988 | AG147: -0.005574895757 | AH147: 8.470474076
A148: 2016-05-01 | B148: 155692.058 | C148: -1.418657689 | D148: 1.829275012 | E148: 178948.8011 | F148: -0.8153701232 | G148: 4.454234383 | H148: 178373.271 | I148: 0.1896537243 | J148: 4.380951368 | K148: 193856.889 | L148: -0.126444403 | M148: 4.589392762 | N148: 203260.89 | O148: 0.307870666 | P148: 4.675532945 | Q148: 304300.8267 | R148: -0.436454054 | S148: 10.03677313 | T148: 578182.2676 | U148: -0.9767024731 | V148: 10.75656486 | W148: 352880.4291 | X148: -0.8424919304 | Y148: 8.023185135 | Z148: 262750.2852 | AA148: -1.251030452 | AB148: 4.917761631 | AC148: 169022.0266 | AD148: -0.892374229 | AE148: 3.282863622 | AF148: 278466.7371 | AG148: -0.6982483889 | AH148: 7.261586129
A149: 2016-06-01 | B149: 156433.5628 | C149: 0.4762637346 | D149: 2.76844596 | E149: 179401.528 | F149: 0.2529924345 | G149: 4.437907118 | H149: 179130.3357 | I149: 0.424427188 | J149: 4.100544624 | K149: 194925.4295 | L149: 0.5512007018 | M149: 4.341934836 | N149: 205112.3896 | O149: 0.9108981356 | P149: 4.814006347 | Q149: 306221.4599 | R149: 0.6311626691 | S149: 10.09863546 | T149: 573960.9212 | U149: -0.7301065136 | V149: 8.592886325 | W149: 355661.2359 | X149: 0.78803091 | Y149: 8.507940216 | Z149: 264737.3938 | AA149: 0.7562726794 | AB149: 5.850287032 | AC149: 169883.4333 | AD149: 0.5096417146 | AE149: 4.066848009 | AF149: 279398.1039 | AG149: 0.3344624992 | AH149: 7.029664324
A150: 2016-07-01 | B150: 155698.0726 | C150: =B150/B149*100-100 -> -0.4701613277 | D150: =B150/B138*100-100 -> 2.705076014 | E150: 178754.9298 | F150: =E150/E149*100-100 -> -0.3604195462 | G150: =E150/E138*100-100 -> 3.694672959 | H150: 179044.631 | I150: =H150/H149*100-100 -> -0.04784486425 | J150: =H150/H138*100-100 -> 3.480025767 | K150: 196722.9886 | L150: =K150/K149*100-100 -> 0.9221778362 | M150: =K150/K138*100-100 -> 5.339669039 | N150: 206196.6965 | O150: =N150/N149*100-100 -> 0.5286403404 | P150: =N150/N138*100-100 -> 5.106082505 | Q150: 306456.6597 | R150: =Q150/Q149*100-100 -> 0.07680709439 | S150: =Q150/Q138*100-100 -> 9.63625606 | T150: 572199.5412 | U150: =T150/T149*100-100 -> -0.3068815199 | V150: =T150/T138*100-100 -> 7.842852377 | W150: 357733.4317 | X150: =W150/W149*100-100 -> 0.5826318941 | Y150: =W150/W138*100-100 -> 8.535108002 | Z150: 265439.5517 | AA150: =Z150/Z149*100-100 -> 0.2652280624 | AB150: =Z150/Z138*100-100 -> 5.317278341 | AC150: 169518.7332 | AD150: =AC150/AC149*100-100 -> -0.2146766878 | AE150: =AC150/AC138*100-100 -> 3.153223971 | AF150: 279790.6315 | AG150: =AF150/AF149*100-100 -> 0.140490401 | AH150: =AF150/AF138*100-100 -> 6.710026974
A151: 2016-08-01 | B151: 155099.1171 | C151: =B151/B150*100-100 -> -0.3846904318 | D151: =B151/B139*100-100 -> 1.426455919 | E151: 179636.9696 | F151: =E151/E150*100-100 -> 0.4934352214 | G151: =E151/E139*100-100 -> 2.843460758 | H151: 178777.993 | I151: =H151/H150*100-100 -> -0.1489226614 | J151: =H151/H139*100-100 -> 2.440947284 | K151: 197637.0003 | L151: =K151/K150*100-100 -> 0.4646186604 | M151: =K151/K139*100-100 -> 5.532593573 | N151: 206570.417 | O151: =N151/N150*100-100 -> 0.1812446683 | P151: =N151/N139*100-100 -> 4.804719611 | Q151: 308070.16 | R151: =Q151/Q150*100-100 -> 0.5265019649 | S151: =Q151/Q139*100-100 -> 8.455123838 | T151: 572855.8531 | U151: =T151/T150*100-100 -> 0.1146998234 | V151: =T151/T139*100-100 -> 6.148062652 | W151: 359321.0077 | X151: =W151/W150*100-100 -> 0.4437874343 | Y151: =W151/W139*100-100 -> 8.419976049 | Z151: 266563.1185 | AA151: =Z151/Z150*100-100 -> 0.4232853838 | AB151: =Z151/Z139*100-100 -> 5.559445562 | AC151: 169008.9129 | AD151: =AC151/AC150*100-100 -> -0.3007456683 | AE151: =AC151/AC139*100-100 -> 2.557731164 | AF151: 280598.9952 | AG151: 0.2889173665 | AH151: 6.00275954
A152: 2016-09-01 | B152: 155172.7596 | C152: =B152/B151*100-100 -> 0.04748095066 | D152: =B152/B140*100-100 -> 1.588317588 | E152: 179640.8176 | F152: =E152/E151*100-100 -> 0.002142085568 | G152: =E152/E140*100-100 -> 2.657183714 | H152: 179412.8246 | I152: =H152/H151*100-100 -> 0.3550949656 | J152: =H152/H140*100-100 -> 2.281297787 | K152: 199078.252 | L152: =K152/K151*100-100 -> 0.7292418075 | M152: =K152/K140*100-100 -> 5.284378758 | N152: 206855.2947 | O152: =N152/N151*100-100 -> 0.1379082587 | P152: =N152/N140*100-100 -> 4.89791582 | Q152: 310416.5903 | R152: =Q152/Q151*100-100 -> 0.7616545246 | S152: =Q152/Q140*100-100 -> 8.438586986 | T152: 581665.128 | U152: =T152/T151*100-100 -> 1.537782122 | V152: =T152/T140*100-100 -> 6.574013459 | W152: 360521.0512 | X152: =W152/W151*100-100 -> 0.3339753141 | Y152: =W152/W140*100-100 -> 7.604473105 | Z152: 267017.0438 | AA152: =Z152/Z151*100-100 -> 0.1702880947 | AB152: =Z152/Z140*100-100 -> 5.375364821 | AC152: 170564.1077 | AD152: =AC152/AC151*100-100 -> 0.9201850761 | AE152: =AC152/AC140*100-100 -> 2.615287187 | AF152: 282384.7393 | AG152: 0.6364043142 | AH152: 5.878491765
A153: 2016-10-01 | B153: 157103.1887 | C153: =B153/B152*100-100 -> 1.244051526 | D153: =B153/B141*100-100 -> 2.313013671 | E153: 182683.2899 | F153: =E153/E152*100-100 -> 1.693641968 | G153: =E153/E141*100-100 -> 3.890184097 | H153: 181775.4522 | I153: =H153/H152*100-100 -> 1.316866622 | J153: =H153/H141*100-100 -> 2.773017917 | K153: 200279.1407 | L153: =K153/K152*100-100 -> 0.6032244511 | M153: =K153/K141*100-100 -> 4.62706137 | N153: 209182.6678 | O153: =N153/N152*100-100 -> 1.125121361 | P153: =N153/N141*100-100 -> 5.189013176 | Q153: 313073.2567 | R153: =Q153/Q152*100-100 -> 0.8558390326 | S153: =Q153/Q141*100-100 -> 8.383840278 | T153: 589415.8847 | U153: =T153/T152*100-100 -> 1.332511842 | V153: =T153/T141*100-100 -> 6.422628044 | W153: 361951.9094 | X153: =W153/W152*100-100 -> 0.3968861752 | Y153: =W153/W141*100-100 -> 6.735374965 | Z153: 268979.2179 | AA153: =Z153/Z152*100-100 -> 0.7348497678 | AB153: =Z153/Z141*100-100 -> 5.361928011 | AC153: 172783.2226 | AD153: =AC153/AC152*100-100 -> 1.301044474 | AE153: =AC153/AC141*100-100 -> 3.277868204 | AF153: 285117.6256 | AG153: 0.9677882254 | AH153: 5.799360587
A154: 2016-11-01 | B154: 158237.3404 | C154: =B154/B153*100-100 -> 0.721915142 | D154: =B154/B142*100-100 -> 2.783249416 | E154: 183286.0059 | F154: =E154/E153*100-100 -> 0.3299240116 | G154: =E154/E142*100-100 -> 5.105934936 | H154: 183289.3337 | I154: =H154/H153*100-100 -> 0.8328305266 | J154: =H154/H142*100-100 -> 3.690315037 | K154: 201353.5318 | L154: =K154/K153*100-100 -> 0.536446844 | M154: =K154/K142*100-100 -> 5.112455423 | N154: 210024.4404 | O154: =N154/N153*100-100 -> 0.4024102904 | P154: =N154/N142*100-100 -> 5.701305735 | Q154: 314558.7731 | R154: =Q154/Q153*100-100 -> 0.4744948288 | S154: =Q154/Q142*100-100 -> 9.290136396 | T154: 596768.5933 | U154: =T154/T153*100-100 -> 1.247456811 | V154: =T154/T142*100-100 -> 7.107757121 | W154: 363358.5692 | X154: =W154/W153*100-100 -> 0.3886316953 | Y154: =W154/W142*100-100 -> 6.652987655 | Z154: 269734.7078 | AA154: =Z154/Z153*100-100 -> 0.2808729731 | AB154: =Z154/Z142*100-100 -> 4.913249448 | AC154: 174064.3471 | AD154: =AC154/AC153*100-100 -> 0.7414634727 | AE154: =AC154/AC142*100-100 -> 3.713589893 | AF154: 286918.6226 | AG154: 0.6316680914 | AH154: 6.241947963
A155: 2016-12-01 | B155: 159154.6957 | C155: =B155/B154*100-100 -> 0.57973375 | D155: =B155/B143*100-100 -> 2.351515608 | E155: 184584.7629 | F155: =E155/E154*100-100 -> 0.7085958278 | G155: =E155/E143*100-100 -> 5.513281925 | H155: 183804.4503 | I155: =H155/H154*100-100 -> 0.2810401323 | J155: =H155/H143*100-100 -> 3.738703637 | K155: 202146.6686 | L155: =K155/K154*100-100 -> 0.3939025979 | M155: =K155/K143*100-100 -> 6.0144307 | N155: 212028.2523 | O155: =N155/N154*100-100 -> 0.9540851149 | P155: =N155/N143*100-100 -> 5.548092203 | Q155: 315194.5439 | R155: =Q155/Q154*100-100 -> 0.2021151138 | S155: =Q155/Q143*100-100 -> 8.373359676 | T155: 599970.3737 | U155: =T155/T154*100-100 -> 0.5365195792 | V155: =T155/T143*100-100 -> 6.637158451 | W155: 366980.8796 | X155: =W155/W154*100-100 -> 0.9968969135 | Y155: =W155/W143*100-100 -> 6.817287473 | Z155: 274343.2082 | AA155: =Z155/Z154*100-100 -> 1.708530734 | AB155: =Z155/Z143*100-100 -> 5.651434521 | AC155: 175161.7229 | AD155: =AC155/AC154*100-100 -> 0.6304425761 | AE155: =AC155/AC143*100-100 -> 3.929221047 | AF155: 289050.6044 | AG155: 0.7430614827 | AH155: 6.219493228
A156: 2017-01-01 | B156: 159995.4495 | C156: 0.5282620609 | D156: 1.710050048 | E156: 184207.1424 | F156: -0.20457834 | G156: 5.08992566 | H156: 184056.3415 | I156: 0.1370430536 | J156: 3.176073343 | K156: 203910.0458 | L156: 0.8723256434 | M156: 6.485129482 | N156: 214062.1756 | O156: 0.9592699657 | P156: 6.617233854 | Q156: 318127.2182 | R156: 0.9304330565 | S156: 7.879488729 | T156: 605105.9924 | U156: 0.855978728 | V156: 6.242034619 | W156: 371349.0455 | X156: 1.190297942 | Y156: 7.17519077 | Z156: 276707.7578 | AA156: 0.8618947096 | AB156: 6.253329684 | AC156: 175813.3127 | AD156: 0.3719932789 | AE156: 3.477795544 | AF156: 291359.0056 | AG156: =AF156/AF155*100-100 -> 0.7986148934 | AH156: =AF156/AF144*100-100 -> 6.22023192
A157: 2017-02-01 | B157: 160624.5916 | C157: 0.3932249964 | D157: 0.6992686604 | E157: 186137.7669 | F157: 1.048072555 | G157: 4.296770608 | H157: 183678.2275 | I157: -0.2054338274 | J157: 2.476768718 | K157: 205079.6813 | L157: 0.5736036514 | M157: 5.626942299 | N157: 215475.7371 | O157: 0.6603509017 | P157: 6.052284278 | Q157: 320532.9114 | R157: 0.756204794 | S157: 5.904483696 | T157: 607193.9798 | U157: 0.345061428 | V157: 4.321951685 | W157: 374256.3326 | X157: 0.7828987805 | Y157: 5.173873646 | Z157: 279186.6069 | AA157: 0.8958364851 | AB157: 4.928039382 | AC157: 177592.0852 | AD157: 1.011739359 | AE157: 2.890499038 | AF157: 293203.0294 | AG157: =AF157/AF156*100-100 -> 0.632904356 | AH157: =AF157/AF145*100-100 -> 4.727610442
A158: 2017-03-01 | B158: 159999.5151 | C158: -0.3891536865 | D158: 0.6214240558 | E158: 186767.8 | F158: 0.3384767403 | G158: 3.861701577 | H158: 184982.2871 | I158: 0.7099696134 | J158: 3.096161683 | K158: 206439.0869 | L158: 0.6628670517 | M158: 6.105354 | N158: 216805.2156 | O158: 0.6169968427 | P158: 7.26506683 | Q158: 323780.21 | R158: 1.013093644 | S158: 6.47787198 | T158: 612584.6016 | U158: 0.8877923667 | V158: 4.683928225 | W158: 375372.9303 | X158: 0.2983510386 | Y158: 5.434362832 | Z158: 279245.2522 | AA158: 0.02100579547 | AB158: 5.32950028 | AC158: 177261.3007 | AD158: -0.1862608559 | AE158: 3.344021236 | AF158: 294763.389 | AG158: =AF158/AF157*100-100 -> 0.5321771686 | AH158: =AF158/AF146*100-100 -> 5.107307741
A159: 2017-04-01 | B159: 158817.5793 | C159: -0.7387121117 | D159: 0.5603648444 | E159: 186581.4155 | F159: -0.09979474112 | G159: 3.415102719 | H159: 185709.1444 | I159: 0.3929334318 | J159: 4.31010634 | K159: 206679.0657 | L159: 0.1162467696 | M159: 6.479440922 | N159: 215461.4283 | O159: -0.6198131659 | P159: 6.328753601 | Q159: 324179.4624 | R159: 0.1233097033 | S159: 6.067594861 | T159: 614673.6941 | U159: 0.3410292138 | V159: 5.2730592 | W159: 374624.2695 | X159: -0.1994445224 | Y159: 5.267410627 | Z159: 278875.7666 | AA159: -0.1323157992 | AB159: 4.80938038 | AC159: 175014.0515 | AD159: -1.267760737 | AE159: 2.621104903 | AF159: 294643.9414 | AG159: =AF159/AF158*100-100 -> -0.04052321028 | AH159: =AF159/AF147*100-100 -> 5.07057246
A160: 2017-05-01 | B160: 158722.0812 | C160: -0.06013070137 | D160: 1.94616429 | E160: 186137.8557 | F160: -0.2377299097 | G160: 4.017380734 | H160: 185937.2281 | I160: 0.1228177352 | J160: 4.240521619 | K160: 206575.7284 | L160: -0.04999892071 | M160: 6.560942699 | N160: 215431.9898 | O160: -0.01366300373 | P160: 5.987920183 | Q160: 325955.4661 | R160: 0.5478458539 | S160: 7.116194756 | T160: 613153.4489 | U160: -0.2473255557 | V160: 6.048470051 | W160: 374135.0931 | X160: -0.1305778845 | Y160: 6.023191502 | Z160: 278744.1371 | AA160: -0.04720007462 | AB160: 6.087092102 | AC160: 173411.5918 | AD160: -0.9156177483 | AE160: 2.597037375 | AF160: 294453.6917 | AG160: =AF160/AF159*100-100 -> -0.06456934398 | AH160: =AF160/AF148*100-100 -> 5.741064359
A161: 2017-06-01 | B161: 158467.3977 | C161: -0.1604587316 | D161: 1.300127 | E161: 185903.6773 | F161: -0.1258091023 | G161: 3.624355621 | H161: 184046.5559 | I161: -1.016833623 | J161: 2.744493382 | K161: 207872.0309 | L161: 0.6275193005 | M161: 6.641822706 | N161: 215606.318 | O161: 0.08092025494 | P161: 5.116184514 | Q161: 326514.3357 | R161: 0.17145579 | S161: 6.626862721 | T161: 604974.4943 | U161: -1.333916435 | V161: 5.403429384 | W161: 372727.3972 | X161: -0.3762533524 | Y161: 4.798431655 | Z161: 278231.4705 | AA161: -0.1839201309 | AB161: 5.097155509 | AC161: 173532.1463 | AD161: 0.06951929193 | AE161: 2.14777444 | AF161: 293250.2471 | AG161: =AF161/AF160*100-100 -> -0.408704197 | AH161: =AF161/AF149*100-100 -> 4.957851538
A162: 2017-07-01 | B162: 158417.5214 | C162: -0.03147422998 | D162: 1.74661681 | E162: 187615.8648 | F162: 0.9210078536 | G162: 4.957029725 | H162: 183945.7557 | I162: -0.05476884269 | J162: 2.73737597 | K162: 207726.6282 | L162: -0.06994820018 | M162: 5.593469102 | N162: 215729.4558 | O162: 0.05711233265 | P162: 4.623138702 | Q162: 325662.6721 | R162: -0.2608349547 | S162: 6.267121904 | T162: 599314.5746 | U162: -0.9355633597 | V162: 4.738737348 | W162: 372768.8653 | X162: 0.0111255669 | Y162: 4.202971329 | Z162: 279976.8372 | AA162: 0.6273074379 | AB162: 5.476684017 | AC162: 175399.209 | AD162: 1.075917513 | AE162: 3.468923893 | AF162: 293035.5451 | AG162: =AF162/AF161*100-100 -> -0.07321461454 | AH162: =AF162/AF150*100-100 -> 4.733866023
A163: 2017-08-01 | B163: 157614.4461 | C163: -0.5069358604 | D163: 1.621755894 | E163: 188975.8255 | F163: 0.7248644283 | G163: 5.198738271 | H163: 186073.8837 | I163: 1.156932353 | J163: 4.080978074 | K163: 208684.0785 | L163: 0.4609184249 | M163: 5.589579964 | N163: 217019.4802 | O163: 0.5979825282 | P163: 5.058354127 | Q163: 325876.0311 | R163: 0.06551532074 | S163: 5.779810369 | T163: 596568.7874 | U163: -0.4581545792 | V163: 4.139424291 | W163: 373047.843 | X163: 0.07483932006 | Y163: 3.820215056 | Z163: 280063.2212 | AA163: 0.03085398638 | AB163: 5.064505086 | AC163: 177026.1614 | AD163: 0.9275711019 | AE163: 4.743683822 | AF163: 293434.3246 | AG163: =AF163/AF162*100-100 -> 0.1360857129 | AH163: =AF163/AF151*100-100 -> 4.574260651
A164: 2017-09-01 | B164: 158582.8513 | C164: 0.6144139676 | D164: 2.19760976 | E164: 189754.2214 | F164: 0.4119023717 | G164: 5.629791689 | H164: 188583.8122 | I164: 1.348888131 | J164: 5.111667793 | K164: 209033.76 | L164: 0.1675650206 | M164: 5.000801424 | N164: 218412.4042 | O164: 0.6418428416 | P164: 5.587050389 | Q164: 325498.0071 | R164: -0.1160023829 | S164: 4.858444184 | T164: 605929.5309 | U164: 1.56909708 | V164: 4.171541614 | W164: 372911.1331 | X164: -0.0366467369 | Y164: 3.43671524 | Z164: 282382.7516 | AA164: 0.8282167206 | AB164: 5.754579426 | AC164: 179390.4527 | AD164: =AC164/AC163*100-100 -> 1.335560418 | AE164: =AC164/AC152*100-100 -> 5.174796225 | AF164: 295305.2199 | AG164: =AF164/AF163*100-100 -> 0.6375857082 | AH164: =AF164/AF152*100-100 -> 4.575488273
A165: 2017-10-01 | B165: 159146.9528 | C165: 0.3557140564 | D165: 1.300905562 | E165: 190515.7753 | F165: 0.4013369836 | G165: 4.287466803 | H165: 188806.3148 | I165: 0.1179860296 | J165: 3.86788339 | K165: 209792.1015 | L165: 0.3627842328 | M165: 4.749851061 | N165: 219383.9959 | O165: 0.4448427049 | P165: 4.876755897 | Q165: 328094.501 | R165: 0.7976988666 | S165: 4.797996644 | T165: 613045.3765 | U165: 1.174368521 | V165: 4.008967596 | W165: 372048.1983 | X165: -0.2314049449 | Y165: 2.789400645 | Z165: 283600.7996 | AA165: 0.4313464416 | AB165: 5.435952191 | AC165: 180855.7845 | AD165: 0.8168393393 | AE165: 4.672075087 | AF165: 296747.0358 | AG165: =AF165/AF164*100-100 -> 0.4882459821 | AH165: =AF165/AF153*100-100 -> 4.078811411
A166: 2017-11-01 | B166: 159949.5667 | C166: 0.5043225107 | D166: 1.08206212 | E166: 191100.7283 | F166: 0.307036523 | G166: 4.263676511 | H166: 188740.2818 | I166: -0.03497390306 | J166: 2.973958179 | K166: 210710.3905 | L166: 0.4377137872 | M166: 4.646980179 | N166: 219941.8642 | O166: 0.2542885405 | P166: 4.722033231 | Q166: 327624.7117 | R166: -0.1431872189 | S166: 4.15373522 | T166: 621084.0398 | U166: 1.311267257 | V166: 4.074518464 | W166: 371358.1799 | X166: -0.1854647975 | Y166: 2.201574779 | Z166: 285950.9341 | AA166: 0.8286769526 | AB166: 6.011916804 | AC166: 181373.2866 | AD166: 0.2861407416 | AE166: 4.198987111 | AF166: 297984.6939 | AG166: =AF166/AF165*100-100 -> 0.4170751261 | AH166: =AF166/AF154*100-100 -> 3.856867552
A167: 2017-12-01 | B167: 159735.5064 | C167: -0.1338298552 | D167: 0.3649347423 | E167: 193304.0478 | F167: 1.152962413 | G167: 4.723729532 | H167: 189243.7078 | I167: 0.2667294941 | J167: 2.959263247 | K167: 211334.1471 | L167: 0.2960255398 | M167: 4.544956667 | N167: 220429.5021 | O167: 0.2217121895 | P167: 3.96232567 | Q167: 328311.8367 | R167: 0.2097293128 | S167: 4.161649696 | T167: 627189.8964 | U167: 0.9830966713 | V167: 4.536811131 | W167: 374237.5731 | X167: 0.7753681904 | Y167: 1.97740369 | Z167: 289165.2603 | AA167: 1.124083124 | AB167: 5.402740652 | AC167: 181044.0733 | AD167: -0.1815114582 | AE167: 3.358239661 | AF167: 299986.9766 | AG167: =AF167/AF166*100-100 -> 0.6719414544 | AH167: =AF167/AF155*100-100 -> 3.783549318
A168: 2018-01-01 | B168: 163014.8476 | C168: 2.052982009 | D168: 1.887177493 | E168: 193700.0151 | F168: 0.2048416952 | G168: 5.153368411 | H168: 190798.651 | I168: 0.8216617652 | J168: 3.663176964 | K168: 215458.9977 | L168: 1.95181456 | M168: 5.66374838 | N168: 223259.9323 | O168: 1.284052348 | P168: 4.296768776 | Q168: 330007.4634 | R168: 0.5164683442 | S168: 3.734432195 | T168: 631931.9492 | U168: 0.7560792856 | V168: 4.433265766 | W168: 378405.5519 | X168: 1.113725391 | Y168: 1.900235521 | Z168: 289386.5732 | AA168: 0.07653510565 | AB168: 4.582023821 | AC168: 182552.9417 | AD168: 0.8334259934 | AE168: 3.833400824 | AF168: 302470.1535 | AG168: =AF168/AF167*100-100 -> 0.8277615663 | AH168: =AF168/AF156*100-100 -> 3.813559107
A169: 2018-02-01 | B169: 165400.786 | C169: 1.463632538 | D169: 2.973513778 | E169: 194613.5405 | F169: 0.4716186309 | G169: 4.553494803 | H169: 191140.577 | I169: 0.1792077739 | J169: 4.062729483 | K169: 217327.3639 | L169: 0.867156275 | M169: 5.972158036 | N169: 225295.04 | O169: 0.9115418438 | P169: 4.557034147 | Q169: 333274.4311 | R169: 0.989967816 | S169: 3.97510496 | T169: 628772.5862 | U169: -0.4999530437 | V169: 3.553824171 | W169: 381753.2218 | X169: 0.884677799 | Y169: 2.00314292 | Z169: 290542.4469 | AA169: 0.3994220354 | AB169: 4.067473076 | AC169: 186334.7004 | AD169: 2.071595599 | AE169: 4.922863084 | AF169: 303997.0611 | AG169: =AF169/AF168*100-100 -> 0.5048126799 | AH169: =AF169/AF157*100-100 -> 3.6814189
A170: 2018-03-01 | B170: 166979.095 | C170: 0.9542330898 | D170: 4.362250666 | E170: 194054.4149 | F170: -0.2873004383 | G170: 3.901429981 | H170: 190744.8438 | I170: -0.2070377686 | J170: 3.115193788 | K170: 217846.1005 | L170: 0.238689033 | M170: 5.525607472 | N170: 224887.3877 | O170: -0.1809415307 | P170: 3.727849493 | Q170: 334844.5971 | R170: 0.4711330426 | S170: 3.417252424 | T170: 622694.4231 | U170: -0.966671141 | V170: 1.650355143 | W170: 381772.5203 | X170: 0.005055229537 | Y170: 1.704861901 | Z170: 288179.8299 | AA170: -0.8131744817 | AB170: 3.199545056 | AC170: 184191.1802 | AD170: -1.150360195 | AE170: 3.909414797 | AF170: 303104.1008 | AG170: =AF170/AF169*100-100 -> -0.2937397922 | AH170: =AF170/AF158*100-100 -> 2.829629505
A171: 2018-04-01 | B171: 164404.7884 | C171: -1.541693959 | D171: 3.518004187 | E171: 193162.1348 | F171: -0.4598092271 | G171: 3.526996117 | H171: 190387.8128 | I171: -0.1871772916 | J171: 2.51935275 | K171: 216752.6885 | L171: -0.5019194995 | M171: 4.874041186 | N171: 225327.2508 | O171: 0.1955925975 | P171: 4.578927449 | Q171: 334171.5164 | R171: -0.2010128368 | S171: 3.082260042 | T171: 611386.9412 | U171: -1.815895811 | V171: -0.5347150763 | W171: 381387.1896 | X171: -0.1009320161 | Y171: 1.805254137 | Z171: 287603.9473 | AA171: -0.1998344577 | AB171: 3.129773789 | AC171: 181541.448 | AD171: -1.438577143 | AE171: 3.729641372 | AF171: 301218.2062 | AG171: =AF171/AF170*100-100 -> -0.6221937101 | AH171: =AF171/AF159*100-100 -> 2.231257405
A172: 2018-05-01 | B172: 162603.335 | C172: -1.095742662 | D172: 2.445314338 | E172: 191278.7469 | F172: -0.9750295533 | G172: 2.761873017 | H172: 189731.4283 | I172: -0.3447618202 | J172: 2.040581232 | K172: 216288.1269 | L172: -0.2143279229 | M172: 4.701616511 | N172: 224582.8292 | O172: -0.3303735329 | P172: 4.247669715 | Q172: 333265.0344 | R172: -0.2712625049 | S172: 2.242505196 | T172: 609974.7196 | U172: -0.2309865361 | V172: -0.5184231297 | W172: 379033.0081 | X172: -0.6172681218 | Y172: 1.309130075 | Z172: 286757.0916 | AA172: -0.2944520379 | AB172: 2.874662986 | AC172: 177252.7583 | AD172: -2.362374912 | AE172: 2.215057556 | AF172: 299764.5767 | AG172: =AF172/AF171*100-100 -> -0.4825835326 | AH172: =AF172/AF160*100-100 -> 1.803640134
A173: 2018-06-01 | B173: 162304.3857 | C173: -0.1838518698 | D173: 2.421310648 | E173: 191279.6753 | F173: 0.000485348329 | G173: 2.891819044 | H173: 190689.7314 | I173: 0.5050839861 | J173: 3.609508184 | K173: 217292.6848 | L173: 0.4644535476 | M173: 4.531948729 | N173: 226057.7807 | O173: 0.6567516629 | P173: 4.847475175 | Q173: 334247.3973 | R173: 0.2947692767 | S173: 2.368368194 | T173: 603887.5196 | U173: -0.9979429991 | V173: -0.179672812 | W173: 378517.7102 | X173: -0.1359506717 | Y173: 1.553498074 | Z173: 286398.3693 | AA173: -0.1250962416 | AB173: 2.935289368 | AC173: 179839.5825 | AD173: 1.459398564 | AE173: 3.634736504 | AF173: 299516.6783 | AG173: =AF173/AF172*100-100 -> -0.08269768267 | AH173: =AF173/AF161*100-100 -> 2.136888634
A174: 2018-07-01 | B174: 160649.2073 | C174: -1.019798978 | D174: 1.408736788 | E174: 192010.3293 | F174: 0.3819820628 | G174: 2.34226702 | H174: 191610.095 | I174: 0.4826498037 | J174: 4.166630129 | K174: 216163.1458 | L174: -0.5198237719 | M174: 4.061355856 | N174: 224636.713 | O174: -0.6286302839 | P174: 4.128901749 | Q174: 332385.1108 | R174: -0.5571581162 | S174: 2.06423372 | T174: 601430.7252 | U174: -0.4068298064 | V174: 0.3530951326 | W174: 376199.7377 | X174: -0.6123815086 | Y174: 0.9203752663 | Z174: 287213.3347 | AA174: 0.284556604 | AB174: 2.584677221 | AC174: 182200.9356 | AD174: 1.313032969 | AE174: 3.87785473 | AF174: 298724.9122 | AG174: =AF174/AF173*100-100 -> -0.2643479389 | AH174: =AF174/AF162*100-100 -> 1.94152797
A175: 2018-08-01 | B175: 160620.8722 | C175: -0.01763787037 | D175: 1.907455885 | E175: 193761.8635 | F175: 0.9122082752 | G175: 2.532619165 | H175: 192373.6857 | I175: 0.3985127732 | J175: 3.385645475 | K175: 217686.971 | L175: 0.7049422062 | M175: 4.314125251 | N175: 226481.3182 | O175: 0.8211503374 | P175: 4.359902593 | Q175: 332015.5357 | R175: -0.1111888279 | S175: 1.884000066 | T175: 599329.234 | U175: -0.3494153445 | V175: 0.4627205742 | W175: 376688.5541 | X175: 0.1299353382 | Y175: 0.9759367927 | Z175: 288813.5643 | AA175: 0.5571571178 | AB175: 3.124417059 | AC175: 184466.4516 | AD175: 1.243416231 | AE175: 4.202932547 | AF175: 299427.6038 | AG175: =AF175/AF174*100-100 -> 0.2352303581 | AH175: =AF175/AF163*100-100 -> 2.042460182
A176: 2018-09-01 | B176: 160349.9754 | C176: -0.1686560098 | D176: 1.114322317 | E176: 193615.7456 | F176: -0.07541102485 | G176: 2.035013625 | H176: 191725.1951 | I176: -0.3370994486 | J176: 1.665775456 | K176: 218658.8553 | L176: 0.4464595566 | M176: 4.604564971 | N176: 227911.7885 | O176: 0.6316063095 | P176: 4.349287888 | Q176: 330591.2149 | R176: -0.428992229 | S176: 1.564743145 | T176: 602029.9371 | U176: 0.4506209644 | V176: -0.6435721541 | W176: 376530.4015 | X176: -0.04198497724 | Y176: 0.9705444784 | Z176: 289838.1991 | AA176: 0.3547738044 | AB176: 2.640192242 | AC176: 185071.0061 | AD176: 0.3277314492 | AE176: 3.166586237 | AF176: 299811.08 | AG176: =AF176/AF175*100-100 -> 0.1280697464 | AH176: =AF176/AF164*100-100 -> 1.52583151
A177: 2018-10-01 | B177: 162065.1317 | C177: 1.069633041 | D177: 1.833637954 | E177: 195214.0298 | F177: 0.8254928768 | G177: 2.466071155 | H177: 190911.6628 | I177: -0.4243220407 | J177: 1.11508349 | K177: 220172.2902 | L177: 0.6921443154 | M177: 4.947845286 | N177: 228717.301 | O177: 0.3534316991 | P177: 4.254323596 | Q177: 331860.9068 | R177: 0.3840670444 | S177: 1.147963692 | T177: 610754.5831 | U177: 1.449204675 | V177: -0.3736743638 | W177: 376690.1412 | X177: 0.04242410173 | Y177: 1.247672446 | Z177: 290643.6219 | AA177: 0.2778870109 | AB177: 2.483357688 | AC177: 186635.4002 | AD177: 0.8452939581 | AE177: 3.19570405 | AF177: 301514.5331 | AG177: =AF177/AF176*100-100 -> 0.5681754785 | AH177: =AF177/AF165*100-100 -> 1.606586314
A178: 2018-11-01 | B178: 161606.8454 | C178: -0.2827791165 | D178: 1.036125766 | E178: 195279.0235 | F178: 0.0332935343 | G178: 2.186436051 | H178: 190544.3266 | I178: -0.1924116272 | J178: 0.9558345084 | K178: 218817.179 | L178: -0.6154776199 | M178: 3.847360571 | N178: 227554.6558 | O178: -0.5083328213 | P178: 3.461274487 | Q178: 329614.8276 | R178: -0.6768134194 | S178: 0.6074376928 | T178: 614542.8575 | U178: 0.6202613171 | V178: -1.053187953 | W178: 374340.8898 | X178: -0.6236561909 | Y178: 0.8031894995 | Z178: 289772.1889 | AA178: -0.2998286851 | AB178: 1.336332353 | AC178: 187170.6889 | AD178: 0.2868098834 | AE178: 3.196392606 | AF178: 300921.7645 | AG178: =AF178/AF177*100-100 -> -0.1965970142 | AH178: =AF178/AF166*100-100 -> 0.9856447937
A179: 2018-12-01 | B179: 160592.4568 | C179: -0.6276890837 | D179: 0.5364808605 | E179: 196510.9022 | F179: 0.6308300231 | G179: 1.658969067 | H179: 191182.636 | I179: 0.3349925988 | J179: 1.024566766 | K179: 217742.4307 | L179: -0.4911626651 | M179: 3.032299187 | N179: 226584.504 | O179: -0.4263379365 | P179: 2.792276816 | Q179: 328166.7015 | R179: -0.4393388977 | S179: -0.04420651375 | T179: 618682.3559 | U179: 0.673589858 | V179: -1.356453682 | W179: 372551.0504 | X179: -0.4781308728 | Y179: -0.4506556204 | Z179: 290222.0417 | AA179: 0.1552436032 | AB179: 0.3654593357 | AC179: 187822.777 | AD179: 0.3483921684 | AE179: 3.744228417 | AF179: 300969.4388 | AG179: =AF179/AF178*100-100 -> 0.01584274722 | AH179: =AF179/AF167*100-100 -> 0.3275016206
A180: 2019-01-01 | B180: 160335.644 | C180: -0.1599158924 | D180: -1.643533512 | E180: 196256.3074 | F180: -0.1295575865 | G180: 1.319717134 | H180: 191252.2913 | I180: 0.03643390529 | J180: 0.2377586242 | K180: 217075.05 | L180: -0.3065000596 | M180: 0.7500509647 | N180: 227032.0662 | O180: 0.1975254977 | P180: 1.689570455 | Q180: 326785.6808 | R180: -0.4208290274 | S180: -0.9762756966 | T180: 622494.2573 | U180: 0.6161322339 | V180: -1.493466492 | W180: 371790.5463 | X180: -0.2041342015 | Y180: -1.748125948 | Z180: 290355.5967 | AA180: 0.04601821661 | AB180: 0.3348543434 | AC180: 188077.2439 | AD180: 0.1354824878 | AE180: 3.026137073 | AF180: 301071.9168 | AG180: =AF180/AF179*100-100 -> 0.03404933146 | AH180: =AF180/AF168*100-100 -> -0.4622725873
A181: 2019-02-01 | AF181: 302435.1836 | AG181: =AF181/AF180*100-100 -> 0.4528043419 | AH181: =AF181/AF169*100-100 -> -0.5137804867

Sheet INTERACTIVE REGIONS CHARTS
C2: LSL ACADATA E&W HPI NATIONAL AND REGIONAL FORMATTED DATA FROM 2005 | O2: =SERIES!$K$2 -> 18th March 2019
C3: A TRUE MEASURE OF HOUSE PRICE INFLATION
C4: For data prior to 2005 please see | F4: APAT LGA | O4: =SERIES!$K$3 -> FEBRUARY 2019
O5: © Acadata Limited
O6: LSL Acadata E&W HPI clb/cms
Q8: Select Region(s)
Q11: North East
Q12: North West
Q13: East Midlands
Q14: West Midlands
Q15: Wales
Q16: Yorks & Humber
Q17: South West
Q18: East of England
Q19: South East
Q20: Greater London
D29: To change the date range, click on the start and end dates below and select from the drop down lists, then click Reset Dates.
D31: Start Date | E31: 2005-01-01 | G31: End Date | H31: 2019-01-01
E32: =MATCH(E31,dates)+ROW(dates)-1 -> 12 | H32: =MATCH(H31,dates)+ROW(dates)-1 -> 180
Q38: Select Region(s)
Q41: North East
Q42: North West
Q43: East Midlands
Q44: West Midlands
Q45: Wales
Q46: Yorks & Humber
Q47: South West
Q48: East of England
Q49: South East
Q50: Greater London
D58: To change the date range, click on the start and end dates below and select from the drop down lists, then click Reset Dates.
D60: Start Date | E60: 2005-01-01 | G60: End Date | H60: 2019-01-01
E61: =MATCH(E60,dates)+ROW(dates)-1 -> 12 | H61: =MATCH(H60,dates)+ROW(dates)-1 -> 180
Q65: Select Region(s)
Q68: North East
Q69: North West
Q70: East Midlands
Q71: West Midlands
Q72: Wales
Q73: Yorks & Humber
Q74: South West
Q75: East of England
Q76: South East
Q77: Greater London
D85: To change the date range, click on the start and end dates below and select from the drop down lists, then click Reset Dates.
D87: Start Date | E87: 2005-01-01 | G87: End Date | H87: 2019-01-01
E88: =MATCH(E87,dates)+ROW(dates)-1 -> 12 | H88: =MATCH(H87,dates)+ROW(dates)-1 -> 180
